﻿Directorate,Service,Division,Responsible Unit,Expense Type,Payment Date,Trans No,Net Amount,Supplier Name
Adults Services,Adult Social Care,Support with Memory and Cognition - adults (18-64),Generic Care Packages NE Team -SI,Social Care - Homecare,03/10/2016,3733730,676.17,POSITIVE CARE LINK
Adults Services,Adult Social Care,Support with Memory and Cognition - adults (18-64),CLDS Longer Term Support Teams,Social Care - Residential Care,03/10/2016,3735408,"9,297.22",Wallace Crescent
Adults Services,Adult Social Care,Sensory Support - older people (65+),"Public Health-Vanguard			",Third Party Payments - Voluntary Associations,03/10/2016,3735862,"4,798.00",Account 3 Ltd
Adults Services,Adult Social Care,Physical Support - adults (18-64),Public Health � Healthy Communities,Third Party Payments - Other Establishments,03/10/2016,3736199,"22,916.67",Poplar & Limehouse Health and Wellbeing Network CIC
Adults Services,Adult Social Care,Physical Support - adults (18-64),Adult Protection Team,Services - Professional Fees - Consultants Fees,03/10/2016,3748998,"3,471.70",Kabe Ltd
Adults Services,Adult Social Care,Physical Support - adults (18-64),Public Health � Healthy 0-5 year olds,Third Party Payments - Other Establishments,03/10/2016,3749119,"591,095.00",Tower Hamlets GP Care Group CIC
Adults Services,Adult Social Care,Support with Memory and Cognition - adults (18-64),Cmht For Older People,Social Care - Residential Care,03/10/2016,3752191,"2,166.67",South Park Residential Home Limited
Adults Services,Adult Social Care,Support with Memory and Cognition - adults (18-64),Cmht Bow / Poplar North,Social Care - Residential Care,03/10/2016,3752937,"2,378.79",Goldcarehomes
Adults Services,Adult Social Care,Support with Memory and Cognition - adults (18-64),Generic Care Packages SE Team -PS,Social Care - Nursing Care,03/10/2016,3753026,"2,113.59",Sunhill Court
Adults Services,Adult Social Care,Support with Memory and Cognition - adults (18-64),Tower Hamlets Care Alarms,Subscriptions - Associations,03/10/2016,3753404,"1,230.00",Telecare Services Association
Adults Services,Adult Social Care,Support with Memory and Cognition - adults (18-64),Tower Hamlets Care Alarms,Panel & Conference Expenses - Conference - UK Based,03/10/2016,3755555,550.00,London Telecare
Adults Services,Adult Social Care,Physical Support - adults (18-64),Public Health � Healthy Young Adults,Third Party Payments - Other Establishments,05/10/2016,3677088,"31,928.00",Guy's & St Thomas' NHS Foundation Trust
Adults Services,Public Health,Smoking and Tobacco,Public Health Team - 2,Third Party Payments - Other Establishments,05/10/2016,3715845,"1,672.00",Royal Free London NHS Foundation Trust
Adults Services,Adult Social Care,Physical Support - adults (18-64),Public Health � Healthy Young Adults,Third Party Payments - Other Establishments,05/10/2016,3724794,"31,608.78",Guy's & St Thomas' NHS Foundation Trust
Adults Services,Adult Social Care,Physical Support - adults (18-64),Public Health � Healthy Young Adults,Third Party Payments - Other Establishments,05/10/2016,3724839,"9,382.30",Guy's & St Thomas' NHS Foundation Trust
Adults Services,Adult Social Care,Support with Memory and Cognition - adults (18-64),Generic Care Packages NW Team -PS,Social Care - Nursing Care,05/10/2016,3733117,"4,689.92",Samkar Ltd
Adults Services,Adult Social Care,Support with Memory and Cognition - adults (18-64),Generic Care Packages SE Team -SP,Non Staff Transport Costs - Client Transport Costs,05/10/2016,3733728,600.00,Abacus Ambulance Service
Adults Services,Adult Social Care,Support with Memory and Cognition - adults (18-64),Generic Care Packages SW Team - PS,Social Care - Nursing Care,05/10/2016,3735430,"1,060.00",HEALTH & HOME LTD (ALEXANDER HOUSE)
Adults Services,Adult Social Care,Support with Memory and Cognition - adults (18-64),CLDS Longer Term Support Teams,Social Care - Homecare,05/10/2016,3735803,"1,123.13",Outward Housing
Adults Services,Adult Social Care,Support with Memory and Cognition - adults (18-64),CLDS Longer Term Support Teams,Social Care - Homecare,05/10/2016,3735804,"1,531.40",Outward Housing
Adults Services,Adult Social Care,Support with Memory and Cognition - adults (18-64),CLDS Longer Term Support Teams,Social Care - Homecare,05/10/2016,3735805,"1,361.21",Outward Housing
Adults Services,Adult Social Care,Support with Memory and Cognition - adults (18-64),CLDS Longer Term Support Teams,Social Care - Homecare,05/10/2016,3735806,697.81,Outward Housing
Adults Services,Adult Social Care,Support with Memory and Cognition - adults (18-64),CLDS Longer Term Support Teams,Social Care - Homecare,05/10/2016,3735807,"2,450.24",Outward Housing
Adults Services,Adult Social Care,Support with Memory and Cognition - adults (18-64),CLDS Longer Term Support Teams,Social Care - Homecare,05/10/2016,3735808,714.86,Outward Housing
Adults Services,Adult Social Care,Support with Memory and Cognition - adults (18-64),CLDS Longer Term Support Teams,Social Care - Homecare,05/10/2016,3735809,816.85,Outward Housing
Adults Services,Adult Social Care,Support with Memory and Cognition - adults (18-64),CLDS Longer Term Support Teams,Social Care - Supported Living,05/10/2016,3735810,"3,573.68",Outward Housing
Adults Services,Adult Social Care,Support with Memory and Cognition - adults (18-64),CLDS Longer Term Support Teams,Social Care - Supported Living,05/10/2016,3735811,952.94,Outward Housing
Adults Services,Adult Social Care,Support with Memory and Cognition - adults (18-64),CLDS Longer Term Support Teams,Social Care - Prevention & Support,05/10/2016,3735812,"1,327.42",Outward Housing
Adults Services,Adult Social Care,Support with Memory and Cognition - adults (18-64),"Generic Care Packages SW Team-MH									",Social Care - Prevention & Support,05/10/2016,3735813,"4,709.06",Outward Housing
Adults Services,Adult Social Care,Physical Support - older people (65+),PD Day Opportunities,Repairs and Maintenance - Responsive - General,05/10/2016,3740028,"5,494.64",Total Hygiene LTD
Adults Services,Adult Social Care,Physical Support - adults (18-64),Public Health � Healthy Young Adults,Third Party Payments - Other Establishments,05/10/2016,3740292,"1,804.00",Royal Free London NHS Foundation Trust
Adults Services,Adult Social Care,Physical Support - adults (18-64),Public Health � Healthy Young Adults,Third Party Payments - Other Establishments,05/10/2016,3740338,"1,804.00",Royal Free London NHS Foundation Trust
Adults Services,Adult Social Care,Physical Support - adults (18-64),Public Health � Healthy Middle Age & Older People.,Payments to Private Contractors - Other Contractors,05/10/2016,3751982,858.44,Pristine Health t/a Bell Pharmacy Bow
Adults Services,No Service Specified,No Division Specified,Capital-Minor Works (SC),Building Works - Main Works,05/10/2016,3753345,"2,589.40",Tower Hamlets Schools LTD
Adults Services,No Service Specified,No Division Specified,Capital-Minor Works (SC),Other External Fees - Consultants Fees,05/10/2016,3755262,"5,850.00",Clearsprings Energy Solutions Ltd
Adults Services,Adult Social Care,Support with Memory and Cognition - adults (18-64),Cmht Iod / Poplar South,Social Care - Prevention & Support,05/10/2016,3755642,"2,842.24",Look Ahead Care & Support Ltd
Adults Services,Adult Social Care,Physical Support - adults (18-64),Access to Resources,Meeting Expenses,05/10/2016,3755862,550.00,De Vere Venues Ltd
Adults Services,Adult Social Care,Support with Memory and Cognition - adults (18-64),CLDS Longer Term Support Teams,Social Care - Day Care,05/10/2016,3756289,900.00,STALLCOMBE HOUSE
Adults Services,Adult Social Care,Support with Memory and Cognition - adults (18-64),Generic Care Packages SE Team -PS,Social Care - Nursing Care,05/10/2016,3756290,"2,822.04",Barron Kirk Quality Care Ltd
Adults Services,Adult Social Care,Support with Memory and Cognition - adults (18-64),CLDS Longer Term Support Teams,Social Care - Homecare,05/10/2016,3756296,803.25,Mantra Recruitment
Adults Services,Adult Social Care,Support with Memory and Cognition - adults (18-64),Cmht For Older People,Social Care - Homecare,05/10/2016,3756301,527.51,ATHLONE CARE LTD
Adults Services,Adult Social Care,Support with Memory and Cognition - adults (18-64),Generic Care Packages NE Team -PS,Social Care - Homecare,05/10/2016,3756314,"1,275.68",ATHLONE CARE LTD
Adults Services,Adult Social Care,Support with Memory and Cognition - adults (18-64),Generic Care Packages NE Team -PS,Social Care - Homecare,05/10/2016,3756324,711.23,ATHLONE CARE LTD
Adults Services,Adult Social Care,Support with Memory and Cognition - adults (18-64),Generic Care Packages SW Team - PS,Social Care - Homecare,05/10/2016,3756327,682.63,ATHLONE CARE LTD
Adults Services,Adult Social Care,Support with Memory and Cognition - adults (18-64),Generic Care Packages SE Team -PS,Social Care - Homecare,05/10/2016,3756329,"1,258.38",ATHLONE CARE LTD
Adults Services,Adult Social Care,Support with Memory and Cognition - adults (18-64),Generic Care Packages NE Team -PS,Social Care - Homecare,05/10/2016,3756338,555.81,ATHLONE CARE LTD
Adults Services,Adult Social Care,Support with Memory and Cognition - adults (18-64),Generic Care Packages NW Team -PS,Social Care - Homecare,05/10/2016,3756343,728.88,ATHLONE CARE LTD
Adults Services,Adult Social Care,Support with Memory and Cognition - adults (18-64),Generic Care Packages NE Team -PS,Social Care - Home Care (Short Term),05/10/2016,3756345,"1,219.02",ATHLONE CARE LTD
Adults Services,Adult Social Care,Support with Memory and Cognition - adults (18-64),Generic Care Packages SE Team -PS,Social Care - Homecare,05/10/2016,3756347,"1,292.71",ATHLONE CARE LTD
Adults Services,Adult Social Care,Support with Memory and Cognition - adults (18-64),CLDS Longer Term Support Teams,Social Care - Home Care (Short Term),05/10/2016,3756351,595.78,ATHLONE CARE LTD
Adults Services,Adult Social Care,Support with Memory and Cognition - adults (18-64),CLDS Longer Term Support Teams,Social Care - Home Care (Short Term),05/10/2016,3756352,553.51,ATHLONE CARE LTD
Adults Services,Adult Social Care,Support with Memory and Cognition - adults (18-64),CLDS Longer Term Support Teams,Social Care - Day Care,05/10/2016,3756368,"1,898.40",CLACTON FAMILY TRUST
Adults Services,Adult Social Care,Support with Memory and Cognition - adults (18-64),CLDS Longer Term Support Teams,Social Care - Day Care,05/10/2016,3756369,"1,740.20",CLACTON FAMILY TRUST
Adults Services,Adult Social Care,Support with Memory and Cognition - adults (18-64),CLDS Longer Term Support Teams,Social Care - Day Care,05/10/2016,3756370,"1,661.10",CLACTON FAMILY TRUST
Adults Services,Adult Social Care,Support with Memory and Cognition - adults (18-64),CLDS Longer Term Support Teams,Social Care - Day Care,05/10/2016,3756371,"1,740.20",CLACTON FAMILY TRUST
Adults Services,Adult Social Care,Support with Memory and Cognition - adults (18-64),CLDS Longer Term Support Teams,Social Care - Residential Care,05/10/2016,3756374,"10,245.28",Craegmoor Roseneath Avenue
Adults Services,Adult Social Care,Support with Memory and Cognition - adults (18-64),Generic Care Packages SW Team - PS,Social Care - Homecare,05/10/2016,3756376,"4,166.38",Excelcare (Home Care Division) LTD
Adults Services,Adult Social Care,Support with Memory and Cognition - adults (18-64),Generic Care Packages SE Team -PS,Social Care - Direct Payments,05/10/2016,3756382,"-2,707.31",DAVID HOWARD LTD CLIENT ACCOUNT
Adults Services,Adult Social Care,Support with Memory and Cognition - adults (18-64),Generic Care Packages SE Team -PS,Social Care - Direct Payments,05/10/2016,3756383,"3,158.83",DAVID HOWARD LTD CLIENT ACCOUNT
Adults Services,Adult Social Care,Support with Memory and Cognition - adults (18-64),Generic Care Packages NE Team -PS,Social Care - Nursing Care,05/10/2016,3756384,"4,128.00",Bennetts Castlle Care Home
Adults Services,Adult Social Care,Support with Memory and Cognition - adults (18-64),Generic Care Packages NE Team -PS,Social Care - Nursing Care,05/10/2016,3756385,"3,046.86",Bennetts Castlle Care Home
Adults Services,Adult Social Care,Support with Memory and Cognition - adults (18-64),Generic Care Packages NE Team -PS,Social Care - Nursing Care,05/10/2016,3756386,"2,948.57",Bennetts Castlle Care Home
Adults Services,Adult Social Care,Support with Memory and Cognition - adults (18-64),Generic Care Packages NW Team -PS,Social Care - Homecare,05/10/2016,3756409,"1,064.78",Excelcare (Home Care Division) LTD
Adults Services,Adult Social Care,Support with Memory and Cognition - adults (18-64),Generic Care Packages NW Team -PS,Social Care - Homecare,05/10/2016,3756411,"1,191.68",Excelcare (Home Care Division) LTD
Adults Services,Adult Social Care,Support with Memory and Cognition - adults (18-64),Generic Care Packages NW Team -PS,Social Care - Homecare,05/10/2016,3756413,"1,226.98",Excelcare (Home Care Division) LTD
Adults Services,Adult Social Care,Support with Memory and Cognition - adults (18-64),Generic Care Packages NW Team -PS,Social Care - Homecare,05/10/2016,3756415,"1,260.82",Excelcare (Home Care Division) LTD
Adults Services,Adult Social Care,Support with Memory and Cognition - adults (18-64),Generic Care Packages NW Team -PS,Social Care - Homecare,05/10/2016,3756417,"1,260.82",Excelcare (Home Care Division) LTD
Adults Services,Adult Social Care,Support with Memory and Cognition - adults (18-64),Generic Care Packages NW Team -PS,Social Care - Homecare,05/10/2016,3756419,"1,215.59",Excelcare (Home Care Division) LTD
Adults Services,Adult Social Care,Support with Memory and Cognition - adults (18-64),Generic Care Packages NW Team -PS,Social Care - Homecare,05/10/2016,3756421,"1,239.66",Excelcare (Home Care Division) LTD
Adults Services,Adult Social Care,Physical Support - adults (18-64),Strategic Commissioning,Social Care - Prevention & Support - Block,05/10/2016,3756429,"300,000.00",HERITAGE CARE
Adults Services,Adult Social Care,Support with Memory and Cognition - adults (18-64),Generic Care Packages NE Team -PS,Social Care - Residential Care,05/10/2016,3756430,"1,983.09",BELMONT LODGE
Adults Services,Adult Social Care,Support with Memory and Cognition - adults (18-64),Generic Care Packages SW Team-SMC,Social Care - Residential Care,05/10/2016,3756431,"2,333.59",CARE UK COMMUNITY PARTNERSHIPS LTD
Adults Services,Adult Social Care,Support with Memory and Cognition - adults (18-64),Generic Care Packages SW Team-SMC,Social Care - Residential Care,05/10/2016,3756432,"2,333.59",CARE UK COMMUNITY PARTNERSHIPS LTD
Adults Services,Adult Social Care,Support with Memory and Cognition - adults (18-64),Generic Care Packages SW Team-SMC,Social Care - Residential Care,05/10/2016,3756433,"2,258.31",CARE UK COMMUNITY PARTNERSHIPS LTD
Adults Services,Adult Social Care,Support with Memory and Cognition - adults (18-64),Generic Care Packages SW Team - PS,Social Care - Nursing Care,05/10/2016,3756438,"2,723.77",H-C ONE
Adults Services,Adult Social Care,Support with Memory and Cognition - adults (18-64),Cmht For Older People,Social Care - Respite Care,05/10/2016,3756439,"1,038.94",H-C ONE
Adults Services,Adult Social Care,Support with Memory and Cognition - adults (18-64),Generic Care Packages SE Team -PS,Social Care - Nursing Care,05/10/2016,3756441,"2,254.15",H-C ONE
Adults Services,Adult Social Care,Support with Memory and Cognition - adults (18-64),Generic Care Packages SW Team - PS,Social Care - Nursing Care,05/10/2016,3756443,"2,348.07",H-C ONE
Adults Services,Adult Social Care,Physical Support - adults (18-64),"Failed Care Package Conversion		",Social Care - Mental Health,05/10/2016,3756446,"1,798.85",Alzheimer's Society
Adults Services,Adult Social Care,Physical Support - adults (18-64),"Failed Care Package Conversion		",Social Care - Prevention & Support - Block,05/10/2016,3756446,"15,745.65",Alzheimer's Society
Adults Services,Adult Social Care,Support with Memory and Cognition - adults (18-64),Generic Care Packages NE Team -PS,Social Care - Residential Care,05/10/2016,3756448,"2,373.64",Romford Care Centre
Adults Services,Adult Social Care,Support with Memory and Cognition - adults (18-64),Generic Care Packages NE Team -PS,Social Care - Residential Care,05/10/2016,3756449,"2,335.71",Romford Care Centre
Adults Services,Adult Social Care,Support with Memory and Cognition - adults (18-64),Generic Care Packages SE Team -PS,Social Care - Homecare,05/10/2016,3756457,906.00,St Hilda's East Community Centre
Adults Services,Adult Social Care,Support with Memory and Cognition - adults (18-64),Generic Care Packages SE Team -PS,Social Care - Homecare,05/10/2016,3756464,709.70,St Hilda's East Community Centre
Adults Services,Adult Social Care,Support with Memory and Cognition - adults (18-64),Generic Care Packages SW Team - PS,Social Care - Homecare,05/10/2016,3756471,528.50,St Hilda's East Community Centre
Adults Services,Adult Social Care,Support with Memory and Cognition - adults (18-64),Generic Care Packages NE Team -PS,Social Care - Homecare,05/10/2016,3756473,"1,691.20",St Hilda's East Community Centre
Adults Services,Adult Social Care,Support with Memory and Cognition - adults (18-64),Generic Care Packages NW Team -PS,Social Care - Homecare,05/10/2016,3756490,"1,283.50",St Hilda's East Community Centre
Adults Services,Adult Social Care,Support with Memory and Cognition - adults (18-64),Generic Care Packages NE Team -PS,Social Care - Homecare,05/10/2016,3756492,626.65,St Hilda's East Community Centre
Adults Services,Adult Social Care,Support with Memory and Cognition - adults (18-64),Generic Care Packages SE Team -PS,Social Care - Homecare,05/10/2016,3756495,513.40,St Hilda's East Community Centre
Adults Services,Adult Social Care,Support with Memory and Cognition - adults (18-64),Generic Care Packages SE Team -PS,Social Care - Homecare,05/10/2016,3756501,"1,027.65",SANCTUARY HOME CARE LIMITED
Adults Services,Adult Social Care,Support with Memory and Cognition - adults (18-64),Generic Care Packages SE Team -PS,Social Care - Homecare,05/10/2016,3756504,"1,664.39",SANCTUARY HOME CARE LIMITED
Adults Services,Adult Social Care,Support with Memory and Cognition - adults (18-64),Generic Care Packages SW Team - PS,Social Care - Homecare,05/10/2016,3756510,"2,821.00",SANCTUARY HOME CARE LIMITED
Adults Services,Adult Social Care,Support with Memory and Cognition - adults (18-64),Generic Care Packages SW Team - PS,Social Care - Home Care (Short Term),05/10/2016,3756512,507.78,SANCTUARY HOME CARE LIMITED
Adults Services,Adult Social Care,Support with Memory and Cognition - adults (18-64),Generic Care Packages NE Team -PS,Social Care - Homecare,05/10/2016,3756515,564.20,SANCTUARY HOME CARE LIMITED
Adults Services,Adult Social Care,Support with Memory and Cognition - adults (18-64),Generic Care Packages SE Team -PS,Social Care - Homecare,05/10/2016,3756536,668.98,SANCTUARY HOME CARE LIMITED
Adults Services,Adult Social Care,Support with Memory and Cognition - adults (18-64),Generic Care Packages SW Team - PS,Social Care - Homecare,05/10/2016,3756538,507.78,SANCTUARY HOME CARE LIMITED
Adults Services,Adult Social Care,Support with Memory and Cognition - adults (18-64),Generic Care Packages SW Team - PS,Social Care - Home Care (Short Term),05/10/2016,3756539,660.92,SANCTUARY HOME CARE LIMITED
Adults Services,Adult Social Care,Support with Memory and Cognition - adults (18-64),Cmht Bethnal Green,Social Care - Homecare,05/10/2016,3756547,967.20,SANCTUARY HOME CARE LIMITED
Adults Services,Adult Social Care,Support with Memory and Cognition - adults (18-64),Generic Care Packages SW Team - PS,Social Care - Homecare,05/10/2016,3756560,564.20,SANCTUARY HOME CARE LIMITED
Adults Services,Adult Social Care,Support with Memory and Cognition - adults (18-64),Generic Care Packages NW Team -PS,Social Care - Home Care (Short Term),05/10/2016,3756566,"1,320.22",Soma Healthcare Ltd
Adults Services,Adult Social Care,Support with Memory and Cognition - adults (18-64),CLDS Longer Term Support Teams,Social Care - Homecare,05/10/2016,3756567,820.74,Soma Healthcare Ltd
Adults Services,Adult Social Care,Support with Memory and Cognition - adults (18-64),Generic Care Packages NW Team -PS,Social Care - Homecare,05/10/2016,3756569,642.54,Soma Healthcare Ltd
Adults Services,Adult Social Care,Support with Memory and Cognition - adults (18-64),Generic Care Packages NE Team -PS,Social Care - Homecare,05/10/2016,3756572,639.41,Soma Healthcare Ltd
Adults Services,Adult Social Care,Support with Memory and Cognition - adults (18-64),Generic Care Packages SW Team - PS,Social Care - Homecare,05/10/2016,3756573,"1,676.32",Soma Healthcare Ltd
Adults Services,Adult Social Care,Support with Memory and Cognition - adults (18-64),Generic Care Packages SE Team -PS,Social Care - Homecare,05/10/2016,3756574,517.46,Soma Healthcare Ltd
Adults Services,Adult Social Care,Support with Memory and Cognition - adults (18-64),Generic Care Packages NW Team -PS,Social Care - Homecare,05/10/2016,3756577,794.19,Soma Healthcare Ltd
Adults Services,Adult Social Care,Support with Memory and Cognition - adults (18-64),Generic Care Packages SW Team - PS,Social Care - Homecare,05/10/2016,3756578,"2,186.35",Soma Healthcare Ltd
Adults Services,Adult Social Care,Support with Memory and Cognition - adults (18-64),Cmht Iod / Poplar South,Social Care - Homecare,05/10/2016,3756579,576.86,Soma Healthcare Ltd
Adults Services,Adult Social Care,Support with Memory and Cognition - adults (18-64),Generic Care Packages SW Team - PS,Social Care - Homecare,05/10/2016,3756584,"1,174.85",Soma Healthcare Ltd
Adults Services,Adult Social Care,Support with Memory and Cognition - adults (18-64),Generic Care Packages NW Team -PS,Social Care - Homecare,05/10/2016,3756590,505.76,Soma Healthcare Ltd
Adults Services,Adult Social Care,Support with Memory and Cognition - adults (18-64),Generic Care Packages SE Team -PS,Social Care - Homecare,05/10/2016,3756601,"1,766.98",Soma Healthcare Ltd
Adults Services,Adult Social Care,Support with Memory and Cognition - adults (18-64),Generic Care Packages NE Team -PS,Social Care - Home Care (Short Term),05/10/2016,3756604,535.46,Soma Healthcare Ltd
Adults Services,Adult Social Care,Support with Memory and Cognition - adults (18-64),Generic Care Packages NE Team -PS,Social Care - Homecare,05/10/2016,3756607,571.44,Soma Healthcare Ltd
Adults Services,Adult Social Care,Support with Memory and Cognition - adults (18-64),Generic Care Packages SW Team - PS,Social Care - Homecare,05/10/2016,3756611,"1,106.04",Soma Healthcare Ltd
Adults Services,Adult Social Care,Support with Memory and Cognition - adults (18-64),Generic Care Packages SW Team - PS,Social Care - Homecare,05/10/2016,3756613,565.16,Soma Healthcare Ltd
Adults Services,Adult Social Care,Support with Memory and Cognition - adults (18-64),Generic Care Packages SE Team -PS,Social Care - Homecare,05/10/2016,3756615,511.60,Soma Healthcare Ltd
Adults Services,Adult Social Care,Support with Memory and Cognition - adults (18-64),Generic Care Packages NW Team -PS,Social Care - Homecare,05/10/2016,3756617,"1,743.14",Soma Healthcare Ltd
Adults Services,Adult Social Care,Support with Memory and Cognition - adults (18-64),Generic Care Packages NE Team -PS,Social Care - Homecare,05/10/2016,3756621,"1,470.71",Soma Healthcare Ltd
Adults Services,Adult Social Care,Support with Memory and Cognition - adults (18-64),Generic Care Packages SE Team -PS,Social Care - Home Care (Short Term),05/10/2016,3756622,897.56,Soma Healthcare Ltd
Adults Services,Adult Social Care,Support with Memory and Cognition - adults (18-64),Generic Care Packages SW Team - PS,Social Care - Homecare,05/10/2016,3756627,645.25,Soma Healthcare Ltd
Adults Services,Adult Social Care,Support with Memory and Cognition - adults (18-64),Generic Care Packages SE Team -PS,Social Care - Homecare,05/10/2016,3756632,"1,466.43",Soma Healthcare Ltd
Adults Services,Adult Social Care,Support with Memory and Cognition - adults (18-64),Generic Care Packages SE Team -PS,Social Care - Homecare,05/10/2016,3756636,562.01,Soma Healthcare Ltd
Adults Services,Adult Social Care,Support with Memory and Cognition - adults (18-64),Generic Care Packages SE Team -PS,Social Care - Homecare,05/10/2016,3756637,716.79,Soma Healthcare Ltd
Adults Services,Adult Social Care,Support with Memory and Cognition - adults (18-64),Generic Care Packages SE Team -PS,Social Care - Homecare,05/10/2016,3756644,"1,018.93",Soma Healthcare Ltd
Adults Services,Adult Social Care,Support with Memory and Cognition - adults (18-64),Generic Care Packages NW Team -PS,Social Care - Homecare,05/10/2016,3756646,602.14,Soma Healthcare Ltd
Adults Services,Adult Social Care,Support with Memory and Cognition - adults (18-64),Generic Care Packages NW Team -PS,Social Care - Homecare,05/10/2016,3756647,"1,912.77",Soma Healthcare Ltd
Adults Services,Adult Social Care,Support with Memory and Cognition - adults (18-64),Generic Care Packages SW Team - PS,Social Care - Home Care (Short Term),05/10/2016,3756651,547.16,Soma Healthcare Ltd
Adults Services,Adult Social Care,Support with Memory and Cognition - adults (18-64),Generic Care Packages NE Team -PS,Social Care - Homecare,05/10/2016,3756653,782.05,Soma Healthcare Ltd
Adults Services,Adult Social Care,Support with Memory and Cognition - adults (18-64),Generic Care Packages SE Team -PS,Social Care - Homecare,05/10/2016,3756654,"1,683.00",Soma Healthcare Ltd
Adults Services,Adult Social Care,Support with Memory and Cognition - adults (18-64),CLDS Longer Term Support Teams,Social Care - Homecare,05/10/2016,3756655,630.84,Soma Healthcare Ltd
Adults Services,Adult Social Care,Support with Memory and Cognition - adults (18-64),Generic Care Packages SE Team -SI,Social Care - Homecare,05/10/2016,3756656,602.28,Soma Healthcare Ltd
Adults Services,Adult Social Care,Support with Memory and Cognition - adults (18-64),Generic Care Packages NE Team -PS,Social Care - Homecare,05/10/2016,3756657,"1,070.90",Soma Healthcare Ltd
Adults Services,Adult Social Care,Support with Memory and Cognition - adults (18-64),Generic Care Packages SE Team -PS,Social Care - Homecare,05/10/2016,3756660,701.94,Soma Healthcare Ltd
Adults Services,Adult Social Care,Support with Memory and Cognition - adults (18-64),Generic Care Packages NE Team -PS,Social Care - Homecare,05/10/2016,3756670,850.44,Soma Healthcare Ltd
Adults Services,Adult Social Care,Support with Memory and Cognition - adults (18-64),Generic Care Packages NE Team -PS,Social Care - Homecare,05/10/2016,3756674,571.00,Soma Healthcare Ltd
Adults Services,Adult Social Care,Support with Memory and Cognition - adults (18-64),Generic Care Packages SW Team - PS,Social Care - Homecare,05/10/2016,3756675,"1,178.00",Soma Healthcare Ltd
Adults Services,Adult Social Care,Support with Memory and Cognition - adults (18-64),Generic Care Packages SW Team - PS,Social Care - Homecare,05/10/2016,3756680,617.13,Soma Healthcare Ltd
Adults Services,Adult Social Care,Support with Memory and Cognition - adults (18-64),Generic Care Packages NE Team -PS,Social Care - Homecare,05/10/2016,3756690,"1,868.22",Soma Healthcare Ltd
Adults Services,Adult Social Care,Support with Memory and Cognition - adults (18-64),Generic Care Packages SE Team -PS,Social Care - Homecare,05/10/2016,3756706,533.88,Soma Healthcare Ltd
Adults Services,Adult Social Care,Support with Memory and Cognition - adults (18-64),CLDS Longer Term Support Teams,Social Care - Supported Living,07/10/2016,3737437,"13,644.03",ADVANCE HOUSING & SUPPORT LTD
Adults Services,Adult Social Care,Support with Memory and Cognition - adults (18-64),CLDS Longer Term Support Teams,Social Care - Supported Living,07/10/2016,3737438,"13,644.03",ADVANCE HOUSING & SUPPORT LTD
Adults Services,Adult Social Care,Support with Memory and Cognition - adults (18-64),CLDS Longer Term Support Teams,Social Care - Homecare,07/10/2016,3739829,"1,177.20",Outward Housing
Adults Services,Adult Social Care,Support with Memory and Cognition - adults (18-64),CLDS Longer Term Support Teams,Social Care - Homecare,07/10/2016,3739831,"1,005.84",Outward Housing
Adults Services,Adult Social Care,Support with Memory and Cognition - adults (18-64),CLDS Longer Term Support Teams,Social Care - Prevention & Support,07/10/2016,3739832,"1,098.72",Outward Housing
Adults Services,Adult Social Care,Support with Memory and Cognition - adults (18-64),CLDS Longer Term Support Teams,Social Care - Prevention & Support,07/10/2016,3739833,"1,461.69",Outward Housing
Adults Services,Adult Social Care,Support with Memory and Cognition - adults (18-64),CLDS Longer Term Support Teams,Social Care - Prevention & Support,07/10/2016,3739898,981.00,Outward Housing
Adults Services,No Service Specified,No Division Specified,Community Equipment Store,Materials - Cleaning Materials,07/10/2016,3746415,597.00,Enfield Safety Supplies
Adults Services,Adult Social Care,Support with Memory and Cognition - adults (18-64),CLDS Longer Term Support Teams,Social Care - Day Care,07/10/2016,3750927,918.00,THE GARWOOD FOUNDATION
Adults Services,Adult Social Care,Support with Memory and Cognition - adults (18-64),Cmht Bethnal Green,Events & Exhibition Supplies,07/10/2016,3757838,975.00,Sainsburys Business Direct
Adults Services,Adult Social Care,Support with Memory and Cognition - adults (18-64),Cmht Bethnal Green,Events & Exhibition Supplies,07/10/2016,3757839,975.00,Sainsburys Business Direct
Adults Services,Adult Social Care,Support with Memory and Cognition - adults (18-64),Generic Care Packages NW Team -PS,Social Care - Homecare,07/10/2016,3757981,521.26,ATHLONE CARE LTD
Adults Services,Adult Social Care,Support with Memory and Cognition - adults (18-64),Generic Care Packages NW Team -PS,Social Care - Homecare,07/10/2016,3757982,563.54,ATHLONE CARE LTD
Adults Services,Adult Social Care,Support with Memory and Cognition - adults (18-64),Generic Care Packages NW Team -PS,Social Care - Homecare,07/10/2016,3757985,550.40,ATHLONE CARE LTD
Adults Services,Adult Social Care,Support with Memory and Cognition - adults (18-64),Generic Care Packages SE Team-SMC,Social Care - Homecare,07/10/2016,3757990,"1,181.96",Excelcare (Home Care Division) LTD
Adults Services,Adult Social Care,Support with Memory and Cognition - adults (18-64),Generic Care Packages NW Team -PS,Social Care - Homecare,07/10/2016,3757994,705.48,Excelcare (Home Care Division) LTD
Adults Services,Adult Social Care,Support with Memory and Cognition - adults (18-64),Generic Care Packages SW Team - PS,Social Care - Homecare,07/10/2016,3757999,"1,111.78",Excelcare (Home Care Division) LTD
Adults Services,Adult Social Care,Support with Memory and Cognition - adults (18-64),CLDS Longer Term Support Teams,Social Care - Homecare,07/10/2016,3758002,"1,596.08",Excelcare (Home Care Division) LTD
Adults Services,Adult Social Care,Support with Memory and Cognition - adults (18-64),Generic Care Packages SE Team -PS,Social Care - Residential Care,07/10/2016,3758003,"-1,266.42",OUTLOOK CARE LTD
Adults Services,General Fund/Council Fund,Homelessness,Supporting People Services,SP - Block-Gross - Single Homeless,07/10/2016,3758004,"75,781.05",Salvation Army
Adults Services,General Fund/Council Fund,Homelessness,Supporting People Services,SP - Block-Gross - Mental Health,07/10/2016,3758005,"6,651.25",Providence Row Housing Association
Adults Services,General Fund/Council Fund,Homelessness,Supporting People Services,SP - Block-Gross - Single Homeless,07/10/2016,3758005,"147,492.66",Providence Row Housing Association
Adults Services,General Fund/Council Fund,Homelessness,Supporting People Services,SP - Block-Gross - Learning Disabilities,07/10/2016,3758006,"40,768.62",Outward Housing
Adults Services,General Fund/Council Fund,Homelessness,Supporting People Services,SP - Block-Gross - Domestic Violence,07/10/2016,3758007,"25,722.58",HESTIA HOUSING & SUPPORT
Adults Services,General Fund/Council Fund,Homelessness,Supporting People Services,SP - Block-Gross - Mental Health,07/10/2016,3758007,"57,064.19",HESTIA HOUSING & SUPPORT
Adults Services,General Fund/Council Fund,Homelessness,Supporting People Services,SP - Block-Gross - Y People Risk/Care Lev,07/10/2016,3758008,"12,166.67",Kipper Project
Adults Services,General Fund/Council Fund,Homelessness,Supporting People Services,SP - Block-Gross - Old People-Supp Needs,07/10/2016,3758010,606.67,CIRCLE SUPPORT CONSORTIUM
Adults Services,General Fund/Council Fund,Homelessness,Supporting People Services,SP - Block-Gross - Learning Disabilities,07/10/2016,3758011,"24,139.37",Look Ahead Care & Support Ltd
Adults Services,General Fund/Council Fund,Homelessness,Supporting People Services,SP - Block-Gross - Mental Health,07/10/2016,3758011,"207,772.91",Look Ahead Care & Support Ltd
Adults Services,General Fund/Council Fund,Homelessness,Supporting People Services,SP - Block-Gross - Single Homeless,07/10/2016,3758011,"143,530.83",Look Ahead Care & Support Ltd
Adults Services,General Fund/Council Fund,Homelessness,Supporting People Services,SP - Block-Gross - Y People Risk/Care Lev,07/10/2016,3758011,"62,943.49",Look Ahead Care & Support Ltd
Adults Services,Adult Social Care,Support with Memory and Cognition - adults (18-64),Generic Care Packages NE Team -PS,Social Care - Nursing Care,07/10/2016,3758012,"8,275.64",SANCTUARY CARE LTD
Adults Services,Adult Social Care,Physical Support - adults (18-64),"Failed Care Package Conversion		",Social Care - Extra Care Sheltered Housing,07/10/2016,3758016,"56,424.16",Creative Support
Adults Services,Adult Social Care,Support with Memory and Cognition - adults (18-64),Generic Care Packages SE Team -PS,Social Care - Home Care (Short Term),07/10/2016,3758023,543.24,FOCUS CARE LINK LTD
Adults Services,Adult Social Care,Support with Memory and Cognition - adults (18-64),Generic Care Packages NE Team -PS,Social Care - Homecare,07/10/2016,3758024,611.15,FOCUS CARE LINK LTD
Adults Services,Adult Social Care,Support with Memory and Cognition - adults (18-64),Generic Care Packages SE Team -PS,Social Care - Home Care (Short Term),07/10/2016,3758036,"1,478.82",FOCUS CARE LINK LTD
Adults Services,Adult Social Care,Support with Memory and Cognition - adults (18-64),Generic Care Packages NW Team -PS,Social Care - Home Care (Short Term),07/10/2016,3758045,792.23,FOCUS CARE LINK LTD
Adults Services,Adult Social Care,Support with Memory and Cognition - adults (18-64),Generic Care Packages NE Team -PS,Social Care - Homecare,07/10/2016,3758046,875.22,FOCUS CARE LINK LTD
Adults Services,Adult Social Care,Support with Memory and Cognition - adults (18-64),Generic Care Packages SW Team - PS,Social Care - Homecare,07/10/2016,3758048,535.70,FOCUS CARE LINK LTD
Adults Services,Adult Social Care,Support with Memory and Cognition - adults (18-64),Generic Care Packages NE Team -PS,Social Care - Homecare,07/10/2016,3758056,845.04,FOCUS CARE LINK LTD
Adults Services,Adult Social Care,Support with Memory and Cognition - adults (18-64),Generic Care Packages SW Team - PS,Social Care - Homecare,07/10/2016,3758063,"1,400.65",FOCUS CARE LINK LTD
Adults Services,Adult Social Care,Support with Memory and Cognition - adults (18-64),Generic Care Packages SE Team -PS,Social Care - Homecare,07/10/2016,3758064,558.33,FOCUS CARE LINK LTD
Adults Services,Adult Social Care,Support with Memory and Cognition - adults (18-64),Generic Care Packages SE Team -PS,Social Care - Nursing Care,07/10/2016,3758066,"2,117.61",Bennetts Castlle Care Home
Adults Services,Adult Social Care,Support with Memory and Cognition - adults (18-64),Generic Care Packages NE Team -PS,Social Care - Home Care (Short Term),07/10/2016,3758071,939.98,SEVACARE UK LTD
Adults Services,Adult Social Care,Support with Memory and Cognition - adults (18-64),"Generic Care Packages SW Team -SS		",Social Care - Homecare,07/10/2016,3758078,739.90,SEVACARE UK LTD
Adults Services,Adult Social Care,Support with Memory and Cognition - adults (18-64),Generic Care Packages SE Team -PS,Social Care - Homecare,07/10/2016,3758079,"1,162.70",SEVACARE UK LTD
Adults Services,Adult Social Care,Support with Memory and Cognition - adults (18-64),Generic Care Packages SW Team - PS,Social Care - Homecare,07/10/2016,3758080,"1,102.30",SEVACARE UK LTD
Adults Services,Adult Social Care,Support with Memory and Cognition - adults (18-64),Generic Care Packages NW Team -PS,Social Care - Homecare,07/10/2016,3758083,"1,124.95",SEVACARE UK LTD
Adults Services,Adult Social Care,Support with Memory and Cognition - adults (18-64),Generic Care Packages SE Team -PS,Social Care - Home Care (Short Term),07/10/2016,3758084,"1,268.40",SEVACARE UK LTD
Adults Services,Adult Social Care,Support with Memory and Cognition - adults (18-64),Generic Care Packages SW Team - PS,Social Care - Homecare,07/10/2016,3758092,575.46,Excelcare (Home Care Division) LTD
Adults Services,Adult Social Care,Support with Memory and Cognition - adults (18-64),Generic Care Packages SE Team -PS,Social Care - Homecare,07/10/2016,3758094,534.61,Excelcare (Home Care Division) LTD
Adults Services,Adult Social Care,Support with Memory and Cognition - adults (18-64),Generic Care Packages NW Team -PS,Social Care - Homecare,07/10/2016,3758104,672.57,Excelcare (Home Care Division) LTD
Adults Services,Adult Social Care,Support with Memory and Cognition - adults (18-64),Generic Care Packages NW Team -PS,Social Care - Homecare,07/10/2016,3758105,"1,205.83",Excelcare (Home Care Division) LTD
Adults Services,Adult Social Care,Support with Memory and Cognition - adults (18-64),Generic Care Packages SE Team -PS,Social Care - Residential Care,07/10/2016,3758107,"27,298.57",OUTLOOK CARE LTD
Adults Services,Adult Social Care,Support with Memory and Cognition - adults (18-64),Generic Care Packages NE Team -PS,Social Care - Homecare,07/10/2016,3758108,"2,021.60",COMMUNITY CARE CONSORTIUM
Adults Services,Adult Social Care,Support with Memory and Cognition - adults (18-64),Generic Care Packages SE Team -PS,Social Care - Homecare,07/10/2016,3758109,"1,677.70",COMMUNITY CARE CONSORTIUM
Adults Services,Adult Social Care,Support with Memory and Cognition - adults (18-64),CLDS Longer Term Support Teams,Social Care - Homecare,07/10/2016,3758110,"1,354.60",COMMUNITY CARE CONSORTIUM
Adults Services,Adult Social Care,Support with Memory and Cognition - adults (18-64),Generic Care Packages SW Team-SMC,Social Care - Homecare,07/10/2016,3758111,"1,322.40",COMMUNITY CARE CONSORTIUM
Adults Services,Adult Social Care,Support with Memory and Cognition - adults (18-64),CLDS Longer Term Support Teams,Social Care - Homecare,07/10/2016,3758112,"1,117.20",COMMUNITY CARE CONSORTIUM
Adults Services,Adult Social Care,Support with Memory and Cognition - adults (18-64),CLDS Longer Term Support Teams,Social Care - Homecare,07/10/2016,3758113,"1,117.20",COMMUNITY CARE CONSORTIUM
Adults Services,Adult Social Care,Support with Memory and Cognition - adults (18-64),CLDS Longer Term Support Teams,Social Care - Homecare,07/10/2016,3758114,991.80,COMMUNITY CARE CONSORTIUM
Adults Services,Adult Social Care,Support with Memory and Cognition - adults (18-64),Generic Care Packages SE Team -PS,Social Care - Homecare,07/10/2016,3758115,841.70,COMMUNITY CARE CONSORTIUM
Adults Services,Adult Social Care,Support with Memory and Cognition - adults (18-64),Generic Care Packages SE Team -PS,Social Care - Homecare,07/10/2016,3758116,796.10,COMMUNITY CARE CONSORTIUM
Adults Services,Adult Social Care,Support with Memory and Cognition - adults (18-64),CLDS Longer Term Support Teams,Social Care - Homecare,07/10/2016,3758117,782.80,COMMUNITY CARE CONSORTIUM
Adults Services,Adult Social Care,Support with Memory and Cognition - adults (18-64),CLDS Longer Term Support Teams,Social Care - Homecare,07/10/2016,3758118,760.00,COMMUNITY CARE CONSORTIUM
Adults Services,Adult Social Care,Support with Memory and Cognition - adults (18-64),Cmht For Older People,Social Care - Homecare,07/10/2016,3758119,706.80,COMMUNITY CARE CONSORTIUM
Adults Services,Adult Social Care,Support with Memory and Cognition - adults (18-64),CLDS Longer Term Support Teams,Social Care - Homecare,07/10/2016,3758120,665.00,COMMUNITY CARE CONSORTIUM
Adults Services,Adult Social Care,Support with Memory and Cognition - adults (18-64),CLDS Longer Term Support Teams,Social Care - Homecare,07/10/2016,3758121,661.20,COMMUNITY CARE CONSORTIUM
Adults Services,Adult Social Care,Support with Memory and Cognition - adults (18-64),Generic Care Packages NW Team -PS,Social Care - Homecare,07/10/2016,3758122,653.60,COMMUNITY CARE CONSORTIUM
Adults Services,Adult Social Care,Support with Memory and Cognition - adults (18-64),Generic Care Packages SE Team -PS,Social Care - Homecare,07/10/2016,3758123,640.30,COMMUNITY CARE CONSORTIUM
Adults Services,Adult Social Care,Support with Memory and Cognition - adults (18-64),CLDS Longer Term Support Teams,Social Care - Homecare,07/10/2016,3758124,630.80,COMMUNITY CARE CONSORTIUM
Adults Services,Adult Social Care,Physical Support - adults (18-64),"Failed Care Package Conversion		",Social Care - Homecare,07/10/2016,3758125,627.00,COMMUNITY CARE CONSORTIUM
Adults Services,Adult Social Care,Support with Memory and Cognition - adults (18-64),CLDS Longer Term Support Teams,Social Care - Homecare,07/10/2016,3758126,600.40,COMMUNITY CARE CONSORTIUM
Adults Services,Adult Social Care,Support with Memory and Cognition - adults (18-64),CLDS Longer Term Support Teams,Social Care - Homecare,07/10/2016,3758127,592.80,COMMUNITY CARE CONSORTIUM
Adults Services,Adult Social Care,Support with Memory and Cognition - adults (18-64),Generic Care Packages NW Team -PS,Social Care - Homecare,07/10/2016,3758128,562.40,COMMUNITY CARE CONSORTIUM
Adults Services,Adult Social Care,Support with Memory and Cognition - adults (18-64),Generic Care Packages NE Team -PS,Social Care - Homecare,07/10/2016,3758129,547.20,COMMUNITY CARE CONSORTIUM
Adults Services,Adult Social Care,Support with Memory and Cognition - adults (18-64),CLDS Longer Term Support Teams,Social Care - Homecare,07/10/2016,3758130,532.00,COMMUNITY CARE CONSORTIUM
Adults Services,Adult Social Care,Physical Support - adults (18-64),"Failed Care Package Conversion		",Social Care - Homecare,07/10/2016,3758132,507.30,COMMUNITY CARE CONSORTIUM
Adults Services,Adult Social Care,Support with Memory and Cognition - adults (18-64),Generic Care Packages SE Team -PS,Social Care - Residential Care,07/10/2016,3758173,"-9,408.10",CARE UK COMMUNITY PARTNERSHIPS LTD
Adults Services,Adult Social Care,Support with Memory and Cognition - adults (18-64),Generic Care Packages SE Team -PS,Social Care - Residential Care,07/10/2016,3758174,"-9,629.10",CARE UK COMMUNITY PARTNERSHIPS LTD
Adults Services,Adult Social Care,Support with Memory and Cognition - adults (18-64),Generic Care Packages NE Team -PS,Social Care - Homecare,07/10/2016,3758179,"1,256.58",MiHOMECARE LIMITED
Adults Services,Adult Social Care,Support with Memory and Cognition - adults (18-64),Generic Care Packages NW Team -PS,Social Care - Homecare,07/10/2016,3758187,643.00,MiHOMECARE LIMITED
Adults Services,Adult Social Care,Support with Memory and Cognition - adults (18-64),Generic Care Packages SE Team -PS,Social Care - Residential Care,07/10/2016,3758190,"9,629.10",CARE UK COMMUNITY PARTNERSHIPS LTD
Adults Services,Adult Social Care,Support with Memory and Cognition - adults (18-64),Generic Care Packages SE Team -PS,Social Care - Residential Care,07/10/2016,3758191,"9,578.18",CARE UK COMMUNITY PARTNERSHIPS LTD
Adults Services,Adult Social Care,Support with Memory and Cognition - adults (18-64),Generic Care Packages SW Team - PS,Social Care - Homecare,07/10/2016,3758195,951.30,St Hilda's East Community Centre
Adults Services,Adult Social Care,Support with Memory and Cognition - adults (18-64),Generic Care Packages NW Team -PS,Social Care - Homecare,07/10/2016,3758196,951.30,St Hilda's East Community Centre
Adults Services,Adult Social Care,Support with Memory and Cognition - adults (18-64),Generic Care Packages SW Team-SMC,Social Care - Homecare,07/10/2016,3758197,"1,313.70",St Hilda's East Community Centre
Adults Services,Adult Social Care,Support with Memory and Cognition - adults (18-64),Generic Care Packages SE Team -PS,Social Care - Homecare,07/10/2016,3758202,709.70,St Hilda's East Community Centre
Adults Services,Adult Social Care,Support with Memory and Cognition - adults (18-64),Generic Care Packages SE Team -PS,Social Care - Residential Care,07/10/2016,3758207,"1,904.70",RUNWOOD HOMES PLC
Adults Services,Adult Social Care,Support with Memory and Cognition - adults (18-64),Generic Care Packages NW Team -PS,Social Care - Residential Care,07/10/2016,3758208,"1,925.96",RUNWOOD HOMES PLC
Adults Services,Adult Social Care,Support with Memory and Cognition - adults (18-64),Generic Care Packages SE Team-SMC,Social Care - Residential Care,07/10/2016,3758209,"1,576.76",RUNWOOD HOMES PLC
Adults Services,Adult Social Care,Support with Memory and Cognition - adults (18-64),Generic Care Packages SE Team -PS,Social Care - Homecare,07/10/2016,3758212,668.99,SANCTUARY HOME CARE LIMITED
Adults Services,Adult Social Care,Support with Memory and Cognition - adults (18-64),Generic Care Packages SE Team -PS,Social Care - Homecare,07/10/2016,3758213,668.98,SANCTUARY HOME CARE LIMITED
Adults Services,Adult Social Care,Support with Memory and Cognition - adults (18-64),Generic Care Packages SE Team -PS,Social Care - Homecare,07/10/2016,3758215,668.98,SANCTUARY HOME CARE LIMITED
Adults Services,Adult Social Care,Support with Memory and Cognition - adults (18-64),Generic Care Packages NW Team -PS,Social Care - Homecare,07/10/2016,3758222,"1,217.06",SANCTUARY HOME CARE LIMITED
Adults Services,Adult Social Care,Support with Memory and Cognition - adults (18-64),Generic Care Packages NE Team -PS,Social Care - Homecare,07/10/2016,3758226,531.96,SANCTUARY HOME CARE LIMITED
Adults Services,Adult Social Care,Support with Memory and Cognition - adults (18-64),Generic Care Packages SE Team -PS,Social Care - Homecare,07/10/2016,3758228,"1,715.18",Soma Healthcare Ltd
Adults Services,Adult Social Care,Support with Memory and Cognition - adults (18-64),Generic Care Packages NW Team -PS,Social Care - Homecare,07/10/2016,3758232,"2,279.20",AQUAFLO CARE LTD
Adults Services,Adult Social Care,Support with Memory and Cognition - adults (18-64),Generic Care Packages SW Team - PS,Social Care - Homecare,07/10/2016,3758233,845.60,St Hilda's East Community Centre
Adults Services,Adult Social Care,Support with Memory and Cognition - adults (18-64),Generic Care Packages NE Team-SMC,Social Care - Prevention & Support,07/10/2016,3758426,611.53,Look Ahead Care & Support Ltd
Adults Services,No Service Specified,No Division Specified,Community Equipment Store,Community Equipment  Supplies - Aids and Appliances,07/10/2016,3758485,"7,594.18",Jaypharm Chemist
Adults Services,No Service Specified,No Division Specified,Capital-Minor Works (SC),Building Works - Main Works,10/10/2016,3569159,"3,745.00",Tower Hamlets Schools LTD
Adults Services,Adult Social Care,Support with Memory and Cognition - adults (18-64),CLDS Longer Term Support Teams,Social Care - Supported Living,10/10/2016,3739754,"7,611.00",SPENCER & ARLINGTON LTD
Adults Services,Adult Social Care,Support with Memory and Cognition - adults (18-64),CLDS Longer Term Support Teams,Social Care - Homecare,10/10/2016,3739836,"1,100.55",Outward Housing
Adults Services,Adult Social Care,Support with Memory and Cognition - adults (18-64),CLDS Longer Term Support Teams,Social Care - Homecare,10/10/2016,3739838,698.61,Outward Housing
Adults Services,Adult Social Care,Support with Memory and Cognition - adults (18-64),Cmht Stepney / Wapping,Social Care - Homecare,10/10/2016,3739839,784.74,Outward Housing
Adults Services,Adult Social Care,Support with Memory and Cognition - adults (18-64),CLDS Longer Term Support Teams,Social Care - Homecare,10/10/2016,3739840,"1,090.98",Outward Housing
Adults Services,Adult Social Care,Support with Memory and Cognition - adults (18-64),CLDS Longer Term Support Teams,Social Care - Homecare,10/10/2016,3739842,"2,411.64",Outward Housing
Adults Services,Adult Social Care,Support with Memory and Cognition - adults (18-64),CLDS Longer Term Support Teams,Social Care - Homecare,10/10/2016,3739843,861.30,Outward Housing
Adults Services,Adult Social Care,Support with Memory and Cognition - adults (18-64),CLDS Longer Term Support Teams,Social Care - Homecare,10/10/2016,3739844,918.72,Outward Housing
Adults Services,Adult Social Care,Support with Memory and Cognition - adults (18-64),CLDS Longer Term Support Teams,Social Care - Homecare,10/10/2016,3739845,612.48,Outward Housing
Adults Services,Adult Social Care,Support with Memory and Cognition - adults (18-64),CLDS Longer Term Support Teams,Social Care - Homecare,10/10/2016,3739850,"1,224.96",Outward Housing
Adults Services,Adult Social Care,Support with Memory and Cognition - adults (18-64),CLDS Longer Term Support Teams,Social Care - Prevention & Support,10/10/2016,3739851,"1,454.64",Outward Housing
Adults Services,Adult Social Care,Support with Memory and Cognition - adults (18-64),CLDS Longer Term Support Teams,Social Care - Homecare,10/10/2016,3739852,"1,186.68",Outward Housing
Adults Services,Adult Social Care,Support with Memory and Cognition - adults (18-64),CLDS Longer Term Support Teams,Social Care - Homecare,10/10/2016,3739855,765.60,Outward Housing
Adults Services,Adult Social Care,Support with Memory and Cognition - adults (18-64),CLDS Longer Term Support Teams,Social Care - Homecare,10/10/2016,3739857,689.04,Outward Housing
Adults Services,Adult Social Care,Support with Memory and Cognition - adults (18-64),CLDS Longer Term Support Teams,Social Care - Prevention & Support,10/10/2016,3739861,"1,148.40",Outward Housing
Adults Services,Adult Social Care,Support with Memory and Cognition - adults (18-64),CLDS Longer Term Support Teams,Social Care - Homecare,10/10/2016,3739899,612.48,Outward Housing
Adults Services,Adult Social Care,Support with Memory and Cognition - adults (18-64),CLDS Longer Term Support Teams,Social Care - Homecare,10/10/2016,3739900,"1,071.84",Outward Housing
Adults Services,Adult Social Care,Support with Memory and Cognition - adults (18-64),Generic Care Packages SE Team -SI,Social Care - Prevention & Support,10/10/2016,3749100,"1,396.02",Look Ahead Care & Support Ltd
Adults Services,Adult Social Care,Support with Memory and Cognition - adults (18-64),Generic Care Packages NE Team-SMC,Social Care - Prevention & Support,10/10/2016,3749146,"1,293.00",Look Ahead Care & Support Ltd
Adults Services,Adult Social Care,Support with Memory and Cognition - adults (18-64),CLDS Longer Term Support Teams,Social Care - Supported Living,10/10/2016,3752166,"3,000.00",BAXTER HOUSE SUPPORTED LIVING PROJECT
Adults Services,Adult Social Care,Support with Memory and Cognition - adults (18-64),CLDS Longer Term Support Teams,Social Care - Supported Living,10/10/2016,3752169,"3,428.58",BAXTER HOUSE SUPPORTED LIVING PROJECT
Adults Services,Adult Social Care,Support with Memory and Cognition - adults (18-64),Generic Care Packages SW Team - PS,Social Care - Nursing Care,10/10/2016,3752988,"4,258.93",Heathlands Care Home
Adults Services,Adult Social Care,Support with Memory and Cognition - adults (18-64),Generic Care Packages SE Team -PS,Social Care - Nursing Care,10/10/2016,3752989,"3,401.79",Heathlands Care Home
Adults Services,Adult Social Care,Support with Memory and Cognition - adults (18-64),CLDS Longer Term Support Teams,Social Care - Homecare,10/10/2016,3753233,"1,454.64",Outward Housing
Adults Services,Adult Social Care,Support with Memory and Cognition - adults (18-64),Generic Care Packages NW Team -PS,Social Care - Residential Care,10/10/2016,3754447,"3,257.14",Federation of Jewish Services
Adults Services,No Service Specified,No Division Specified,Capital-Minor Works (SC),Building Works - Main Works,10/10/2016,3758543,"30,028.00",Jingle Jungle Nursery
Adults Services,No Service Specified,No Division Specified,Community Equipment Store,Community Equipment  Supplies - Aids and Appliances,10/10/2016,3759121,"1,075.20",Laville Ltd t/a BRITANNIA PHARMACY
Adults Services,No Service Specified,No Division Specified,Community Equipment Store,Community Equipment  Supplies - Aids and Appliances,10/10/2016,3759161,"1,098.02",MILDCARE LTD
Adults Services,No Service Specified,No Division Specified,Community Equipment Store,Community Equipment  Supplies - Aids and Appliances,10/10/2016,3759162,668.73,D M B CHEMIST
Adults Services,No Service Specified,No Division Specified,Community Equipment Store,Community Equipment  Supplies - Aids and Appliances,10/10/2016,3759187,"1,348.38",SINCLAIR PHARMACY
Adults Services,No Service Specified,No Division Specified,Community Equipment Store,Community Equipment  Supplies - Aids and Appliances,10/10/2016,3759214,737.00,FLORIDA PHARMACY
Adults Services,No Service Specified,No Division Specified,Community Equipment Store,Community Equipment  Supplies - Aids and Appliances,10/10/2016,3759219,"4,052.20",Cubitt Town Pharmacy
Adults Services,No Service Specified,No Division Specified,Capital-Minor Works (SC),Building Works - Main Works,12/10/2016,3584122,"163,353.69",Tower Hamlets Schools LTD
Adults Services,Adult Social Care,Support with Memory and Cognition - adults (18-64),Integration Project,Social Care - Nursing Care,12/10/2016,3644608,"5,552.51",Barts Health NHS Trust
Adults Services,Adult Social Care,Physical Support - adults (18-64),Public Health � Healthy Young Adults,Third Party Payments - Other Establishments,12/10/2016,3699610,"-29,059.20",Central and NW London NHS Foundation
Adults Services,Adult Social Care,Physical Support - adults (18-64),Public Health � Healthy Young Adults,Third Party Payments - Other Establishments,12/10/2016,3703207,"22,963.51",Central and NW London NHS Foundation
Adults Services,Adult Social Care,Physical Support - adults (18-64),Public Health � Healthy Young Adults,Third Party Payments - Other Establishments,12/10/2016,3724323,"22,948.84",Central and NW London NHS Foundation
Adults Services,Adult Social Care,Physical Support - adults (18-64),Public Health � Healthy Young Adults,Third Party Payments - Other Establishments,12/10/2016,3727455,"-38,660.56",Barts Health NHS Trust
Adults Services,Adult Social Care,Support with Memory and Cognition - adults (18-64),Cmht Bethnal Green,Social Care - Supported Living,12/10/2016,3737449,"1,154.88",Look Ahead Care & Support Ltd
Adults Services,Adult Social Care,Support with Memory and Cognition - adults (18-64),Cmht Bethnal Green,Social Care - Supported Living,12/10/2016,3737450,"1,138.98",Look Ahead Care & Support Ltd
Adults Services,Adult Social Care,Support with Memory and Cognition - adults (18-64),Cmht Bethnal Green,Social Care - Supported Living,12/10/2016,3737451,929.70,Look Ahead Care & Support Ltd
Adults Services,Adult Social Care,Support with Memory and Cognition - adults (18-64),Cmht Bethnal Green,Social Care - Supported Living,12/10/2016,3737452,925.38,Look Ahead Care & Support Ltd
Adults Services,Adult Social Care,Support with Memory and Cognition - adults (18-64),Cmht Iod / Poplar South,Social Care - Supported Living,12/10/2016,3737453,"1,018.38",Look Ahead Care & Support Ltd
Adults Services,Adult Social Care,Physical Support - adults (18-64),Public Health � Healthy Young Adults,Third Party Payments - Other Establishments,12/10/2016,3737586,"-3,629.07",Central and NW London NHS Foundation
Adults Services,Adult Social Care,Support with Memory and Cognition - adults (18-64),Cmht Stepney / Wapping,Social Care - Supported Living,12/10/2016,3739815,"1,019.46",Look Ahead Care & Support Ltd
Adults Services,Adult Social Care,Support with Memory and Cognition - adults (18-64),Cmht Iod / Poplar South,Social Care - Supported Living,12/10/2016,3739816,"1,278.18",Look Ahead Care & Support Ltd
Adults Services,Adult Social Care,Support with Memory and Cognition - adults (18-64),Generic Care Packages SE Team -SP,Non Staff Transport Costs - Client Transport Costs,12/10/2016,3739862,600.00,Abacus Ambulance Service
Adults Services,Adult Social Care,Physical Support - adults (18-64),Public Health � Healthy Children & Adolescents,Third Party Payments - Other Establishments,12/10/2016,3740241,"54,344.28",Barts Health NHS Trust
Adults Services,Adult Social Care,Physical Support - adults (18-64),Public Health � Healthy Children & Adolescents,Third Party Payments - Other Establishments,12/10/2016,3740327,"54,344.28",Barts Health NHS Trust
Adults Services,Adult Social Care,Physical Support - adults (18-64),Public Health � Healthy Children & Adolescents,Third Party Payments - Other Establishments,12/10/2016,3740350,"54,344.28",Barts Health NHS Trust
Adults Services,Adult Social Care,Physical Support - adults (18-64),Public Health � Healthy Young Adults,Payments to Private Contractors - Other Contractors,12/10/2016,3746832,"2,400.00",London Borough of Haringey
Adults Services,Public Health,Children 519 Public Health Programmes,Public Health Team 1,Third Party Payments - Other Establishments,12/10/2016,3746929,"-27,000.00",Barts Health NHS Trust
Adults Services,Adult Social Care,Physical Support - adults (18-64),"Failed Care Package Conversion		",Social Care - Learning Disabilities,12/10/2016,3747546,"82,930.64",East London NHS Foundation Trust
Adults Services,Adult Social Care,Physical Support - adults (18-64),Public Health � Healthy 0-5 year olds,Third Party Payments - Other Establishments,12/10/2016,3749021,"21,964.50",Barts Health NHS Trust
Adults Services,Adult Social Care,Support with Memory and Cognition - adults (18-64),Generic Care Packages SW Team - PS,Social Care - Residential Care,12/10/2016,3752828,"2,010.90",LUGANO
Adults Services,Adult Social Care,Support with Memory and Cognition - adults (18-64),Cmht Iod / Poplar South,Social Care - Prevention & Support,12/10/2016,3755643,925.38,Look Ahead Care & Support Ltd
Adults Services,Adult Social Care,Physical Support - adults (18-64),Access to Resources,Meeting Expenses,12/10/2016,3755863,550.00,De Vere Venues Ltd
Adults Services,Adult Social Care,Support with Memory and Cognition - adults (18-64),CLDS Longer Term Support Teams,Social Care - Respite Care,12/10/2016,3759732,"2,457.00",The Camden Society
Adults Services,Adult Social Care,Physical Support - adults (18-64),"Failed Care Package Conversion		",Social Care - Learning Disabilities,12/10/2016,3759733,"53,453.38",The Camden Society
Adults Services,Adult Social Care,Support with Memory and Cognition - adults (18-64),CLDS Longer Term Support Teams,Social Care - Homecare,12/10/2016,3759734,"2,517.28",Look Ahead Care & Support Ltd
Adults Services,Adult Social Care,Support with Memory and Cognition - adults (18-64),CLDS Longer Term Support Teams,Social Care - Homecare,12/10/2016,3759735,"3,516.48",Look Ahead Care & Support Ltd
Adults Services,Adult Social Care,Support with Memory and Cognition - adults (18-64),CLDS Longer Term Support Teams,Social Care - Homecare,12/10/2016,3759736,548.02,Look Ahead Care & Support Ltd
Adults Services,Adult Social Care,Physical Support - adults (18-64),"Failed Care Package Conversion		",Social Care - Others,12/10/2016,3759736,"3,607.82",Look Ahead Care & Support Ltd
Adults Services,Adult Social Care,Support with Memory and Cognition - adults (18-64),CLDS Longer Term Support Teams,Social Care - Homecare,12/10/2016,3759737,"4,155.84",Look Ahead Care & Support Ltd
Adults Services,Adult Social Care,Physical Support - adults (18-64),"Failed Care Package Conversion		",Social Care - Others,12/10/2016,3759738,"2,345.33",Look Ahead Care & Support Ltd
Adults Services,Adult Social Care,Support with Memory and Cognition - adults (18-64),CLDS Longer Term Support Teams,Social Care - Homecare,12/10/2016,3759739,"1,199.64",Look Ahead Care & Support Ltd
Adults Services,Adult Social Care,Support with Memory and Cognition - adults (18-64),CLDS Longer Term Support Teams,Social Care - Homecare,12/10/2016,3759740,"1,199.64",Look Ahead Care & Support Ltd
Adults Services,Adult Social Care,Support with Memory and Cognition - adults (18-64),CLDS Longer Term Support Teams,Social Care - Homecare,12/10/2016,3759741,"1,199.64",Look Ahead Care & Support Ltd
Adults Services,Adult Social Care,Support with Memory and Cognition - adults (18-64),CLDS Longer Term Support Teams,Social Care - Homecare,12/10/2016,3759742,"1,060.15",Look Ahead Care & Support Ltd
Adults Services,Adult Social Care,Support with Memory and Cognition - adults (18-64),CLDS Longer Term Support Teams,Social Care - Homecare,12/10/2016,3759743,"4,155.84",Look Ahead Care & Support Ltd
Adults Services,Adult Social Care,Support with Memory and Cognition - adults (18-64),Generic Care Packages NE Team -PS,Social Care - Nursing Care,12/10/2016,3759754,"3,300.00",St Georges Nursing Home
Adults Services,Adult Social Care,Support with Memory and Cognition - adults (18-64),CLDS Longer Term Support Teams,Social Care - Day Care,12/10/2016,3759756,"2,720.00",ST MARKS DAY SERVICE
Adults Services,Adult Social Care,Support with Memory and Cognition - adults (18-64),Generic Care Packages NW Team-SMC,Social Care - Nursing Care,12/10/2016,3759757,"4,687.50",Loughton Care Centre
Adults Services,Adult Social Care,Support with Memory and Cognition - adults (18-64),Generic Care Packages NE Team -PS,Social Care - Prevention & Support,12/10/2016,3759759,"2,040.00",City Inn Express Limited
Adults Services,Adult Social Care,Support with Memory and Cognition - adults (18-64),Generic Care Packages SW Team - PS,Social Care - Prevention & Support,12/10/2016,3759759,"1,320.00",City Inn Express Limited
Adults Services,Adult Social Care,Support with Memory and Cognition - adults (18-64),Generic Care Packages SE Team -PS,Social Care - Homecare,12/10/2016,3759760,"1,117.88",Carewatch Newham Ltd
Adults Services,Adult Social Care,Support with Memory and Cognition - adults (18-64),Generic Care Packages SW Team - PS,Social Care - Homecare,12/10/2016,3759762,"1,117.72",Carewatch Newham Ltd
Adults Services,Adult Social Care,Physical Support - adults (18-64),"Failed Care Package Conversion		",Social Care - Homecare,12/10/2016,3759764,700.74,Carewatch Newham Ltd
Adults Services,Adult Social Care,Support with Memory and Cognition - adults (18-64),Generic Care Packages NW Team -PS,Social Care - Home Care (Short Term),12/10/2016,3759768,544.62,Carewatch Newham Ltd
Adults Services,Adult Social Care,Support with Memory and Cognition - adults (18-64),Generic Care Packages SW Team - PS,Social Care - Homecare,12/10/2016,3759770,501.64,Carewatch Newham Ltd
Adults Services,Adult Social Care,Support with Memory and Cognition - adults (18-64),Generic Care Packages SE Team -PS,Social Care - Homecare,12/10/2016,3759771,902.86,Carewatch Newham Ltd
Adults Services,Adult Social Care,Support with Memory and Cognition - adults (18-64),Generic Care Packages NE Team -PS,Social Care - Home Care (Short Term),12/10/2016,3759774,702.32,Carewatch Newham Ltd
Adults Services,Adult Social Care,Support with Memory and Cognition - adults (18-64),Generic Care Packages NE Team -PS,Social Care - Homecare,12/10/2016,3759775,594.78,Carewatch Newham Ltd
Adults Services,Adult Social Care,Support with Memory and Cognition - adults (18-64),Cmht Iod / Poplar South,Social Care - Homecare,12/10/2016,3759780,"1,433.00",Carewatch Newham Ltd
Adults Services,Adult Social Care,Support with Memory and Cognition - adults (18-64),Generic Care Packages NW Team -PS,Social Care - Homecare,12/10/2016,3759786,"1,003.10",Carewatch Newham Ltd
Adults Services,Adult Social Care,Support with Memory and Cognition - adults (18-64),Generic Care Packages NE Team -PS,Social Care - Homecare,12/10/2016,3759787,601.86,Carewatch Newham Ltd
Adults Services,Adult Social Care,Support with Memory and Cognition - adults (18-64),Generic Care Packages NW Team -PS,Social Care - Homecare,12/10/2016,3759791,637.74,Carewatch Newham Ltd
Adults Services,Adult Social Care,Support with Memory and Cognition - adults (18-64),Generic Care Packages SW Team - PS,Social Care - Homecare,12/10/2016,3759792,559.08,Carewatch Newham Ltd
Adults Services,Adult Social Care,Support with Memory and Cognition - adults (18-64),Generic Care Packages NE Team -PS,Social Care - Homecare,12/10/2016,3759794,896.22,Carewatch Newham Ltd
Adults Services,Adult Social Care,Support with Memory and Cognition - adults (18-64),Generic Care Packages SE Team -PS,Social Care - Homecare,12/10/2016,3759799,673.58,Carewatch Newham Ltd
Adults Services,Adult Social Care,Support with Memory and Cognition - adults (18-64),Generic Care Packages NW Team -PS,Social Care - Homecare,12/10/2016,3759803,902.86,Carewatch Newham Ltd
Adults Services,Adult Social Care,Support with Memory and Cognition - adults (18-64),Generic Care Packages NW Team -PS,Social Care - Homecare,12/10/2016,3759809,623.40,Carewatch Newham Ltd
Adults Services,Adult Social Care,Support with Memory and Cognition - adults (18-64),Generic Care Packages SW Team - PS,Social Care - Homecare,12/10/2016,3759815,"1,354.40",Carewatch Newham Ltd
Adults Services,Adult Social Care,Support with Memory and Cognition - adults (18-64),CLDS Longer Term Support Teams,Social Care - Residential Care,12/10/2016,3759823,"9,914.79",Craegmoor Roseneath Avenue
Adults Services,Adult Social Care,Support with Memory and Cognition - adults (18-64),CLDS Longer Term Support Teams,Social Care - Day Care,12/10/2016,3759824,540.00,I C M FOUNDATION CIC - CORE NEWS PROJECT
Adults Services,Adult Social Care,Support with Memory and Cognition - adults (18-64),CLDS Longer Term Support Teams,Social Care - Day Care,12/10/2016,3759825,540.00,I C M FOUNDATION CIC - CORE NEWS PROJECT
Adults Services,Adult Social Care,Support with Memory and Cognition - adults (18-64),CLDS Longer Term Support Teams,Social Care - Day Care,12/10/2016,3759827,540.00,I C M FOUNDATION CIC - CORE NEWS PROJECT
Adults Services,Adult Social Care,Support with Memory and Cognition - adults (18-64),Generic Care Packages SE Team -PS,Social Care - Homecare,12/10/2016,3759841,826.52,Excelcare (Home Care Division) LTD
Adults Services,Adult Social Care,Support with Memory and Cognition - adults (18-64),Generic Care Packages SW Team - PS,Social Care - Home Care (Short Term),12/10/2016,3759853,"1,011.87",Excelcare (Home Care Division) LTD
Adults Services,Adult Social Care,Support with Memory and Cognition - adults (18-64),Cmht For Older People,Social Care - Homecare,12/10/2016,3759854,"1,460.92",Excelcare (Home Care Division) LTD
Adults Services,Adult Social Care,Support with Memory and Cognition - adults (18-64),Generic Care Packages SE Team -PS,Social Care - Homecare,12/10/2016,3759857,798.00,Excelcare (Home Care Division) LTD
Adults Services,Adult Social Care,Support with Memory and Cognition - adults (18-64),Generic Care Packages SE Team -PS,Social Care - Homecare,12/10/2016,3759860,541.72,Excelcare (Home Care Division) LTD
Adults Services,Adult Social Care,Support with Memory and Cognition - adults (18-64),Generic Care Packages NW Team -SP,Social Care - Homecare,12/10/2016,3759861,"1,126.10",Excelcare (Home Care Division) LTD
Adults Services,Adult Social Care,Support with Memory and Cognition - adults (18-64),Generic Care Packages NW Team -PS,Social Care - Homecare,12/10/2016,3759862,"1,251.60",Excelcare (Home Care Division) LTD
Adults Services,Adult Social Care,Support with Memory and Cognition - adults (18-64),Generic Care Packages SE Team -PS,Social Care - Homecare,12/10/2016,3759869,783.82,Excelcare (Home Care Division) LTD
Adults Services,Adult Social Care,Support with Memory and Cognition - adults (18-64),Generic Care Packages SW Team - PS,Social Care - Homecare,12/10/2016,3759872,"1,202.30",Excelcare (Home Care Division) LTD
Adults Services,Adult Social Care,Support with Memory and Cognition - adults (18-64),Generic Care Packages SW Team - PS,Social Care - Homecare,12/10/2016,3759875,726.82,Excelcare (Home Care Division) LTD
Adults Services,Adult Social Care,Support with Memory and Cognition - adults (18-64),Generic Care Packages SW Team - PS,Social Care - Homecare,12/10/2016,3759879,691.04,Excelcare (Home Care Division) LTD
Adults Services,Adult Social Care,Support with Memory and Cognition - adults (18-64),Generic Care Packages NE Team -PS,Social Care - Homecare,12/10/2016,3759881,"1,026.42",Excelcare (Home Care Division) LTD
Adults Services,Adult Social Care,Support with Memory and Cognition - adults (18-64),Generic Care Packages SE Team -PS,Social Care - Home Care (Short Term),12/10/2016,3759886,"1,596.00",Excelcare (Home Care Division) LTD
Adults Services,Adult Social Care,Support with Memory and Cognition - adults (18-64),Generic Care Packages SW Team - PS,Social Care - Homecare,12/10/2016,3759890,691.28,Excelcare (Home Care Division) LTD
Adults Services,Adult Social Care,Support with Memory and Cognition - adults (18-64),Generic Care Packages NE Team -PS,Social Care - Homecare,12/10/2016,3759892,888.44,Excelcare (Home Care Division) LTD
Adults Services,Adult Social Care,Support with Memory and Cognition - adults (18-64),Generic Care Packages SE Team -PS,Social Care - Homecare,12/10/2016,3759893,605.80,Excelcare (Home Care Division) LTD
Adults Services,Adult Social Care,Support with Memory and Cognition - adults (18-64),Generic Care Packages NW Team -PS,Social Care - Homecare,12/10/2016,3759896,"2,265.80",Excelcare (Home Care Division) LTD
Adults Services,Adult Social Care,Support with Memory and Cognition - adults (18-64),Generic Care Packages SW Team - PS,Social Care - Homecare,12/10/2016,3759907,"4,836.31",Excelcare (Home Care Division) LTD
Adults Services,Adult Social Care,Support with Memory and Cognition - adults (18-64),Generic Care Packages SE Team -SI,Social Care - Homecare,12/10/2016,3759928,542.92,Excelcare (Home Care Division) LTD
Adults Services,Adult Social Care,Support with Memory and Cognition - adults (18-64),Generic Care Packages NE Team -PS,Social Care - Homecare,12/10/2016,3759940,599.46,Excelcare (Home Care Division) LTD
Adults Services,Adult Social Care,Support with Memory and Cognition - adults (18-64),Generic Care Packages SE Team -PS,Social Care - Home Care (Short Term),12/10/2016,3759944,"2,227.82",Excelcare (Home Care Division) LTD
Adults Services,Adult Social Care,Support with Memory and Cognition - adults (18-64),CLDS Longer Term Support Teams,Social Care - Homecare,12/10/2016,3759946,"1,762.58",Excelcare (Home Care Division) LTD
Adults Services,Adult Social Care,Support with Memory and Cognition - adults (18-64),Generic Care Packages NE Team -PS,Social Care - Homecare,12/10/2016,3759947,521.80,Excelcare (Home Care Division) LTD
Adults Services,Adult Social Care,Physical Support - adults (18-64),"Failed Care Package Conversion		",Social Care - Homecare,12/10/2016,3759955,"1,184.40",Excelcare (Home Care Division) LTD
Adults Services,Adult Social Care,Support with Memory and Cognition - adults (18-64),CLDS Longer Term Support Teams,Social Care - Homecare,12/10/2016,3759957,798.16,Excelcare (Home Care Division) LTD
Adults Services,Adult Social Care,Support with Memory and Cognition - adults (18-64),CLDS Longer Term Support Teams,Social Care - Homecare,12/10/2016,3759960,"4,088.02",Excelcare (Home Care Division) LTD
Adults Services,Adult Social Care,Support with Memory and Cognition - adults (18-64),Generic Care Packages SE Team -PS,Social Care - Homecare,12/10/2016,3759966,990.88,Excelcare (Home Care Division) LTD
Adults Services,Adult Social Care,Support with Memory and Cognition - adults (18-64),Generic Care Packages SE Team -PS,Social Care - Homecare,12/10/2016,3759967,951.82,Excelcare (Home Care Division) LTD
Adults Services,Adult Social Care,Support with Memory and Cognition - adults (18-64),Generic Care Packages SW Team - PS,Social Care - Residential Care,12/10/2016,3759973,"2,856.43",QUANTUM CARE LTD
Adults Services,Adult Social Care,Support with Memory and Cognition - adults (18-64),Generic Care Packages SW Team - PS,Social Care - Residential Care,12/10/2016,3759974,"2,856.43",QUANTUM CARE LTD
Adults Services,Adult Social Care,Support with Memory and Cognition - adults (18-64),CLDS Longer Term Support Teams,Social Care - Day Care,12/10/2016,3759975,"2,352.00",BANGLADESHI PARENTS & CARERS ASSOCIATION
Adults Services,Adult Social Care,Support with Memory and Cognition - adults (18-64),CLDS Longer Term Support Teams,Social Care - Day Care,12/10/2016,3759976,"1,724.10",BANGLADESHI PARENTS & CARERS ASSOCIATION
Adults Services,Adult Social Care,Support with Memory and Cognition - adults (18-64),CLDS Longer Term Support Teams,Social Care - Day Care,12/10/2016,3759977,"1,779.75",BANGLADESHI PARENTS & CARERS ASSOCIATION
Adults Services,Adult Social Care,Support with Memory and Cognition - adults (18-64),Cmht Bethnal Green,Social Care - Day Care,12/10/2016,3759978,945.00,BANGLADESHI PARENTS & CARERS ASSOCIATION
Adults Services,Adult Social Care,Support with Memory and Cognition - adults (18-64),Cmht Bow / Poplar North,Social Care - Prevention & Support,12/10/2016,3759979,"1,750.00",OLD FRIEND HOTEL
Adults Services,Adult Social Care,Support with Memory and Cognition - adults (18-64),CLDS Longer Term Support Teams,Social Care - Residential Care,12/10/2016,3759980,"9,200.00",Coppice Care Burgess Hill LLP
Adults Services,Adult Social Care,Support with Memory and Cognition - adults (18-64),CLDS Longer Term Support Teams,Social Care - Homecare,12/10/2016,3759987,"4,906.80",Tower Project
Adults Services,Adult Social Care,Support with Memory and Cognition - adults (18-64),CLDS Longer Term Support Teams,Social Care - Homecare,12/10/2016,3759989,"5,024.87",Tower Project
Adults Services,Adult Social Care,Support with Memory and Cognition - adults (18-64),CLDS Longer Term Support Teams,Social Care - Supported Living,12/10/2016,3759992,"6,625.20",Tower Project
Adults Services,Adult Social Care,Support with Memory and Cognition - adults (18-64),Generic Care Packages SE Team -PS,Social Care - Extra Care Sheltered Housing,12/10/2016,3760010,"1,397.32",Creative Support
Adults Services,Adult Social Care,Support with Memory and Cognition - adults (18-64),Generic Care Packages SE Team -PS,Social Care - Extra Care Sheltered Housing,12/10/2016,3760011,"1,693.87",Creative Support
Adults Services,Adult Social Care,Support with Memory and Cognition - adults (18-64),Generic Care Packages SE Team -PS,Social Care - Extra Care Sheltered Housing,12/10/2016,3760012,579.20,Creative Support
Adults Services,Adult Social Care,Support with Memory and Cognition - adults (18-64),Generic Care Packages SE Team -PS,Social Care - Extra Care Sheltered Housing,12/10/2016,3760013,"28,238.53",Creative Support
Adults Services,Adult Social Care,Support with Memory and Cognition - adults (18-64),Generic Care Packages SE Team -PS,Social Care - Extra Care Sheltered Housing,12/10/2016,3760014,"28,238.53",Creative Support
Adults Services,Adult Social Care,Support with Memory and Cognition - adults (18-64),Generic Care Packages SE Team -PS,Social Care - Extra Care Sheltered Housing,12/10/2016,3760015,"28,238.53",Creative Support
Adults Services,Adult Social Care,Support with Memory and Cognition - adults (18-64),Generic Care Packages SE Team -PS,Social Care - Extra Care Sheltered Housing,12/10/2016,3760016,"28,238.53",Creative Support
Adults Services,Adult Social Care,Support with Memory and Cognition - adults (18-64),CLDS Longer Term Support Teams,Social Care - Direct Payments,12/10/2016,3760018,"-26,923.78",DAVID HOWARD LTD CLIENT ACCOUNT
Adults Services,Adult Social Care,Support with Memory and Cognition - adults (18-64),Generic Care Packages SE Team -PS,Social Care - Direct Payments,12/10/2016,3760020,-919.55,D D PAYROLL SERVICES
Adults Services,Adult Social Care,Support with Memory and Cognition - adults (18-64),Generic Care Packages NE Team -PS,Social Care - Direct Payments,12/10/2016,3760022,"1,104.64",D D PAYROLL SERVICES
Adults Services,Adult Social Care,Support with Memory and Cognition - adults (18-64),CLDS Longer Term Support Teams,Social Care - Direct Payments,12/10/2016,3760023,"33,548.02",DAVID HOWARD LTD CLIENT ACCOUNT
Adults Services,Adult Social Care,Support with Memory and Cognition - adults (18-64),Cmht Iod / Poplar South,Social Care - Direct Payments,12/10/2016,3760024,"9,292.48",DAVID HOWARD LTD CLIENT ACCOUNT
Adults Services,Adult Social Care,Support with Memory and Cognition - adults (18-64),Generic Care Packages NW Team -PS,Social Care - Direct Payments,12/10/2016,3760026,"-1,717.44",DAVID HOWARD LTD CLIENT ACCOUNT
Adults Services,Adult Social Care,Support with Memory and Cognition - adults (18-64),Generic Care Packages SW Team - PS,Social Care - Direct Payments,12/10/2016,3760028,"1,874.19",DAVID HOWARD LTD CLIENT ACCOUNT
Adults Services,Adult Social Care,Support with Memory and Cognition - adults (18-64),Generic Care Packages SW Team - PS,Social Care - Nursing Care,12/10/2016,3760031,"-18,584.70",SANCTUARY CARE LTD
Adults Services,Adult Social Care,Support with Memory and Cognition - adults (18-64),Generic Care Packages SE Team -PS,Social Care - Residential Care,12/10/2016,3760032,"5,735.72",GATEWAY HOUSING ASSOCIATION
Adults Services,Adult Social Care,Support with Memory and Cognition - adults (18-64),Generic Care Packages SE Team -PS,Social Care - Prevention & Support,12/10/2016,3760032,"1,616.42",GATEWAY HOUSING ASSOCIATION
Adults Services,Adult Social Care,Support with Memory and Cognition - adults (18-64),Generic Care Packages SW Team - PS,Social Care - Nursing Care,12/10/2016,3760034,"20,313.00",SANCTUARY CARE LTD
Adults Services,Adult Social Care,Support with Memory and Cognition - adults (18-64),Cmht Iod / Poplar South,Social Care - Direct Payments,12/10/2016,3760036,"5,460.00",D D PAYROLL SERVICES
Adults Services,Adult Social Care,Support with Memory and Cognition - adults (18-64),Generic Care Packages SE Team -PS,Social Care - Homecare,12/10/2016,3760037,"1,584.45",FOCUS CARE LINK LTD
Adults Services,Adult Social Care,Support with Memory and Cognition - adults (18-64),Generic Care Packages NW Team -PS,Social Care - Home Care (Short Term),12/10/2016,3760038,"1,056.30",FOCUS CARE LINK LTD
Adults Services,Adult Social Care,Support with Memory and Cognition - adults (18-64),Generic Care Packages SW Team - PS,Social Care - Homecare,12/10/2016,3760039,"1,478.82",FOCUS CARE LINK LTD
Adults Services,Adult Social Care,Support with Memory and Cognition - adults (18-64),Generic Care Packages SW Team - PS,Social Care - Homecare,12/10/2016,3760044,528.15,FOCUS CARE LINK LTD
Adults Services,Adult Social Care,Support with Memory and Cognition - adults (18-64),Generic Care Packages NE Team -PS,Social Care - Homecare,12/10/2016,3760061,"1,132.50",SEVACARE UK LTD
Adults Services,Adult Social Care,Support with Memory and Cognition - adults (18-64),Generic Care Packages SE Team-SMC,Social Care - Homecare,12/10/2016,3760062,"2,114.00",SEVACARE UK LTD
Adults Services,Adult Social Care,Support with Memory and Cognition - adults (18-64),Generic Care Packages SW Team - PS,Social Care - Nursing Care,12/10/2016,3760070,"2,152.00",Friars Hall Nursing Home
Adults Services,Adult Social Care,Support with Memory and Cognition - adults (18-64),Generic Care Packages SW Team - PS,Social Care - Nursing Care,12/10/2016,3760071,"1,975.00",Friars Hall Nursing Home
Adults Services,Adult Social Care,Support with Memory and Cognition - adults (18-64),Generic Care Packages NW Team -PS,Social Care - Homecare,12/10/2016,3760073,"1,246.72",Excelcare (Home Care Division) LTD
Adults Services,Adult Social Care,Support with Memory and Cognition - adults (18-64),Generic Care Packages NW Team -PS,Social Care - Homecare,12/10/2016,3760076,"1,226.98",Excelcare (Home Care Division) LTD
Adults Services,Adult Social Care,Support with Memory and Cognition - adults (18-64),Generic Care Packages NW Team -PS,Social Care - Homecare,12/10/2016,3760078,"1,191.72",Excelcare (Home Care Division) LTD
Adults Services,Adult Social Care,Support with Memory and Cognition - adults (18-64),Generic Care Packages SW Team - PS,Social Care - Homecare,12/10/2016,3760088,867.44,Excelcare (Home Care Division) LTD
Adults Services,Adult Social Care,Support with Memory and Cognition - adults (18-64),Generic Care Packages NE Team -PS,Social Care - Homecare,12/10/2016,3760090,888.44,Excelcare (Home Care Division) LTD
Adults Services,Adult Social Care,Support with Memory and Cognition - adults (18-64),Generic Care Packages SE Team -SI,Social Care - Homecare,12/10/2016,3760094,542.92,Excelcare (Home Care Division) LTD
Adults Services,Adult Social Care,Support with Memory and Cognition - adults (18-64),Generic Care Packages SE Team -PS,Social Care - Home Care (Short Term),12/10/2016,3760099,"2,220.77",Excelcare (Home Care Division) LTD
Adults Services,Adult Social Care,Support with Memory and Cognition - adults (18-64),Generic Care Packages NE Team -PS,Social Care - Homecare,12/10/2016,3760105,599.46,Excelcare (Home Care Division) LTD
Adults Services,Adult Social Care,Physical Support - adults (18-64),"Failed Care Package Conversion		",Social Care - Homecare,12/10/2016,3760107,"1,184.40",Excelcare (Home Care Division) LTD
Adults Services,Adult Social Care,Support with Memory and Cognition - adults (18-64),Generic Care Packages NE Team -PS,Social Care - Homecare,12/10/2016,3760108,514.75,Excelcare (Home Care Division) LTD
Adults Services,Adult Social Care,Support with Memory and Cognition - adults (18-64),Generic Care Packages NW Team -PS,Social Care - Homecare,12/10/2016,3760111,"1,226.98",Excelcare (Home Care Division) LTD
Adults Services,Adult Social Care,Support with Memory and Cognition - adults (18-64),Generic Care Packages SE Team -PS,Social Care - Homecare,12/10/2016,3760112,951.82,Excelcare (Home Care Division) LTD
Adults Services,Adult Social Care,Support with Memory and Cognition - adults (18-64),Generic Care Packages NE Team -PS,Social Care - Homecare,12/10/2016,3760119,"1,988.24",Excelcare (Home Care Division) LTD
Adults Services,Adult Social Care,Support with Memory and Cognition - adults (18-64),Generic Care Packages SW Team - PS,Social Care - Homecare,12/10/2016,3760120,691.04,Excelcare (Home Care Division) LTD
Adults Services,Adult Social Care,Support with Memory and Cognition - adults (18-64),Generic Care Packages NE Team -PS,Social Care - Homecare,12/10/2016,3760121,760.52,REDSPOT HOMECARE (CONTRACTS) LTD
Adults Services,Adult Social Care,Support with Memory and Cognition - adults (18-64),Cmht For Older People,Social Care - Homecare,12/10/2016,3760122,"1,367.60",REDSPOT HOMECARE (CONTRACTS) LTD
Adults Services,Adult Social Care,Support with Memory and Cognition - adults (18-64),Generic Care Packages NE Team -PS,Social Care - Homecare,12/10/2016,3760130,"2,281.56",REDSPOT HOMECARE (CONTRACTS) LTD
Adults Services,Adult Social Care,Support with Memory and Cognition - adults (18-64),Generic Care Packages SE Team -PS,Social Care - Homecare,12/10/2016,3760130,"2,136.84",REDSPOT HOMECARE (CONTRACTS) LTD
Adults Services,Adult Social Care,Support with Memory and Cognition - adults (18-64),Generic Care Packages NW Team -PS,Social Care - Homecare,12/10/2016,3760133,"1,112.02",REDSPOT HOMECARE (CONTRACTS) LTD
Adults Services,Adult Social Care,Support with Memory and Cognition - adults (18-64),Generic Care Packages SW Team - PS,Social Care - Homecare,12/10/2016,3760135,898.05,REDSPOT HOMECARE (CONTRACTS) LTD
Adults Services,Adult Social Care,Support with Memory and Cognition - adults (18-64),CLDS Transition,Social Care - Respite Care,12/10/2016,3760148,"2,310.00",HERITAGE CARE
Adults Services,Adult Social Care,Support with Memory and Cognition - adults (18-64),"Generic Care Packages SW Team-LD									",Social Care - Supported Living,12/10/2016,3760150,"4,989.92",FAIRKYTES
Adults Services,Adult Social Care,Support with Memory and Cognition - adults (18-64),CLDS Longer Term Support Teams,Social Care - Residential Care,12/10/2016,3760151,"4,714.20",SHERICO CARE SERVICES LTD
Adults Services,Adult Social Care,Support with Memory and Cognition - adults (18-64),Generic Care Packages NE Team -PS,Social Care - Nursing Care,12/10/2016,3760153,"2,375.25",Bakers Court Nursing Home
Adults Services,Adult Social Care,Support with Memory and Cognition - adults (18-64),Generic Care Packages NE Team -PS,Social Care - Nursing Care,12/10/2016,3760154,"2,216.14",Bakers Court Nursing Home
Adults Services,Adult Social Care,Support with Memory and Cognition - adults (18-64),Generic Care Packages NW Team -PS,Social Care - Nursing Care,12/10/2016,3760155,"2,828.27",Bakers Court Nursing Home
Adults Services,Adult Social Care,Support with Memory and Cognition - adults (18-64),Generic Care Packages NE Team -PS,Social Care - Nursing Care,12/10/2016,3760156,"2,290.01",Bakers Court Nursing Home
Adults Services,Adult Social Care,Support with Memory and Cognition - adults (18-64),Generic Care Packages NE Team-SMC,Social Care - Residential Care,12/10/2016,3760157,"2,231.65",Bakers Court Nursing Home
Adults Services,Adult Social Care,Support with Memory and Cognition - adults (18-64),Generic Care Packages NE Team -PS,Social Care - Nursing Care,12/10/2016,3760158,"2,290.01",Bakers Court Nursing Home
Adults Services,Adult Social Care,Support with Memory and Cognition - adults (18-64),Generic Care Packages NE Team-SMC,Social Care - Residential Care,12/10/2016,3760159,"2,231.65",Bakers Court Nursing Home
Adults Services,Adult Social Care,Support with Memory and Cognition - adults (18-64),CLDS Longer Term Support Teams,Social Care - Day Care,12/10/2016,3760161,"1,144.92",APASENTH
Adults Services,Adult Social Care,Support with Memory and Cognition - adults (18-64),CLDS Longer Term Support Teams,Social Care - Day Care,12/10/2016,3760162,"1,144.92",APASENTH
Adults Services,Adult Social Care,Support with Memory and Cognition - adults (18-64),CLDS Longer Term Support Teams,Social Care - Day Care,12/10/2016,3760163,"2,539.01",APASENTH
Adults Services,Adult Social Care,Support with Memory and Cognition - adults (18-64),CLDS Longer Term Support Teams,Social Care - Day Care,12/10/2016,3760165,"1,135.00",APASENTH
Adults Services,Adult Social Care,Support with Memory and Cognition - adults (18-64),CLDS Longer Term Support Teams,Social Care - Day Care,12/10/2016,3760166,"1,144.92",APASENTH
Adults Services,Adult Social Care,Support with Memory and Cognition - adults (18-64),CLDS Longer Term Support Teams,Social Care - Day Care,12/10/2016,3760167,"1,177.76",APASENTH
Adults Services,Adult Social Care,Support with Memory and Cognition - adults (18-64),CLDS Longer Term Support Teams,Social Care - Day Care,12/10/2016,3760168,599.72,APASENTH
Adults Services,Adult Social Care,Support with Memory and Cognition - adults (18-64),CLDS Longer Term Support Teams,Social Care - Day Care,12/10/2016,3760169,599.72,APASENTH
Adults Services,Adult Social Care,Support with Memory and Cognition - adults (18-64),CLDS Longer Term Support Teams,Social Care - Day Care,12/10/2016,3760170,"1,284.14",APASENTH
Adults Services,Adult Social Care,Support with Memory and Cognition - adults (18-64),CLDS Longer Term Support Teams,Social Care - Day Care,12/10/2016,3760172,872.32,APASENTH
Adults Services,Adult Social Care,Support with Memory and Cognition - adults (18-64),CLDS Longer Term Support Teams,Social Care - Day Care,12/10/2016,3760174,831.36,APASENTH
Adults Services,Adult Social Care,Support with Memory and Cognition - adults (18-64),CLDS Longer Term Support Teams,Social Care - Day Care,12/10/2016,3760176,"1,144.92",APASENTH
Adults Services,Adult Social Care,Support with Memory and Cognition - adults (18-64),CLDS Longer Term Support Teams,Social Care - Day Care,12/10/2016,3760177,"1,454.88",APASENTH
Adults Services,Adult Social Care,Support with Memory and Cognition - adults (18-64),CLDS Longer Term Support Teams,Social Care - Day Care,12/10/2016,3760178,654.24,APASENTH
Adults Services,Adult Social Care,Support with Memory and Cognition - adults (18-64),CLDS Longer Term Support Teams,Social Care - Day Care,12/10/2016,3760179,"1,454.88",APASENTH
Adults Services,Adult Social Care,Support with Memory and Cognition - adults (18-64),CLDS Longer Term Support Teams,Social Care - Day Care,12/10/2016,3760180,"2,383.50",APASENTH
Adults Services,Adult Social Care,Support with Memory and Cognition - adults (18-64),CLDS Longer Term Support Teams,Social Care - Day Care,12/10/2016,3760181,692.80,APASENTH
Adults Services,Adult Social Care,Support with Memory and Cognition - adults (18-64),CLDS Longer Term Support Teams,Social Care - Day Care,12/10/2016,3760182,654.24,APASENTH
Adults Services,Adult Social Care,Support with Memory and Cognition - adults (18-64),CLDS Longer Term Support Teams,Social Care - Day Care,12/10/2016,3760183,"1,090.40",APASENTH
Adults Services,Adult Social Care,Support with Memory and Cognition - adults (18-64),CLDS Longer Term Support Teams,Social Care - Day Care,12/10/2016,3760185,"1,035.88",APASENTH
Adults Services,Adult Social Care,Support with Memory and Cognition - adults (18-64),CLDS Longer Term Support Teams,Social Care - Day Care,12/10/2016,3760188,"2,074.17",APASENTH
Adults Services,Adult Social Care,Support with Memory and Cognition - adults (18-64),CLDS Longer Term Support Teams,Social Care - Day Care,12/10/2016,3760189,"1,454.88",APASENTH
Adults Services,Adult Social Care,Support with Memory and Cognition - adults (18-64),CLDS Longer Term Support Teams,Social Care - Day Care,12/10/2016,3760190,"1,816.00",APASENTH
Adults Services,Adult Social Care,Support with Memory and Cognition - adults (18-64),CLDS Longer Term Support Teams,Social Care - Day Care,12/10/2016,3760191,"1,144.92",APASENTH
Adults Services,Adult Social Care,Support with Memory and Cognition - adults (18-64),CLDS Longer Term Support Teams,Social Care - Day Care,12/10/2016,3760193,"2,383.50",APASENTH
Adults Services,Adult Social Care,Support with Memory and Cognition - adults (18-64),CLDS Longer Term Support Teams,Social Care - Day Care,12/10/2016,3760194,"1,826.58",APASENTH
Adults Services,Adult Social Care,Support with Memory and Cognition - adults (18-64),CLDS Longer Term Support Teams,Social Care - Day Care,12/10/2016,3760195,"1,144.92",APASENTH
Adults Services,Adult Social Care,Support with Memory and Cognition - adults (18-64),CLDS Longer Term Support Teams,Social Care - Day Care,12/10/2016,3760197,"1,144.92",APASENTH
Adults Services,Adult Social Care,Support with Memory and Cognition - adults (18-64),CLDS Longer Term Support Teams,Social Care - Day Care,12/10/2016,3760198,713.22,APASENTH
Adults Services,Adult Social Care,Support with Memory and Cognition - adults (18-64),CLDS Longer Term Support Teams,Social Care - Day Care,12/10/2016,3760199,"1,454.88",APASENTH
Adults Services,Adult Social Care,Support with Memory and Cognition - adults (18-64),CLDS Longer Term Support Teams,Social Care - Day Care,12/10/2016,3760200,817.80,APASENTH
Adults Services,Adult Social Care,Support with Memory and Cognition - adults (18-64),CLDS Longer Term Support Teams,Social Care - Day Care,12/10/2016,3760201,"1,090.40",APASENTH
Adults Services,Adult Social Care,Support with Memory and Cognition - adults (18-64),CLDS Longer Term Support Teams,Social Care - Day Care,12/10/2016,3760202,817.80,APASENTH
Adults Services,Adult Social Care,Support with Memory and Cognition - adults (18-64),CLDS Longer Term Support Teams,Social Care - Day Care,12/10/2016,3760203,545.20,APASENTH
Adults Services,Adult Social Care,Support with Memory and Cognition - adults (18-64),CLDS Longer Term Support Teams,Social Care - Day Care,12/10/2016,3760204,926.84,APASENTH
Adults Services,Adult Social Care,Support with Memory and Cognition - adults (18-64),CLDS Longer Term Support Teams,Social Care - Day Care,12/10/2016,3760205,"1,144.92",APASENTH
Adults Services,Adult Social Care,Support with Memory and Cognition - adults (18-64),CLDS Longer Term Support Teams,Social Care - Day Care,12/10/2016,3760207,"1,454.88",APASENTH
Adults Services,Adult Social Care,Support with Memory and Cognition - adults (18-64),Generic Care Packages NE Team -PS,Social Care - Homecare,12/10/2016,3760220,"1,033.56",MiHOMECARE LIMITED
Adults Services,Adult Social Care,Physical Support - adults (18-64),"Failed Care Package Conversion		",Social Care - Others,12/10/2016,3760220,-523.08,MiHOMECARE LIMITED
Adults Services,Adult Social Care,Support with Memory and Cognition - adults (18-64),Generic Care Packages NE Team -PS,Social Care - Homecare,12/10/2016,3760225,509.91,MiHOMECARE LIMITED
Adults Services,Adult Social Care,Support with Memory and Cognition - adults (18-64),Generic Care Packages NE Team -PS,Social Care - Homecare,12/10/2016,3760230,646.69,MiHOMECARE LIMITED
Adults Services,Adult Social Care,Support with Memory and Cognition - adults (18-64),Generic Care Packages NW Team -PS,Social Care - Homecare,12/10/2016,3760234,731.74,MiHOMECARE LIMITED
Adults Services,Adult Social Care,Support with Memory and Cognition - adults (18-64),Generic Care Packages SW Team - PS,Social Care - Nursing Care,12/10/2016,3760241,"2,392.36",HAWKINGE HOUSE LTD
Adults Services,Adult Social Care,Support with Memory and Cognition - adults (18-64),Generic Care Packages SW Team - PS,Social Care - Nursing Care,12/10/2016,3760242,"2,392.36",HAWKINGE HOUSE LTD
Adults Services,Adult Social Care,Support with Memory and Cognition - adults (18-64),Generic Care Packages SW Team - PS,Social Care - Nursing Care,12/10/2016,3760243,"2,315.19",HAWKINGE HOUSE LTD
Adults Services,Adult Social Care,Support with Memory and Cognition - adults (18-64),Generic Care Packages NE Team -PS,Social Care - Nursing Care,12/10/2016,3760244,"3,000.00",TOPCARE LTD
Adults Services,Adult Social Care,Support with Memory and Cognition - adults (18-64),Generic Care Packages NE Team -PS,Social Care - Nursing Care,12/10/2016,3760245,"5,606.25",TOPCARE LTD
Adults Services,Adult Social Care,Support with Memory and Cognition - adults (18-64),CLDS Longer Term Support Teams,Social Care - Respite Care,12/10/2016,3760246,"1,800.00",APASENTH
Adults Services,Adult Social Care,Support with Memory and Cognition - adults (18-64),CLDS Longer Term Support Teams,Social Care - Residential Care,12/10/2016,3760247,"1,812.60",APASENTH
Adults Services,Adult Social Care,Support with Memory and Cognition - adults (18-64),CLDS Longer Term Support Teams,Social Care - Residential Care,12/10/2016,3760248,"4,500.00",APASENTH
Adults Services,Adult Social Care,Support with Memory and Cognition - adults (18-64),CLDS Longer Term Support Teams,Social Care - Residential Care,12/10/2016,3760249,"4,500.00",APASENTH
Adults Services,Adult Social Care,Support with Memory and Cognition - adults (18-64),CLDS Longer Term Support Teams,Social Care - Residential Care,12/10/2016,3760250,"4,950.00",APASENTH
Adults Services,Adult Social Care,Support with Memory and Cognition - adults (18-64),CLDS Longer Term Support Teams,Social Care - Residential Care,12/10/2016,3760251,"4,950.00",APASENTH
Adults Services,Adult Social Care,Support with Memory and Cognition - adults (18-64),Generic Care Packages SE Team -SM,Social Care - Prevention & Support,12/10/2016,3760252,"1,400.00",Plaza London Hotel
Adults Services,Adult Social Care,Support with Memory and Cognition - adults (18-64),CLDS Longer Term Support Teams,Social Care - Day Care,12/10/2016,3760258,"1,787.20",POETRY IN WOOD
Adults Services,Adult Social Care,Support with Memory and Cognition - adults (18-64),Generic Care Packages SE Team -PS,Social Care - Homecare,12/10/2016,3760268,513.40,St Hilda's East Community Centre
Adults Services,Adult Social Care,Support with Memory and Cognition - adults (18-64),Generic Care Packages SE Team -PS,Social Care - Homecare,12/10/2016,3760274,906.00,St Hilda's East Community Centre
Adults Services,Adult Social Care,Support with Memory and Cognition - adults (18-64),Generic Care Packages SW Team - PS,Social Care - Homecare,12/10/2016,3760285,951.30,St Hilda's East Community Centre
Adults Services,Adult Social Care,Support with Memory and Cognition - adults (18-64),Generic Care Packages NW Team -PS,Social Care - Homecare,12/10/2016,3760290,951.30,St Hilda's East Community Centre
Adults Services,Adult Social Care,Support with Memory and Cognition - adults (18-64),Generic Care Packages SW Team - PS,Social Care - Homecare,12/10/2016,3760292,528.50,St Hilda's East Community Centre
Adults Services,Adult Social Care,Support with Memory and Cognition - adults (18-64),Generic Care Packages NE Team -PS,Social Care - Homecare,12/10/2016,3760293,"1,691.20",St Hilda's East Community Centre
Adults Services,Adult Social Care,Support with Memory and Cognition - adults (18-64),Generic Care Packages SW Team-SMC,Social Care - Homecare,12/10/2016,3760296,"1,313.70",St Hilda's East Community Centre
Adults Services,Adult Social Care,Support with Memory and Cognition - adults (18-64),Generic Care Packages SW Team - PS,Social Care - Homecare,12/10/2016,3760297,694.60,St Hilda's East Community Centre
Adults Services,Adult Social Care,Support with Memory and Cognition - adults (18-64),Generic Care Packages NW Team -PS,Social Care - Homecare,12/10/2016,3760307,"1,283.50",St Hilda's East Community Centre
Adults Services,Adult Social Care,Support with Memory and Cognition - adults (18-64),Generic Care Packages SE Team -PS,Social Care - Homecare,12/10/2016,3760313,513.40,St Hilda's East Community Centre
Adults Services,Adult Social Care,Support with Memory and Cognition - adults (18-64),CLDS Longer Term Support Teams,Non Staff Transport Costs - Client Transport Costs,12/10/2016,3760316,857.27,DIMENSIONS (UK) LTD
Adults Services,Adult Social Care,Support with Memory and Cognition - adults (18-64),CLDS Longer Term Support Teams,Social Care - Supported Living,12/10/2016,3760317,"5,678.00",Church House
Adults Services,Adult Social Care,Physical Support - adults (18-64),"Failed Care Package Conversion		",Social Care - Others,12/10/2016,3760318,"4,735.88",Caretech Community Services Limited
Adults Services,Adult Social Care,Support with Memory and Cognition - adults (18-64),Generic Care Packages SW Team - PS,Social Care - Homecare,12/10/2016,3760347,698.74,SANCTUARY HOME CARE LIMITED
Adults Services,Adult Social Care,Physical Support - adults (18-64),"Failed Care Package Conversion		",Social Care - Others,12/10/2016,3760354,531.96,SANCTUARY HOME CARE LIMITED
Adults Services,Adult Social Care,Support with Memory and Cognition - adults (18-64),Generic Care Packages SW Team - PS,Social Care - Homecare,12/10/2016,3760361,918.84,SANCTUARY HOME CARE LIMITED
Adults Services,Adult Social Care,Support with Memory and Cognition - adults (18-64),Generic Care Packages SW Team - PS,Social Care - Homecare,12/10/2016,3760363,999.44,SANCTUARY HOME CARE LIMITED
Adults Services,Adult Social Care,Support with Memory and Cognition - adults (18-64),Generic Care Packages SW Team - PS,Social Care - Homecare,12/10/2016,3760364,"1,023.62",SANCTUARY HOME CARE LIMITED
Adults Services,Adult Social Care,Support with Memory and Cognition - adults (18-64),Generic Care Packages SW Team - PS,Social Care - Homecare,12/10/2016,3760365,"1,031.68",SANCTUARY HOME CARE LIMITED
Adults Services,Adult Social Care,Support with Memory and Cognition - adults (18-64),Generic Care Packages SW Team - PS,Social Care - Homecare,12/10/2016,3760366,"1,031.68",SANCTUARY HOME CARE LIMITED
Adults Services,Adult Social Care,Support with Memory and Cognition - adults (18-64),Generic Care Packages SW Team - PS,Social Care - Homecare,12/10/2016,3760367,"1,015.56",SANCTUARY HOME CARE LIMITED
Adults Services,Adult Social Care,Support with Memory and Cognition - adults (18-64),Generic Care Packages SW Team - PS,Social Care - Homecare,12/10/2016,3760368,"1,031.68",SANCTUARY HOME CARE LIMITED
Adults Services,Adult Social Care,Support with Memory and Cognition - adults (18-64),Generic Care Packages SW Team - PS,Social Care - Homecare,12/10/2016,3760369,"1,031.68",SANCTUARY HOME CARE LIMITED
Adults Services,Adult Social Care,Support with Memory and Cognition - adults (18-64),Generic Care Packages SW Team - PS,Social Care - Homecare,12/10/2016,3760370,"1,015.56",SANCTUARY HOME CARE LIMITED
Adults Services,Adult Social Care,Support with Memory and Cognition - adults (18-64),Generic Care Packages SW Team - PS,Social Care - Homecare,12/10/2016,3760371,"1,015.56",SANCTUARY HOME CARE LIMITED
Adults Services,Adult Social Care,Support with Memory and Cognition - adults (18-64),Generic Care Packages SW Team - PS,Social Care - Homecare,12/10/2016,3760372,"2,772.64",SANCTUARY HOME CARE LIMITED
Adults Services,Adult Social Care,Support with Memory and Cognition - adults (18-64),Generic Care Packages SW Team - PS,Social Care - Homecare,12/10/2016,3760373,"1,015.56",SANCTUARY HOME CARE LIMITED
Adults Services,Adult Social Care,Support with Memory and Cognition - adults (18-64),Generic Care Packages SW Team - PS,Social Care - Homecare,12/10/2016,3760377,999.44,SANCTUARY HOME CARE LIMITED
Adults Services,Adult Social Care,Support with Memory and Cognition - adults (18-64),Generic Care Packages SW Team - PS,Social Care - Home Care (Short Term),12/10/2016,3760383,507.78,SANCTUARY HOME CARE LIMITED
Adults Services,Adult Social Care,Support with Memory and Cognition - adults (18-64),Generic Care Packages NW Team -PS,Social Care - Homecare,12/10/2016,3760386,548.08,SANCTUARY HOME CARE LIMITED
Adults Services,Adult Social Care,Support with Memory and Cognition - adults (18-64),Generic Care Packages NE Team -PS,Social Care - Homecare,12/10/2016,3760391,564.20,SANCTUARY HOME CARE LIMITED
Adults Services,Adult Social Care,Support with Memory and Cognition - adults (18-64),Generic Care Packages SW Team - PS,Social Care - Homecare,12/10/2016,3760392,"1,007.50",SANCTUARY HOME CARE LIMITED
Adults Services,Adult Social Care,Support with Memory and Cognition - adults (18-64),Generic Care Packages NW Team -PS,Social Care - Homecare,12/10/2016,3760393,677.04,SANCTUARY HOME CARE LIMITED
Adults Services,Adult Social Care,Support with Memory and Cognition - adults (18-64),Generic Care Packages SW Team - PS,Social Care - Homecare,12/10/2016,3760394,"1,461.50",AQUAFLO CARE LTD
Adults Services,Adult Social Care,Support with Memory and Cognition - adults (18-64),CLDS Longer Term Support Teams,Social Care - Homecare,12/10/2016,3760397,"1,184.00",AQUAFLO CARE LTD
Adults Services,Adult Social Care,Support with Memory and Cognition - adults (18-64),Generic Care Packages SW Team - PS,Social Care - Homecare,12/10/2016,3760398,673.40,AQUAFLO CARE LTD
Adults Services,Adult Social Care,Support with Memory and Cognition - adults (18-64),Generic Care Packages NW Team -PS,Social Care - Home Care (Short Term),12/10/2016,3760401,"2,456.80",AQUAFLO CARE LTD
Adults Services,Adult Social Care,Support with Memory and Cognition - adults (18-64),Generic Care Packages SW Team - PS,Social Care - Home Care (Short Term),12/10/2016,3760402,"1,050.80",AQUAFLO CARE LTD
Adults Services,Adult Social Care,Support with Memory and Cognition - adults (18-64),Generic Care Packages SW Team - PS,Social Care - Homecare,12/10/2016,3760403,"1,398.60",AQUAFLO CARE LTD
Adults Services,Adult Social Care,Support with Memory and Cognition - adults (18-64),Generic Care Packages SW Team - PS,Social Care - Home Care (Short Term),12/10/2016,3760405,828.80,AQUAFLO CARE LTD
Adults Services,Adult Social Care,Support with Memory and Cognition - adults (18-64),Generic Care Packages SE Team -PS,Social Care - Homecare,12/10/2016,3760408,"1,909.20",AQUAFLO CARE LTD
Adults Services,Adult Social Care,Support with Memory and Cognition - adults (18-64),Generic Care Packages SW Team - PS,Social Care - Homecare,12/10/2016,3760412,"1,450.40",AQUAFLO CARE LTD
Adults Services,Adult Social Care,Physical Support - adults (18-64),"Failed Care Package Conversion		",Social Care - Homecare,12/10/2016,3760413,"2,260.80",AQUAFLO CARE LTD
Adults Services,Adult Social Care,Support with Memory and Cognition - adults (18-64),CLDS Longer Term Support Teams,Social Care - Homecare,12/10/2016,3760416,"1,184.00",AQUAFLO CARE LTD
Adults Services,Adult Social Care,Support with Memory and Cognition - adults (18-64),Generic Care Packages SW Team - PS,Social Care - Homecare,12/10/2016,3760417,673.40,AQUAFLO CARE LTD
Adults Services,Adult Social Care,Support with Memory and Cognition - adults (18-64),Generic Care Packages NW Team -PS,Social Care - Home Care (Short Term),12/10/2016,3760419,"2,486.40",AQUAFLO CARE LTD
Adults Services,Adult Social Care,Support with Memory and Cognition - adults (18-64),Generic Care Packages SW Team - PS,Social Care - Homecare,12/10/2016,3760421,"1,398.60",AQUAFLO CARE LTD
Adults Services,Adult Social Care,Support with Memory and Cognition - adults (18-64),Generic Care Packages SW Team - PS,Social Care - Home Care (Short Term),12/10/2016,3760422,799.20,AQUAFLO CARE LTD
Adults Services,Adult Social Care,Support with Memory and Cognition - adults (18-64),Generic Care Packages NW Team -PS,Social Care - Home Care (Short Term),12/10/2016,3760424,547.60,AQUAFLO CARE LTD
Adults Services,Adult Social Care,Support with Memory and Cognition - adults (18-64),Generic Care Packages SE Team -PS,Social Care - Homecare,12/10/2016,3760426,"1,909.20",AQUAFLO CARE LTD
Adults Services,Adult Social Care,Support with Memory and Cognition - adults (18-64),Generic Care Packages SW Team - PS,Social Care - Nursing Care,12/10/2016,3760434,"3,913.07",TOPCARE LTD
Adults Services,Adult Social Care,Physical Support - adults (18-64),Physical Dis Commissioning,Social Care - Residential Care,14/10/2016,3634589,"-9,254.54",WEST LONDON MISSION SOCIAL WORK ACCOUNT
Adults Services,Adult Social Care,Physical Support - adults (18-64),Physical Dis Commissioning,Social Care - Residential Care,14/10/2016,3634590,"1,316.26",WEST LONDON MISSION SOCIAL WORK ACCOUNT
Adults Services,Adult Social Care,Support with Memory and Cognition - adults (18-64),Generic Care Packages NW Team -SI,Social Care - Residential Care,14/10/2016,3654031,825.50,WEST LONDON MISSION SOCIAL WORK ACCOUNT
Adults Services,Adult Social Care,Support with Memory and Cognition - adults (18-64),Generic Care Packages NW Team -SI,Social Care - Residential Care,14/10/2016,3654032,"1,638.43",WEST LONDON MISSION SOCIAL WORK ACCOUNT
Adults Services,Adult Social Care,Support with Memory and Cognition - adults (18-64),Generic Care Packages NW Team -SI,Social Care - Residential Care,14/10/2016,3660313,"2,539.56",WEST LONDON MISSION SOCIAL WORK ACCOUNT
Adults Services,Adult Social Care,Support with Memory and Cognition - adults (18-64),Generic Care Packages NW Team -SI,Social Care - Residential Care,14/10/2016,3705525,"2,539.56",WEST LONDON MISSION SOCIAL WORK ACCOUNT
Adults Services,No Service Specified,No Division Specified,Capital-Minor Works (SC),Other External Fees - Other External Fees,14/10/2016,3729600,925.00,PJC Consultancy Ltd
Adults Services,No Service Specified,No Division Specified,Capital-Minor Works (SC),Other External Fees - Other External Fees,14/10/2016,3732672,670.00,PJC Consultancy Ltd
Adults Services,No Service Specified,No Division Specified,Capital-Minor Works (SC),Other External Fees - Other External Fees,14/10/2016,3732707,"14,437.50",Henley Halebrown Rorrison (HHbR) Ltd
Adults Services,No Service Specified,No Division Specified,Capital-Minor Works (SC),Other External Fees - Consultants Fees,14/10/2016,3732708,"19,514.00",Henley Halebrown Rorrison (HHbR) Ltd
Adults Services,No Service Specified,No Division Specified,Capital-Minor Works (SC),Other External Fees - Consultants Fees,14/10/2016,3732799,"34,650.00",Henley Halebrown Rorrison (HHbR) Ltd
Adults Services,No Service Specified,No Division Specified,Capital-Minor Works (SC),Other External Fees - Consultants Fees,14/10/2016,3732824,"7,425.00",Henley Halebrown Rorrison (HHbR) Ltd
Adults Services,No Service Specified,No Division Specified,Capital-Minor Works (SC),Other External Fees - Consultants Fees,14/10/2016,3732837,"2,475.00",Henley Halebrown Rorrison (HHbR) Ltd
Adults Services,No Service Specified,No Division Specified,Capital-Minor Works (SC),Other External Fees - Consultants Fees,14/10/2016,3732848,"2,153.25",Henley Halebrown Rorrison (HHbR) Ltd
Adults Services,No Service Specified,No Division Specified,Capital-Minor Works (SC),Other External Fees - Consultants Fees,14/10/2016,3732856,"4,950.00",Henley Halebrown Rorrison (HHbR) Ltd
Adults Services,No Service Specified,No Division Specified,Capital-Minor Works (SC),Other External Fees - Consultants Fees,14/10/2016,3732863,"3,836.25",Henley Halebrown Rorrison (HHbR) Ltd
Adults Services,Adult Social Care,Support with Memory and Cognition - adults (18-64),Tower Hamlets Care Alarms,Community Equipment  Supplies - Aids and Appliances,14/10/2016,3751189,"19,290.00",Doro Care
Adults Services,Adult Social Care,Support with Memory and Cognition - adults (18-64),Tower Hamlets Care Alarms,Community Equipment  Supplies - Aids and Appliances,14/10/2016,3751190,"10,090.00",Doro Care
Adults Services,No Service Specified,No Division Specified,Capital-Minor Works (SC),Other External Fees - Other External Fees,14/10/2016,3751911,"14,495.00",RPS Health Safety & Environment
Adults Services,No Service Specified,No Division Specified,Capital-Minor Works (SC),Other External Fees - Consultants Fees,14/10/2016,3751913,"1,425.00",RPS Health Safety & Environment
Adults Services,Adult Social Care,Support with Memory and Cognition - adults (18-64),CLDS Longer Term Support Teams,Social Care - Respite Care,14/10/2016,3752310,700.00,Specialized Care & Support Sevices Ltd
Adults Services,Adult Social Care,Support with Memory and Cognition - adults (18-64),CLDS Longer Term Support Teams,Social Care - Respite Care,14/10/2016,3752311,"1,520.00",Specialized Care & Support Sevices Ltd
Adults Services,Adult Social Care,Support with Memory and Cognition - adults (18-64),Reablement,Social Care - Day Care,14/10/2016,3753334,544.00,Appa Me Ltd
Adults Services,Adult Social Care,Support with Memory and Cognition - adults (18-64),CLDS Longer Term Support Teams,Social Care - Day Care,14/10/2016,3756393,"1,081.19",Somerset County Council
Adults Services,Adult Social Care,Support with Memory and Cognition - adults (18-64),CLDS Longer Term Support Teams,Social Care - Day Care,14/10/2016,3756394,"1,277.94",Somerset County Council
Adults Services,Adult Social Care,Support with Memory and Cognition - adults (18-64),Tower Hamlets Care Alarms,Staff Advertising,14/10/2016,3758918,525.00,Smile Publishing LTD
Adults Services,Adult Social Care,Support with Memory and Cognition - adults (18-64),Generic Care Packages NW Team -SI,Social Care - Residential Care,14/10/2016,3761653,"2,457.64",WEST LONDON MISSION SOCIAL WORK ACCOUNT
Adults Services,Adult Social Care,Support with Memory and Cognition - adults (18-64),Generic Care Packages NW Team -SI,Social Care - Residential Care,14/10/2016,3761654,"2,539.56",WEST LONDON MISSION SOCIAL WORK ACCOUNT
Adults Services,Adult Social Care,Support with Memory and Cognition - adults (18-64),Generic Care Packages NW Team -SI,Social Care - Residential Care,14/10/2016,3761657,"2,457.64",WEST LONDON MISSION SOCIAL WORK ACCOUNT
Adults Services,Adult Social Care,Support with Memory and Cognition - adults (18-64),Cmht For Older People,Social Care - Residential Care,14/10/2016,3761658,"2,931.00",Essex County Council
Adults Services,Adult Social Care,Support with Memory and Cognition - adults (18-64),Generic Care Packages SW Team - PS,Social Care - Homecare,14/10/2016,3761660,"25,752.00",Active Assistance
Adults Services,Adult Social Care,Physical Support - adults (18-64),"Failed Care Package Conversion		",Social Care - Others,14/10/2016,3761660,"-8,114.00",Active Assistance
Adults Services,Adult Social Care,Support with Memory and Cognition - adults (18-64),Generic Care Packages SW Team - PS,Social Care - Homecare,14/10/2016,3761661,"26,538.45",Active Assistance
Adults Services,Adult Social Care,Support with Memory and Cognition - adults (18-64),Generic Care Packages SW Team - PS,Social Care - Homecare,14/10/2016,3761662,"1,057.77",FOCUS CARE LINK LTD
Adults Services,Adult Social Care,Support with Memory and Cognition - adults (18-64),Generic Care Packages SW Team - PS,Social Care - Homecare,14/10/2016,3761664,"1,057.77",FOCUS CARE LINK LTD
Adults Services,Adult Social Care,Support with Memory and Cognition - adults (18-64),Generic Care Packages SW Team - PS,Social Care - Homecare,14/10/2016,3761665,"1,057.77",FOCUS CARE LINK LTD
Adults Services,Adult Social Care,Support with Memory and Cognition - adults (18-64),Generic Care Packages SW Team - PS,Social Care - Homecare,14/10/2016,3761666,"1,057.77",FOCUS CARE LINK LTD
Adults Services,Adult Social Care,Support with Memory and Cognition - adults (18-64),Generic Care Packages SW Team - PS,Social Care - Homecare,14/10/2016,3761667,"1,057.77",FOCUS CARE LINK LTD
Adults Services,Adult Social Care,Support with Memory and Cognition - adults (18-64),Generic Care Packages SW Team - PS,Social Care - Homecare,14/10/2016,3761668,"1,046.90",FOCUS CARE LINK LTD
Adults Services,Adult Social Care,Support with Memory and Cognition - adults (18-64),Generic Care Packages SW Team - PS,Social Care - Homecare,14/10/2016,3761670,"1,057.77",FOCUS CARE LINK LTD
Adults Services,Adult Social Care,Support with Memory and Cognition - adults (18-64),Generic Care Packages SW Team - PS,Social Care - Residential Care,14/10/2016,3761674,"2,764.29",QUANTUM CARE LTD
Adults Services,Adult Social Care,Support with Memory and Cognition - adults (18-64),Generic Care Packages NE Team -PS,Social Care - Homecare,14/10/2016,3761675,823.16,FOCUS CARE LINK LTD
Adults Services,Adult Social Care,Support with Memory and Cognition - adults (18-64),Generic Care Packages NE Team -PS,Social Care - Homecare,14/10/2016,3761676,881.60,FOCUS CARE LINK LTD
Adults Services,Adult Social Care,Support with Memory and Cognition - adults (18-64),Generic Care Packages NE Team -PS,Social Care - Homecare,14/10/2016,3761677,888.52,FOCUS CARE LINK LTD
Adults Services,Adult Social Care,Support with Memory and Cognition - adults (18-64),Generic Care Packages NE Team -PS,Social Care - Homecare,14/10/2016,3761678,858.17,FOCUS CARE LINK LTD
Adults Services,Adult Social Care,Support with Memory and Cognition - adults (18-64),Generic Care Packages NE Team -PS,Social Care - Homecare,14/10/2016,3761679,888.52,FOCUS CARE LINK LTD
Adults Services,Adult Social Care,Support with Memory and Cognition - adults (18-64),Generic Care Packages SE Team -SP,Social Care - Nursing Care,14/10/2016,3761681,"-28,143.05",SANCTUARY CARE LTD
Adults Services,Adult Social Care,Support with Memory and Cognition - adults (18-64),Generic Care Packages SE Team -SP,Social Care - Nursing Care,14/10/2016,3761682,"29,541.43",SANCTUARY CARE LTD
Adults Services,Adult Social Care,Support with Memory and Cognition - adults (18-64),Cmht For Older People,Social Care - Residential Care,14/10/2016,3761683,"14,076.81",CARE FIRST CARE HOMES LTD
Adults Services,Adult Social Care,Support with Memory and Cognition - adults (18-64),Generic Care Packages NE Team-SMC,Social Care - Supported Living,14/10/2016,3761688,"-6,089.91",Providence Row Housing Association
Adults Services,Adult Social Care,Support with Memory and Cognition - adults (18-64),Cmht Iod / Poplar South,Social Care - Supported Living,14/10/2016,3761688,"6,981.43",Providence Row Housing Association
Adults Services,Adult Social Care,Support with Memory and Cognition - adults (18-64),Generic Care Packages SW Team - PS,Social Care - Homecare,14/10/2016,3761694,739.90,SEVACARE UK LTD
Adults Services,Adult Social Care,Support with Memory and Cognition - adults (18-64),Generic Care Packages NE Team -PS,Social Care - Homecare,14/10/2016,3761699,"1,177.80",SEVACARE UK LTD
Adults Services,Adult Social Care,Support with Memory and Cognition - adults (18-64),Generic Care Packages SW Team - PS,Social Care - Home Care (Short Term),14/10/2016,3761702,807.85,SEVACARE UK LTD
Adults Services,Adult Social Care,Support with Memory and Cognition - adults (18-64),Generic Care Packages NW Team -PS,Social Care - Home Care (Short Term),14/10/2016,3761703,604.00,SEVACARE UK LTD
Adults Services,Adult Social Care,Support with Memory and Cognition - adults (18-64),Cmht For Older People,Social Care - Homecare,14/10/2016,3761704,588.90,SEVACARE UK LTD
Adults Services,Adult Social Care,Support with Memory and Cognition - adults (18-64),Generic Care Packages NW Team -PS,Social Care - Homecare,14/10/2016,3761712,815.40,SEVACARE UK LTD
Adults Services,Adult Social Care,Support with Memory and Cognition - adults (18-64),Generic Care Packages SE Team -PS,Social Care - Homecare,14/10/2016,3761724,536.05,SEVACARE UK LTD
Adults Services,Adult Social Care,Support with Memory and Cognition - adults (18-64),Generic Care Packages SW Team - PS,Social Care - Homecare,14/10/2016,3761732,951.30,SEVACARE UK LTD
Adults Services,Adult Social Care,Support with Memory and Cognition - adults (18-64),Generic Care Packages NW Team -PS,Social Care - Homecare,14/10/2016,3761743,528.50,SEVACARE UK LTD
Adults Services,Adult Social Care,Support with Memory and Cognition - adults (18-64),Generic Care Packages NE Team -PS,Social Care - Home Care (Short Term),14/10/2016,3761744,520.95,SEVACARE UK LTD
Adults Services,Adult Social Care,Support with Memory and Cognition - adults (18-64),Cmht Iod / Poplar South,Social Care - Home Care (Short Term),14/10/2016,3761748,543.60,SEVACARE UK LTD
Adults Services,Adult Social Care,Support with Memory and Cognition - adults (18-64),Generic Care Packages SW Team - PS,Social Care - Homecare,14/10/2016,3761750,"1,057.77",FOCUS CARE LINK LTD
Adults Services,Adult Social Care,Support with Memory and Cognition - adults (18-64),Cmht Stepney / Wapping,Social Care - Day Care,14/10/2016,3761752,720.00,PORTUGAL PRINTS
Adults Services,Adult Social Care,Support with Memory and Cognition - adults (18-64),Generic Care Packages SW Team - PS,Social Care - Homecare,14/10/2016,3761754,"1,075.06",FOCUS CARE LINK LTD
Adults Services,Adult Social Care,Support with Memory and Cognition - adults (18-64),Generic Care Packages NW Team -PS,Social Care - Homecare,14/10/2016,3761755,"1,107.89",REDSPOT HOMECARE (CONTRACTS) LTD
Adults Services,Adult Social Care,Support with Memory and Cognition - adults (18-64),Generic Care Packages SW Team - PS,Social Care - Homecare,14/10/2016,3761763,927.64,REDSPOT HOMECARE (CONTRACTS) LTD
Adults Services,Adult Social Care,Support with Memory and Cognition - adults (18-64),Generic Care Packages SE Team -PS,Social Care - Homecare,14/10/2016,3761771,546.15,REDSPOT HOMECARE (CONTRACTS) LTD
Adults Services,Adult Social Care,Support with Memory and Cognition - adults (18-64),Generic Care Packages SW Team - PS,Social Care - Homecare,14/10/2016,3761774,"1,057.77",FOCUS CARE LINK LTD
Adults Services,Adult Social Care,Support with Memory and Cognition - adults (18-64),Cmht For Older People,Social Care - Residential Care,14/10/2016,3761776,"2,807.14",Leona Enterprises Ltd
Adults Services,Adult Social Care,Support with Memory and Cognition - adults (18-64),Generic Care Packages NE Team -PS,Social Care - Residential Care,14/10/2016,3761777,"1,591.29",SANCTUARY CARE LTD
Adults Services,Adult Social Care,Support with Memory and Cognition - adults (18-64),Cmht Bethnal Green,Social Care - Homecare,14/10/2016,3761780,739.00,MiHOMECARE LIMITED
Adults Services,Adult Social Care,Support with Memory and Cognition - adults (18-64),Generic Care Packages NW Team -PS,Social Care - Homecare,14/10/2016,3761781,"4,731.62",MiHOMECARE LIMITED
Adults Services,Adult Social Care,Support with Memory and Cognition - adults (18-64),CLDS Longer Term Support Teams,Social Care - Homecare,14/10/2016,3761782,746.39,MiHOMECARE LIMITED
Adults Services,Adult Social Care,Support with Memory and Cognition - adults (18-64),Generic Care Packages SE Team -PS,Social Care - Homecare,14/10/2016,3761788,539.47,MiHOMECARE LIMITED
Adults Services,Adult Social Care,Support with Memory and Cognition - adults (18-64),CLDS Longer Term Support Teams,Social Care - Homecare,14/10/2016,3761793,561.64,MiHOMECARE LIMITED
Adults Services,Adult Social Care,Support with Memory and Cognition - adults (18-64),Generic Care Packages NE Team-SMC,Social Care - Residential Care,14/10/2016,3761794,"3,077.14",Leona Enterprises Ltd
Adults Services,Adult Social Care,Support with Memory and Cognition - adults (18-64),Generic Care Packages SW Team - PS,Social Care - Residential Care,14/10/2016,3761796,"2,067.00",Stuart House Care Home
Adults Services,Adult Social Care,Support with Memory and Cognition - adults (18-64),Generic Care Packages SE Team -PS,Social Care - Homecare,14/10/2016,3761818,668.98,SANCTUARY HOME CARE LIMITED
Adults Services,Adult Social Care,Support with Memory and Cognition - adults (18-64),Generic Care Packages SW Team - PS,Social Care - Homecare,14/10/2016,3761820,507.78,SANCTUARY HOME CARE LIMITED
Adults Services,Adult Social Care,Support with Memory and Cognition - adults (18-64),Generic Care Packages SW Team-SMC,Social Care - Homecare,14/10/2016,3761822,531.96,SANCTUARY HOME CARE LIMITED
Adults Services,Adult Social Care,Support with Memory and Cognition - adults (18-64),Generic Care Packages SW Team - PS,Social Care - Home Care (Short Term),14/10/2016,3761831,507.78,SANCTUARY HOME CARE LIMITED
Adults Services,Adult Social Care,Support with Memory and Cognition - adults (18-64),Generic Care Packages NE Team -PS,Social Care - Homecare,14/10/2016,3761836,677.04,SANCTUARY HOME CARE LIMITED
Adults Services,Adult Social Care,Support with Memory and Cognition - adults (18-64),Cmht Bethnal Green,Social Care - Homecare,14/10/2016,3761844,967.20,SANCTUARY HOME CARE LIMITED
Adults Services,Adult Social Care,Support with Memory and Cognition - adults (18-64),Generic Care Packages SW Team - PS,Social Care - Homecare,14/10/2016,3761852,709.28,SANCTUARY HOME CARE LIMITED
Adults Services,Adult Social Care,Support with Memory and Cognition - adults (18-64),Generic Care Packages SE Team -PS,Social Care - Home Care (Short Term),14/10/2016,3761855,507.78,SANCTUARY HOME CARE LIMITED
Adults Services,Adult Social Care,Support with Memory and Cognition - adults (18-64),Generic Care Packages NE Team -PS,Social Care - Homecare,14/10/2016,3761856,531.96,SANCTUARY HOME CARE LIMITED
Adults Services,Adult Social Care,Support with Memory and Cognition - adults (18-64),Generic Care Packages NE Team -PS,Social Care - Homecare,14/10/2016,3761860,564.20,SANCTUARY HOME CARE LIMITED
Adults Services,Adult Social Care,Support with Memory and Cognition - adults (18-64),Generic Care Packages SW Team - PS,Social Care - Home Care (Short Term),14/10/2016,3761861,564.20,SANCTUARY HOME CARE LIMITED
Adults Services,Adult Social Care,Support with Memory and Cognition - adults (18-64),Generic Care Packages SE Team -PS,Social Care - Homecare,14/10/2016,3761865,540.02,SANCTUARY HOME CARE LIMITED
Adults Services,Adult Social Care,Support with Memory and Cognition - adults (18-64),CLDS Longer Term Support Teams,Social Care - Homecare,14/10/2016,3761872,628.68,SANCTUARY HOME CARE LIMITED
Adults Services,Adult Social Care,Support with Memory and Cognition - adults (18-64),Generic Care Packages NE Team -PS,Social Care - Homecare,14/10/2016,3761887,622.00,Soma Healthcare Ltd
Adults Services,Adult Social Care,Support with Memory and Cognition - adults (18-64),Generic Care Packages NW Team -PS,Social Care - Homecare,14/10/2016,3761888,514.00,Soma Healthcare Ltd
Adults Services,Adult Social Care,Support with Memory and Cognition - adults (18-64),Generic Care Packages SW Team - PS,Social Care - Homecare,14/10/2016,3761890,"1,087.80",AQUAFLO CARE LTD
Adults Services,Adult Social Care,Physical Support - adults (18-64),"Failed Care Package Conversion		",Social Care - Homecare,14/10/2016,3761891,"2,146.00",AQUAFLO CARE LTD
Adults Services,Adult Social Care,Support with Memory and Cognition - adults (18-64),Generic Care Packages SE Team -PS,Social Care - Homecare,14/10/2016,3761895,"1,805.60",AQUAFLO CARE LTD
Adults Services,Adult Social Care,Support with Memory and Cognition - adults (18-64),CLDS Longer Term Support Teams,Social Care - Homecare,14/10/2016,3761896,"1,184.00",AQUAFLO CARE LTD
Adults Services,Adult Social Care,Support with Memory and Cognition - adults (18-64),Generic Care Packages SW Team - PS,Social Care - Homecare,14/10/2016,3761897,658.60,AQUAFLO CARE LTD
Adults Services,Adult Social Care,Support with Memory and Cognition - adults (18-64),Generic Care Packages NW Team -PS,Social Care - Homecare,14/10/2016,3761898,"1,346.80",AQUAFLO CARE LTD
Adults Services,Adult Social Care,Support with Memory and Cognition - adults (18-64),Generic Care Packages SW Team - PS,Social Care - Home Care (Short Term),14/10/2016,3761899,828.80,AQUAFLO CARE LTD
Adults Services,Adult Social Care,Support with Memory and Cognition - adults (18-64),Generic Care Packages NW Team -PS,Social Care - Home Care (Short Term),14/10/2016,3761901,"2,279.20",AQUAFLO CARE LTD
Adults Services,Adult Social Care,Support with Memory and Cognition - adults (18-64),Generic Care Packages SW Team - PS,Social Care - Home Care (Short Term),14/10/2016,3761902,592.00,AQUAFLO CARE LTD
Adults Services,Adult Social Care,Support with Memory and Cognition - adults (18-64),Generic Care Packages SW Team - PS,Social Care - Homecare,14/10/2016,3761907,"1,450.40",AQUAFLO CARE LTD
Adults Services,Adult Social Care,Physical Support - adults (18-64),"Failed Care Package Conversion		",Social Care - Homecare,14/10/2016,3761908,"1,875.20",AQUAFLO CARE LTD
Adults Services,Adult Social Care,Support with Memory and Cognition - adults (18-64),CLDS Longer Term Support Teams,Social Care - Homecare,14/10/2016,3761913,"1,184.00",AQUAFLO CARE LTD
Adults Services,Adult Social Care,Support with Memory and Cognition - adults (18-64),Generic Care Packages SW Team - PS,Social Care - Homecare,14/10/2016,3761914,673.40,AQUAFLO CARE LTD
Adults Services,Adult Social Care,Support with Memory and Cognition - adults (18-64),Generic Care Packages SW Team - PS,Social Care - Homecare,14/10/2016,3761917,"1,198.80",AQUAFLO CARE LTD
Adults Services,Adult Social Care,Support with Memory and Cognition - adults (18-64),Generic Care Packages NE Team -PS,Social Care - Home Care (Short Term),14/10/2016,3761918,540.20,AQUAFLO CARE LTD
Adults Services,Adult Social Care,Support with Memory and Cognition - adults (18-64),Generic Care Packages SW Team - PS,Social Care - Home Care (Short Term),14/10/2016,3761919,821.40,AQUAFLO CARE LTD
Adults Services,Adult Social Care,Support with Memory and Cognition - adults (18-64),Generic Care Packages SW Team - PS,Social Care - Homecare,14/10/2016,3761922,"1,439.30",AQUAFLO CARE LTD
Adults Services,Adult Social Care,Physical Support - adults (18-64),"Failed Care Package Conversion		",Social Care - Homecare,14/10/2016,3761923,"2,180.20",AQUAFLO CARE LTD
Adults Services,Adult Social Care,Support with Memory and Cognition - adults (18-64),CLDS Longer Term Support Teams,Social Care - Homecare,14/10/2016,3761926,"1,184.00",AQUAFLO CARE LTD
Adults Services,Adult Social Care,Support with Memory and Cognition - adults (18-64),Generic Care Packages SW Team - PS,Social Care - Homecare,14/10/2016,3761927,673.40,AQUAFLO CARE LTD
Adults Services,Adult Social Care,Support with Memory and Cognition - adults (18-64),Generic Care Packages NW Team -PS,Social Care - Home Care (Short Term),14/10/2016,3761931,"2,323.60",AQUAFLO CARE LTD
Adults Services,Adult Social Care,Support with Memory and Cognition - adults (18-64),Generic Care Packages SW Team - PS,Social Care - Homecare,14/10/2016,3761932,"1,398.60",AQUAFLO CARE LTD
Adults Services,Adult Social Care,Support with Memory and Cognition - adults (18-64),Generic Care Packages NE Team -PS,Social Care - Home Care (Short Term),14/10/2016,3761933,828.80,AQUAFLO CARE LTD
Adults Services,Adult Social Care,Support with Memory and Cognition - adults (18-64),Generic Care Packages SW Team - PS,Social Care - Home Care (Short Term),14/10/2016,3761934,828.80,AQUAFLO CARE LTD
Adults Services,Adult Social Care,Support with Memory and Cognition - adults (18-64),Generic Care Packages SE Team -PS,Social Care - Homecare,14/10/2016,3761940,"1,909.20",AQUAFLO CARE LTD
Adults Services,Adult Social Care,Support with Memory and Cognition - adults (18-64),Generic Care Packages SW Team - PS,Social Care - Homecare,14/10/2016,3761944,"1,439.30",AQUAFLO CARE LTD
Adults Services,Adult Social Care,Physical Support - adults (18-64),"Failed Care Package Conversion		",Social Care - Homecare,14/10/2016,3761945,"2,227.50",AQUAFLO CARE LTD
Adults Services,Adult Social Care,Support with Memory and Cognition - adults (18-64),CLDS Longer Term Support Teams,Social Care - Homecare,14/10/2016,3761948,"1,184.00",AQUAFLO CARE LTD
Adults Services,Adult Social Care,Support with Memory and Cognition - adults (18-64),Generic Care Packages SW Team - PS,Social Care - Homecare,14/10/2016,3761949,632.70,AQUAFLO CARE LTD
Adults Services,Adult Social Care,Support with Memory and Cognition - adults (18-64),Generic Care Packages NW Team -PS,Social Care - Home Care (Short Term),14/10/2016,3761951,"2,471.60",AQUAFLO CARE LTD
Adults Services,Adult Social Care,Support with Memory and Cognition - adults (18-64),Generic Care Packages NE Team -PS,Social Care - Home Care (Short Term),14/10/2016,3761952,828.80,AQUAFLO CARE LTD
Adults Services,Adult Social Care,Support with Memory and Cognition - adults (18-64),Generic Care Packages SW Team - PS,Social Care - Home Care (Short Term),14/10/2016,3761953,828.80,AQUAFLO CARE LTD
Adults Services,Adult Social Care,Support with Memory and Cognition - adults (18-64),Generic Care Packages SE Team -PS,Social Care - Homecare,14/10/2016,3761959,"1,909.20",AQUAFLO CARE LTD
Adults Services,Adult Social Care,Support with Memory and Cognition - adults (18-64),Generic Care Packages NW Team -PS,Social Care - Homecare,14/10/2016,3761962,822.12,SANCTUARY HOME CARE LIMITED
Adults Services,Adult Social Care,Physical Support - adults (18-64),Public Health � Healthy Communities,Third Party Payments - Other Establishments,14/10/2016,3762060,"22,916.67",Stifford Centre
Adults Services,Public Health,Smoking and Tobacco,Public Health Team - 2,Third Party Payments - Other Establishments,17/10/2016,3700830,"-13,802.00",Homerton University Hospital Trust
Adults Services,Adult Social Care,Support with Memory and Cognition - adults (18-64),Generic Care Packages SW Team-SMC,Social Care - Nursing Care,17/10/2016,3733502,"4,605.80",Havelock Court (Bupa)
Adults Services,Adult Social Care,Support with Memory and Cognition - adults (18-64),Generic Care Packages NE Team -SI,Social Care - Homecare,17/10/2016,3753038,676.17,POSITIVE CARE LINK
Adults Services,Adult Social Care,Physical Support - adults (18-64),Public Health � Healthy Young Adults,Third Party Payments - Other Establishments,17/10/2016,3753340,"20,028.88",Homerton University Hospital Trust
Adults Services,Adult Social Care,Support with Memory and Cognition - adults (18-64),Generic Care Packages SE Team-SMC,Social Care - Homecare,17/10/2016,3755077,"2,646.00",Supporting Care
Adults Services,Adult Social Care,Support with Memory and Cognition - adults (18-64),Generic Care Packages SE Team-SMC,Social Care - Homecare,17/10/2016,3755078,"2,646.00",Supporting Care
Adults Services,Adult Social Care,Support with Memory and Cognition - adults (18-64),Generic Care Packages SE Team-SMC,Social Care - Homecare,17/10/2016,3755079,"1,984.50",Supporting Care
Adults Services,Adult Social Care,Support with Memory and Cognition - adults (18-64),Generic Care Packages SE Team-SMC,Social Care - Homecare,17/10/2016,3755080,"2,646.00",Supporting Care
Adults Services,Adult Social Care,Support with Memory and Cognition - adults (18-64),Generic Care Packages SE Team-SMC,Social Care - Homecare,17/10/2016,3755081,"2,646.00",Supporting Care
Adults Services,Adult Social Care,Support with Memory and Cognition - adults (18-64),Generic Care Packages SE Team-SMC,Social Care - Homecare,17/10/2016,3755082,"2,646.00",Supporting Care
Adults Services,Adult Social Care,Support with Memory and Cognition - adults (18-64),Generic Care Packages SE Team-SMC,Social Care - Homecare,17/10/2016,3755083,"2,646.00",Supporting Care
Adults Services,Adult Social Care,Support with Memory and Cognition - adults (18-64),Generic Care Packages SE Team-SMC,Social Care - Homecare,17/10/2016,3755084,"2,646.00",Supporting Care
Adults Services,Adult Social Care,Support with Memory and Cognition - adults (18-64),Generic Care Packages SE Team-SMC,Social Care - Homecare,17/10/2016,3755085,"2,646.00",Supporting Care
Adults Services,Adult Social Care,Support with Memory and Cognition - adults (18-64),Generic Care Packages SE Team-SMC,Social Care - Homecare,17/10/2016,3755086,"2,646.00",Supporting Care
Adults Services,No Service Specified,No Division Specified,Capital-Minor Works (SC),Building Works - Main Works,17/10/2016,3755880,"553,931.00",Tower Hamlets Schools LTD
Adults Services,Adult Social Care,Support with Memory and Cognition - adults (18-64),CLDS Longer Term Support Teams,Social Care - Residential Care,17/10/2016,3756428,"6,504.00",OVERLEY HALL SCHOOL LTD
Adults Services,No Service Specified,No Division Specified,Community Equipment Store,Rent Charges,17/10/2016,3761995,"37,629.00",Workspace Group PLC
Adults Services,Adult Social Care,Physical Support - adults (18-64),Public Health � Healthy Communities,Third Party Payments - Voluntary Associations,17/10/2016,3762061,"55,000.00",Stifford Centre
Adults Services,No Service Specified,No Division Specified,Community Equipment Store,Community Equipment  Supplies - Aids and Appliances,17/10/2016,3762310,685.14,Laville Ltd t/a BRITANNIA PHARMACY
Adults Services,Adult Social Care,Support with Memory and Cognition - adults (18-64),Generic Care Packages SE Team -SP,Non Staff Transport Costs - Client Transport Costs,19/10/2016,3748566,600.00,Abacus Ambulance Service
Adults Services,Adult Social Care,Physical Support - adults (18-64),Fides Care,Healthy & Safety Supplies,19/10/2016,3753414,678.00,Praetorian Disposable Products Ltd
Adults Services,Adult Social Care,Support with Memory and Cognition - adults (18-64),Generic Care Packages NE Team -SP,Social Care - Residential Care,19/10/2016,3756291,"1,600.56",Sir Josiah Mason's Care Charity
Adults Services,Adult Social Care,Physical Support - adults (18-64),Adult Protection Team,Services - Professional Fees - Consultants Fees,19/10/2016,3762860,"1,038.00",RADHA CONSULTING LTD
Adults Services,Adult Social Care,Support with Memory and Cognition - adults (18-64),CLDS Longer Term Support Teams,Social Care - Homecare,19/10/2016,3763017,"6,298.11",Look Ahead Care & Support Ltd
Adults Services,Adult Social Care,Support with Memory and Cognition - adults (18-64),Generic Care Packages SW Team - PS,Social Care - Homecare,19/10/2016,3763020,767.97,FOCUS CARE LINK LTD
Adults Services,Adult Social Care,Support with Memory and Cognition - adults (18-64),Generic Care Packages SW Team - PS,Social Care - Homecare,19/10/2016,3763021,"13,918.11",Active Assistance
Adults Services,Adult Social Care,Support with Memory and Cognition - adults (18-64),Generic Care Packages SW Team - PS,Social Care - Homecare,19/10/2016,3763022,"13,918.11",Active Assistance
Adults Services,Adult Social Care,Physical Support - adults (18-64),"Failed Care Package Conversion		",Social Care - Others,19/10/2016,3763026,912.87,FOCUS CARE LINK LTD
Adults Services,Adult Social Care,Support with Memory and Cognition - adults (18-64),CLDS Longer Term Support Teams,Social Care - Residential Care,19/10/2016,3763034,"6,537.90",INDEPENDENCE HOMES LTD
Adults Services,Adult Social Care,Physical Support - adults (18-64),"Failed Care Package Conversion		",Social Care - Others,19/10/2016,3763057,688.08,MEARS CARE LTD
Adults Services,Adult Social Care,Support with Memory and Cognition - adults (18-64),CLDS Longer Term Support Teams,Social Care - Homecare,19/10/2016,3763058,"1,772.85",MEARS CARE LTD
Adults Services,Adult Social Care,Support with Memory and Cognition - adults (18-64),CLDS Longer Term Support Teams,Social Care - Homecare,19/10/2016,3763059,"2,599.80",MEARS CARE LTD
Adults Services,Adult Social Care,Support with Memory and Cognition - adults (18-64),Generic Care Packages NE Team -PS,Social Care - Homecare,19/10/2016,3763069,652.05,FOCUS CARE LINK LTD
Adults Services,Adult Social Care,Support with Memory and Cognition - adults (18-64),Generic Care Packages NE Team -PS,Social Care - Homecare,19/10/2016,3763072,585.71,FOCUS CARE LINK LTD
Adults Services,Adult Social Care,Support with Memory and Cognition - adults (18-64),Generic Care Packages SE Team -PS,Social Care - Prevention & Support,19/10/2016,3763073,"12,401.59",Circle Housing - C33
Adults Services,Adult Social Care,Support with Memory and Cognition - adults (18-64),Generic Care Packages SW Team - PS,Social Care - Homecare,19/10/2016,3763074,660.19,FOCUS CARE LINK LTD
Adults Services,Adult Social Care,Support with Memory and Cognition - adults (18-64),CLDS Longer Term Support Teams,Social Care - Respite Care,19/10/2016,3763103,"2,964.68",Tower Project
Adults Services,Adult Social Care,Support with Memory and Cognition - adults (18-64),CLDS Longer Term Support Teams,Social Care - Day Care,19/10/2016,3763105,"1,429.74",Tower Project
Adults Services,Adult Social Care,Support with Memory and Cognition - adults (18-64),CLDS Longer Term Support Teams,Social Care - Homecare,19/10/2016,3763106,"1,724.45",Tower Project
Adults Services,Adult Social Care,Support with Memory and Cognition - adults (18-64),CLDS Longer Term Support Teams,Social Care - Day Care,19/10/2016,3763107,"1,630.72",Tower Project
Adults Services,Adult Social Care,Support with Memory and Cognition - adults (18-64),CLDS Longer Term Support Teams,Social Care - Homecare,19/10/2016,3763108,"4,739.15",Tower Project
Adults Services,Adult Social Care,Support with Memory and Cognition - adults (18-64),CLDS Longer Term Support Teams,Social Care - Homecare,19/10/2016,3763109,"1,648.40",Tower Project
Adults Services,Adult Social Care,Support with Memory and Cognition - adults (18-64),CLDS Longer Term Support Teams,Social Care - Day Care,19/10/2016,3763110,"2,074.80",Tower Project
Adults Services,Adult Social Care,Support with Memory and Cognition - adults (18-64),CLDS Longer Term Support Teams,Social Care - Homecare,19/10/2016,3763111,"1,815.45",Tower Project
Adults Services,Adult Social Care,Support with Memory and Cognition - adults (18-64),CLDS Longer Term Support Teams,Social Care - Homecare,19/10/2016,3763112,"4,636.19",Tower Project
Adults Services,Adult Social Care,Physical Support - adults (18-64),"Failed Care Package Conversion		",Social Care - Extra Care Sheltered Housing,19/10/2016,3763113,"5,792.01",Creative Support
Adults Services,Adult Social Care,Support with Memory and Cognition - adults (18-64),Generic Care Packages SW Team - PS,Social Care - Direct Payments,19/10/2016,3763130,"1,048.80",DAVID HOWARD LTD CLIENT ACCOUNT
Adults Services,Adult Social Care,Support with Memory and Cognition - adults (18-64),Generic Care Packages SW Team - PS,Social Care - Direct Payments,19/10/2016,3763132,532.80,DAVID HOWARD LTD CLIENT ACCOUNT
Adults Services,Adult Social Care,Support with Memory and Cognition - adults (18-64),Generic Care Packages NE Team -SI,Social Care - Direct Payments,19/10/2016,3763141,"1,133.96",DAVID HOWARD LTD CLIENT ACCOUNT
Adults Services,Adult Social Care,Support with Memory and Cognition - adults (18-64),Generic Care Packages SW Team - PS,Social Care - Direct Payments,19/10/2016,3763142,"2,442.86",D D PAYROLL SERVICES
Adults Services,Adult Social Care,Support with Memory and Cognition - adults (18-64),Generic Care Packages NE Team -PS,Social Care - Direct Payments,19/10/2016,3763143,"1,102.07",DAVID HOWARD LTD CLIENT ACCOUNT
Adults Services,Adult Social Care,Support with Memory and Cognition - adults (18-64),Generic Care Packages NE Team -PS,Social Care - Direct Payments,19/10/2016,3763145,"2,411.40",D D PAYROLL SERVICES
Adults Services,Adult Social Care,Support with Memory and Cognition - adults (18-64),Generic Care Packages NE Team -PS,Social Care - Direct Payments,19/10/2016,3763148,862.63,D D PAYROLL SERVICES
Adults Services,Adult Social Care,Support with Memory and Cognition - adults (18-64),Generic Care Packages SE Team -PS,Social Care - Direct Payments,19/10/2016,3763149,"1,060.24",DAVID HOWARD LTD CLIENT ACCOUNT
Adults Services,Adult Social Care,Support with Memory and Cognition - adults (18-64),Generic Care Packages SE Team -PS,Social Care - Direct Payments,19/10/2016,3763150,991.63,DAVID HOWARD LTD CLIENT ACCOUNT
Adults Services,Adult Social Care,Support with Memory and Cognition - adults (18-64),Generic Care Packages SW Team - PS,Social Care - Direct Payments,19/10/2016,3763151,"2,449.20",DAVID HOWARD LTD CLIENT ACCOUNT
Adults Services,Adult Social Care,Support with Memory and Cognition - adults (18-64),Generic Care Packages NE Team -PS,Social Care - Direct Payments,19/10/2016,3763153,874.97,DAVID HOWARD LTD CLIENT ACCOUNT
Adults Services,Adult Social Care,Support with Memory and Cognition - adults (18-64),Generic Care Packages SW Team - PS,Social Care - Direct Payments,19/10/2016,3763156,"1,113.77",D D PAYROLL SERVICES
Adults Services,Adult Social Care,Support with Memory and Cognition - adults (18-64),CLDS Longer Term Support Teams,Social Care - Direct Payments,19/10/2016,3763157,"1,824.77",DAVID HOWARD LTD CLIENT ACCOUNT
Adults Services,Adult Social Care,Support with Memory and Cognition - adults (18-64),Generic Care Packages NW Team -PS,Social Care - Direct Payments,19/10/2016,3763158,670.46,D D PAYROLL SERVICES
Adults Services,Adult Social Care,Support with Memory and Cognition - adults (18-64),Generic Care Packages SE Team -PS,Social Care - Direct Payments,19/10/2016,3763160,"1,288.03",D D PAYROLL SERVICES
Adults Services,Adult Social Care,Support with Memory and Cognition - adults (18-64),Generic Care Packages NW Team -PS,Social Care - Direct Payments,19/10/2016,3763161,986.10,DAVID HOWARD LTD CLIENT ACCOUNT
Adults Services,Adult Social Care,Support with Memory and Cognition - adults (18-64),CLDS Longer Term Support Teams,Social Care - Direct Payments,19/10/2016,3763166,"1,498.07",D D PAYROLL SERVICES
Adults Services,Adult Social Care,Support with Memory and Cognition - adults (18-64),Generic Care Packages SE Team -PS,Social Care - Direct Payments,19/10/2016,3763168,859.71,D D PAYROLL SERVICES
Adults Services,Adult Social Care,Support with Memory and Cognition - adults (18-64),Generic Care Packages NE Team -PS,Social Care - Direct Payments,19/10/2016,3763172,724.50,DAVID HOWARD LTD CLIENT ACCOUNT
Adults Services,Adult Social Care,Support with Memory and Cognition - adults (18-64),CLDS Longer Term Support Teams,Social Care - Direct Payments,19/10/2016,3763173,771.43,D D PAYROLL SERVICES
Adults Services,Adult Social Care,Support with Memory and Cognition - adults (18-64),CLDS Longer Term Support Teams,Social Care - Direct Payments,19/10/2016,3763176,"3,724.84",D D PAYROLL SERVICES
Adults Services,Adult Social Care,Support with Memory and Cognition - adults (18-64),Generic Care Packages SE Team -PS,Social Care - Direct Payments,19/10/2016,3763178,751.16,DAVID HOWARD LTD CLIENT ACCOUNT
Adults Services,Adult Social Care,Support with Memory and Cognition - adults (18-64),Generic Care Packages NW Team -PS,Social Care - Direct Payments,19/10/2016,3763179,824.70,DAVID HOWARD LTD CLIENT ACCOUNT
Adults Services,Adult Social Care,Support with Memory and Cognition - adults (18-64),Cmht Bethnal Green,Social Care - Direct Payments,19/10/2016,3763180,688.33,DAVID HOWARD LTD CLIENT ACCOUNT
Adults Services,Adult Social Care,Support with Memory and Cognition - adults (18-64),Generic Care Packages NE Team -SI,Social Care - Direct Payments,19/10/2016,3763185,"2,103.26",DAVID HOWARD LTD CLIENT ACCOUNT
Adults Services,Adult Social Care,Support with Memory and Cognition - adults (18-64),Generic Care Packages NE Team -PS,Social Care - Direct Payments,19/10/2016,3763186,"3,513.56",DAVID HOWARD LTD CLIENT ACCOUNT
Adults Services,Adult Social Care,Support with Memory and Cognition - adults (18-64),CLDS Longer Term Support Teams,Social Care - Direct Payments,19/10/2016,3763187,"2,835.85",DAVID HOWARD LTD CLIENT ACCOUNT
Adults Services,Adult Social Care,Support with Memory and Cognition - adults (18-64),Generic Care Packages SE Team -PS,Social Care - Direct Payments,19/10/2016,3763188,"1,445.70",DAVID HOWARD LTD CLIENT ACCOUNT
Adults Services,Adult Social Care,Support with Memory and Cognition - adults (18-64),CLDS Longer Term Support Teams,Social Care - Direct Payments,19/10/2016,3763189,"3,282.81",DAVID HOWARD LTD CLIENT ACCOUNT
Adults Services,Adult Social Care,Support with Memory and Cognition - adults (18-64),Generic Care Packages SW Team - PS,Social Care - Direct Payments,19/10/2016,3763192,"1,251.64",DAVID HOWARD LTD CLIENT ACCOUNT
Adults Services,Adult Social Care,Support with Memory and Cognition - adults (18-64),CLDS Longer Term Support Teams,Social Care - Direct Payments,19/10/2016,3763193,625.76,D D PAYROLL SERVICES
Adults Services,Adult Social Care,Support with Memory and Cognition - adults (18-64),Generic Care Packages SE Team -PS,Social Care - Direct Payments,19/10/2016,3763194,"1,004.53",D D PAYROLL SERVICES
Adults Services,Adult Social Care,Support with Memory and Cognition - adults (18-64),CLDS Longer Term Support Teams,Social Care - Direct Payments,19/10/2016,3763197,654.04,DAVID HOWARD LTD CLIENT ACCOUNT
Adults Services,Adult Social Care,Support with Memory and Cognition - adults (18-64),Generic Care Packages NW Team -PS,Social Care - Direct Payments,19/10/2016,3763198,"1,444.76",D D PAYROLL SERVICES
Adults Services,Adult Social Care,Support with Memory and Cognition - adults (18-64),Generic Care Packages SE Team -PS,Social Care - Direct Payments,19/10/2016,3763199,597.34,D D PAYROLL SERVICES
Adults Services,Adult Social Care,Support with Memory and Cognition - adults (18-64),CLDS Longer Term Support Teams,Social Care - Direct Payments,19/10/2016,3763200,"5,012.96",DAVID HOWARD LTD CLIENT ACCOUNT
Adults Services,Adult Social Care,Support with Memory and Cognition - adults (18-64),CLDS Longer Term Support Teams,Social Care - Direct Payments,19/10/2016,3763202,741.60,DAVID HOWARD LTD CLIENT ACCOUNT
Adults Services,Adult Social Care,Support with Memory and Cognition - adults (18-64),Generic Care Packages NW Team -PS,Social Care - Direct Payments,19/10/2016,3763203,722.06,DAVID HOWARD LTD CLIENT ACCOUNT
Adults Services,Adult Social Care,Support with Memory and Cognition - adults (18-64),CLDS Longer Term Support Teams,Social Care - Direct Payments,19/10/2016,3763208,"1,118.36",D D PAYROLL SERVICES
Adults Services,Adult Social Care,Support with Memory and Cognition - adults (18-64),Generic Care Packages NW Team -PS,Social Care - Direct Payments,19/10/2016,3763209,"1,019.57",DAVID HOWARD LTD CLIENT ACCOUNT
Adults Services,Adult Social Care,Support with Memory and Cognition - adults (18-64),CLDS Longer Term Support Teams,Social Care - Direct Payments,19/10/2016,3763210,805.50,D D PAYROLL SERVICES
Adults Services,Adult Social Care,Support with Memory and Cognition - adults (18-64),Generic Care Packages SW Team - PS,Social Care - Direct Payments,19/10/2016,3763211,"3,626.53",DAVID HOWARD LTD CLIENT ACCOUNT
Adults Services,Adult Social Care,Support with Memory and Cognition - adults (18-64),Generic Care Packages SE Team -PS,Social Care - Direct Payments,19/10/2016,3763214,"1,068.17",DAVID HOWARD LTD CLIENT ACCOUNT
Adults Services,Adult Social Care,Support with Memory and Cognition - adults (18-64),Generic Care Packages SW Team - PS,Social Care - Direct Payments,19/10/2016,3763216,510.00,DAVID HOWARD LTD CLIENT ACCOUNT
Adults Services,Adult Social Care,Support with Memory and Cognition - adults (18-64),Generic Care Packages SW Team -SC,Social Care - Direct Payments,19/10/2016,3763217,625.24,DAVID HOWARD LTD CLIENT ACCOUNT
Adults Services,Adult Social Care,Support with Memory and Cognition - adults (18-64),Generic Care Packages SW Team - PS,Social Care - Direct Payments,19/10/2016,3763218,742.59,DAVID HOWARD LTD CLIENT ACCOUNT
Adults Services,Adult Social Care,Support with Memory and Cognition - adults (18-64),CLDS Longer Term Support Teams,Social Care - Direct Payments,19/10/2016,3763219,"1,342.29",D D PAYROLL SERVICES
Adults Services,Adult Social Care,Support with Memory and Cognition - adults (18-64),CLDS Longer Term Support Teams,Social Care - Direct Payments,19/10/2016,3763221,"2,275.03",D D PAYROLL SERVICES
Adults Services,Adult Social Care,Support with Memory and Cognition - adults (18-64),Generic Care Packages SW Team - PS,Social Care - Direct Payments,19/10/2016,3763223,626.57,D D PAYROLL SERVICES
Adults Services,Adult Social Care,Support with Memory and Cognition - adults (18-64),CLDS Longer Term Support Teams,Social Care - Direct Payments,19/10/2016,3763229,"1,333.63",D D PAYROLL SERVICES
Adults Services,Adult Social Care,Support with Memory and Cognition - adults (18-64),Generic Care Packages NW Team -PS,Social Care - Direct Payments,19/10/2016,3763231,"4,110.60",DAVID HOWARD LTD CLIENT ACCOUNT
Adults Services,Adult Social Care,Support with Memory and Cognition - adults (18-64),CLDS Longer Term Support Teams,Social Care - Direct Payments,19/10/2016,3763232,"4,178.57",D D PAYROLL SERVICES
Adults Services,Adult Social Care,Support with Memory and Cognition - adults (18-64),Generic Care Packages SW Team - PS,Social Care - Direct Payments,19/10/2016,3763233,698.40,DAVID HOWARD LTD CLIENT ACCOUNT
Adults Services,Adult Social Care,Support with Memory and Cognition - adults (18-64),Generic Care Packages NW Team -PS,Social Care - Direct Payments,19/10/2016,3763235,588.13,DAVID HOWARD LTD CLIENT ACCOUNT
Adults Services,Adult Social Care,Support with Memory and Cognition - adults (18-64),Generic Care Packages NW Team -PS,Social Care - Direct Payments,19/10/2016,3763240,521.27,DAVID HOWARD LTD CLIENT ACCOUNT
Adults Services,Adult Social Care,Support with Memory and Cognition - adults (18-64),Generic Care Packages SE Team -PS,Social Care - Direct Payments,19/10/2016,3763241,538.71,D D PAYROLL SERVICES
Adults Services,Adult Social Care,Support with Memory and Cognition - adults (18-64),Generic Care Packages SW Team - PS,Social Care - Direct Payments,19/10/2016,3763243,"2,095.93",DAVID HOWARD LTD CLIENT ACCOUNT
Adults Services,Adult Social Care,Support with Memory and Cognition - adults (18-64),CLDS Longer Term Support Teams,Social Care - Direct Payments,19/10/2016,3763245,"2,056.71",DAVID HOWARD LTD CLIENT ACCOUNT
Adults Services,Adult Social Care,Support with Memory and Cognition - adults (18-64),CLDS Longer Term Support Teams,Social Care - Direct Payments,19/10/2016,3763248,"3,912.64",D D PAYROLL SERVICES
Adults Services,Adult Social Care,Support with Memory and Cognition - adults (18-64),CLDS Longer Term Support Teams,Social Care - Direct Payments,19/10/2016,3763249,"1,868.83",D D PAYROLL SERVICES
Adults Services,Adult Social Care,Support with Memory and Cognition - adults (18-64),Generic Care Packages SW Team - PS,Social Care - Direct Payments,19/10/2016,3763250,"1,222.50",DAVID HOWARD LTD CLIENT ACCOUNT
Adults Services,Adult Social Care,Support with Memory and Cognition - adults (18-64),Cmht Iod / Poplar South,Social Care - Direct Payments,19/10/2016,3763252,506.57,DAVID HOWARD LTD CLIENT ACCOUNT
Adults Services,Adult Social Care,Support with Memory and Cognition - adults (18-64),Generic Care Packages NW Team -PS,Social Care - Direct Payments,19/10/2016,3763253,"1,131.30",DAVID HOWARD LTD CLIENT ACCOUNT
Adults Services,Adult Social Care,Support with Memory and Cognition - adults (18-64),Generic Care Packages SW Team - PS,Social Care - Direct Payments,19/10/2016,3763255,"1,201.20",DAVID HOWARD LTD CLIENT ACCOUNT
Adults Services,Adult Social Care,Support with Memory and Cognition - adults (18-64),Generic Care Packages SE Team -PS,Social Care - Direct Payments,19/10/2016,3763257,"1,225.46",DAVID HOWARD LTD CLIENT ACCOUNT
Adults Services,Adult Social Care,Support with Memory and Cognition - adults (18-64),CLDS Longer Term Support Teams,Social Care - Direct Payments,19/10/2016,3763258,968.74,D D PAYROLL SERVICES
Adults Services,Adult Social Care,Support with Memory and Cognition - adults (18-64),CLDS Longer Term Support Teams,Social Care - Direct Payments,19/10/2016,3763259,"2,961.94",D D PAYROLL SERVICES
Adults Services,Adult Social Care,Support with Memory and Cognition - adults (18-64),CLDS Longer Term Support Teams,Social Care - Direct Payments,19/10/2016,3763261,"2,785.71",DAVID HOWARD LTD CLIENT ACCOUNT
Adults Services,Adult Social Care,Support with Memory and Cognition - adults (18-64),Generic Care Packages NW Team -PS,Social Care - Direct Payments,19/10/2016,3763262,"7,574.79",DAVID HOWARD LTD CLIENT ACCOUNT
Adults Services,Adult Social Care,Support with Memory and Cognition - adults (18-64),CLDS Longer Term Support Teams,Social Care - Direct Payments,19/10/2016,3763267,"1,260.94",DAVID HOWARD LTD CLIENT ACCOUNT
Adults Services,Adult Social Care,Support with Memory and Cognition - adults (18-64),CLDS Longer Term Support Teams,Social Care - Direct Payments,19/10/2016,3763268,871.93,D D PAYROLL SERVICES
Adults Services,Adult Social Care,Support with Memory and Cognition - adults (18-64),CLDS Longer Term Support Teams,Social Care - Direct Payments,19/10/2016,3763269,871.93,D D PAYROLL SERVICES
Adults Services,Adult Social Care,Support with Memory and Cognition - adults (18-64),Generic Care Packages SW Team - PS,Social Care - Direct Payments,19/10/2016,3763270,748.93,DAVID HOWARD LTD CLIENT ACCOUNT
Adults Services,Adult Social Care,Support with Memory and Cognition - adults (18-64),CLDS Longer Term Support Teams,Social Care - Direct Payments,19/10/2016,3763271,"1,918.11",DAVID HOWARD LTD CLIENT ACCOUNT
Adults Services,Adult Social Care,Support with Memory and Cognition - adults (18-64),CLDS Longer Term Support Teams,Social Care - Direct Payments,19/10/2016,3763272,"1,084.76",DAVID HOWARD LTD CLIENT ACCOUNT
Adults Services,Adult Social Care,Support with Memory and Cognition - adults (18-64),Generic Care Packages NE Team -PS,Social Care - Direct Payments,19/10/2016,3763273,"1,815.34",DAVID HOWARD LTD CLIENT ACCOUNT
Adults Services,Adult Social Care,Support with Memory and Cognition - adults (18-64),Generic Care Packages SW Team-SMC,Social Care - Direct Payments,19/10/2016,3763277,622.20,DAVID HOWARD LTD CLIENT ACCOUNT
Adults Services,Adult Social Care,Support with Memory and Cognition - adults (18-64),Generic Care Packages NW Team -PS,Social Care - Direct Payments,19/10/2016,3763279,844.93,DAVID HOWARD LTD CLIENT ACCOUNT
Adults Services,Adult Social Care,Support with Memory and Cognition - adults (18-64),Generic Care Packages SW Team - PS,Social Care - Direct Payments,19/10/2016,3763283,678.90,DAVID HOWARD LTD CLIENT ACCOUNT
Adults Services,Adult Social Care,Support with Memory and Cognition - adults (18-64),Generic Care Packages NE Team -PS,Social Care - Direct Payments,19/10/2016,3763286,"1,316.36",D D PAYROLL SERVICES
Adults Services,Adult Social Care,Support with Memory and Cognition - adults (18-64),CLDS Longer Term Support Teams,Social Care - Direct Payments,19/10/2016,3763287,629.31,D D PAYROLL SERVICES
Adults Services,Adult Social Care,Support with Memory and Cognition - adults (18-64),Generic Care Packages SE Team -PS,Social Care - Direct Payments,19/10/2016,3763288,"1,013.49",DAVID HOWARD LTD CLIENT ACCOUNT
Adults Services,Adult Social Care,Support with Memory and Cognition - adults (18-64),Generic Care Packages NW Team -PS,Social Care - Direct Payments,19/10/2016,3763289,"1,367.79",DAVID HOWARD LTD CLIENT ACCOUNT
Adults Services,Adult Social Care,Support with Memory and Cognition - adults (18-64),Generic Care Packages SE Team -PS,Social Care - Direct Payments,19/10/2016,3763290,761.19,D D PAYROLL SERVICES
Adults Services,Adult Social Care,Support with Memory and Cognition - adults (18-64),Generic Care Packages SE Team -PS,Social Care - Direct Payments,19/10/2016,3763291,895.97,DAVID HOWARD LTD CLIENT ACCOUNT
Adults Services,Adult Social Care,Support with Memory and Cognition - adults (18-64),Generic Care Packages SE Team -PS,Social Care - Direct Payments,19/10/2016,3763293,588.04,DAVID HOWARD LTD CLIENT ACCOUNT
Adults Services,Adult Social Care,Support with Memory and Cognition - adults (18-64),Generic Care Packages NW Team -PS,Social Care - Direct Payments,19/10/2016,3763294,"3,979.71",D D PAYROLL SERVICES
Adults Services,Adult Social Care,Support with Memory and Cognition - adults (18-64),Generic Care Packages SE Team-SMC,Social Care - Direct Payments,19/10/2016,3763296,"13,386.09",D D PAYROLL SERVICES
Adults Services,Adult Social Care,Support with Memory and Cognition - adults (18-64),Generic Care Packages SW Team - PS,Social Care - Direct Payments,19/10/2016,3763298,514.29,DAVID HOWARD LTD CLIENT ACCOUNT
Adults Services,Adult Social Care,Support with Memory and Cognition - adults (18-64),Generic Care Packages SE Team -PS,Social Care - Direct Payments,19/10/2016,3763299,"1,413.30",DAVID HOWARD LTD CLIENT ACCOUNT
Adults Services,Adult Social Care,Support with Memory and Cognition - adults (18-64),Generic Care Packages SW Team - PS,Social Care - Direct Payments,19/10/2016,3763300,664.16,D D PAYROLL SERVICES
Adults Services,Adult Social Care,Support with Memory and Cognition - adults (18-64),Generic Care Packages SW Team - PS,Social Care - Direct Payments,19/10/2016,3763301,687.21,D D PAYROLL SERVICES
Adults Services,Adult Social Care,Support with Memory and Cognition - adults (18-64),CLDS Longer Term Support Teams,Social Care - Direct Payments,19/10/2016,3763308,957.43,D D PAYROLL SERVICES
Adults Services,Adult Social Care,Support with Memory and Cognition - adults (18-64),Generic Care Packages SE Team -PS,Social Care - Direct Payments,19/10/2016,3763312,"2,719.29",Redacted Section 40 FOI Act
Adults Services,Adult Social Care,Support with Memory and Cognition - adults (18-64),"Generic Care Packages SE Team-LD							",Social Care - Direct Payments,19/10/2016,3763322,"1,327.63",DAVID HOWARD LTD CLIENT ACCOUNT
Adults Services,Adult Social Care,Support with Memory and Cognition - adults (18-64),Generic Care Packages NE Team -PS,Social Care - Direct Payments,19/10/2016,3763323,804.43,DAVID HOWARD LTD CLIENT ACCOUNT
Adults Services,Adult Social Care,Support with Memory and Cognition - adults (18-64),Generic Care Packages NW Team -SP,Social Care - Direct Payments,19/10/2016,3763324,526.76,DAVID HOWARD LTD CLIENT ACCOUNT
Adults Services,Adult Social Care,Support with Memory and Cognition - adults (18-64),Generic Care Packages SW Team - PS,Social Care - Direct Payments,19/10/2016,3763325,542.27,DAVID HOWARD LTD CLIENT ACCOUNT
Adults Services,Adult Social Care,Support with Memory and Cognition - adults (18-64),CLDS Longer Term Support Teams,Social Care - Direct Payments,19/10/2016,3763328,"2,618.79",DAVID HOWARD LTD CLIENT ACCOUNT
Adults Services,Adult Social Care,Support with Memory and Cognition - adults (18-64),CLDS Longer Term Support Teams,Social Care - Direct Payments,19/10/2016,3763329,"2,152.89",DAVID HOWARD LTD CLIENT ACCOUNT
Adults Services,Adult Social Care,Support with Memory and Cognition - adults (18-64),CLDS Longer Term Support Teams,Social Care - Direct Payments,19/10/2016,3763330,"3,347.91",DAVID HOWARD LTD CLIENT ACCOUNT
Adults Services,Adult Social Care,Support with Memory and Cognition - adults (18-64),Generic Care Packages NW Team -PS,Social Care - Direct Payments,19/10/2016,3763334,798.09,DAVID HOWARD LTD CLIENT ACCOUNT
Adults Services,Adult Social Care,Support with Memory and Cognition - adults (18-64),Generic Care Packages NW Team -PS,Social Care - Direct Payments,19/10/2016,3763337,"2,801.70",D D PAYROLL SERVICES
Adults Services,Adult Social Care,Support with Memory and Cognition - adults (18-64),Generic Care Packages NW Team -PS,Social Care - Direct Payments,19/10/2016,3763339,"2,286.56",DAVID HOWARD LTD CLIENT ACCOUNT
Adults Services,Adult Social Care,Support with Memory and Cognition - adults (18-64),Generic Care Packages SE Team -PS,Social Care - Direct Payments,19/10/2016,3763341,"2,914.07",DAVID HOWARD LTD CLIENT ACCOUNT
Adults Services,Adult Social Care,Support with Memory and Cognition - adults (18-64),Generic Care Packages SW Team - PS,Social Care - Direct Payments,19/10/2016,3763346,"1,043.01",DAVID HOWARD LTD CLIENT ACCOUNT
Adults Services,Adult Social Care,Support with Memory and Cognition - adults (18-64),Generic Care Packages NW Team -PS,Social Care - Direct Payments,19/10/2016,3763349,876.69,DAVID HOWARD LTD CLIENT ACCOUNT
Adults Services,Adult Social Care,Support with Memory and Cognition - adults (18-64),Cmht Bethnal Green,Social Care - Direct Payments,19/10/2016,3763350,530.91,PayPacket Ltd
Adults Services,Adult Social Care,Support with Memory and Cognition - adults (18-64),Cmht For Older People,Social Care - Direct Payments,19/10/2016,3763352,"7,844.57",DAVID HOWARD LTD CLIENT ACCOUNT
Adults Services,Adult Social Care,Support with Memory and Cognition - adults (18-64),Generic Care Packages SW Team - PS,Social Care - Direct Payments,19/10/2016,3763354,"2,974.11",D D PAYROLL SERVICES
Adults Services,Adult Social Care,Support with Memory and Cognition - adults (18-64),Cmht For Older People,Social Care - Direct Payments,19/10/2016,3763355,"1,689.60",D D PAYROLL SERVICES
Adults Services,Adult Social Care,Support with Memory and Cognition - adults (18-64),CLDS Longer Term Support Teams,Social Care - Direct Payments,19/10/2016,3763356,"1,453.89",DAVID HOWARD LTD CLIENT ACCOUNT
Adults Services,Adult Social Care,Support with Memory and Cognition - adults (18-64),Generic Care Packages NW Team -PS,Social Care - Direct Payments,19/10/2016,3763357,525.56,DAVID HOWARD LTD CLIENT ACCOUNT
Adults Services,Adult Social Care,Support with Memory and Cognition - adults (18-64),CLDS Longer Term Support Teams,Social Care - Direct Payments,19/10/2016,3763358,"8,120.31",D D PAYROLL SERVICES
Adults Services,Adult Social Care,Support with Memory and Cognition - adults (18-64),CLDS Longer Term Support Teams,Social Care - Direct Payments,19/10/2016,3763359,"4,265.40",D D PAYROLL SERVICES
Adults Services,Adult Social Care,Support with Memory and Cognition - adults (18-64),Generic Care Packages SE Team -PS,Social Care - Direct Payments,19/10/2016,3763361,595.67,DAVID HOWARD LTD CLIENT ACCOUNT
Adults Services,Adult Social Care,Support with Memory and Cognition - adults (18-64),Generic Care Packages SE Team -PS,Social Care - Direct Payments,19/10/2016,3763365,789.99,DAVID HOWARD LTD CLIENT ACCOUNT
Adults Services,Adult Social Care,Support with Memory and Cognition - adults (18-64),Generic Care Packages NW Team -PS,Social Care - Direct Payments,19/10/2016,3763366,628.50,D D PAYROLL SERVICES
Adults Services,Adult Social Care,Support with Memory and Cognition - adults (18-64),CLDS Longer Term Support Teams,Social Care - Direct Payments,19/10/2016,3763369,"2,989.97",DAVID HOWARD LTD CLIENT ACCOUNT
Adults Services,Adult Social Care,Support with Memory and Cognition - adults (18-64),CLDS Longer Term Support Teams,Social Care - Direct Payments,19/10/2016,3763370,771.43,DAVID HOWARD LTD CLIENT ACCOUNT
Adults Services,Adult Social Care,Support with Memory and Cognition - adults (18-64),Generic Care Packages SW Team - PS,Social Care - Direct Payments,19/10/2016,3763371,"1,490.44",DAVID HOWARD LTD CLIENT ACCOUNT
Adults Services,Adult Social Care,Support with Memory and Cognition - adults (18-64),Generic Care Packages SW Team - PS,Social Care - Direct Payments,19/10/2016,3763373,914.19,DAVID HOWARD LTD CLIENT ACCOUNT
Adults Services,Adult Social Care,Support with Memory and Cognition - adults (18-64),Generic Care Packages SE Team -PS,Social Care - Direct Payments,19/10/2016,3763375,629.27,DAVID HOWARD LTD CLIENT ACCOUNT
Adults Services,Adult Social Care,Support with Memory and Cognition - adults (18-64),Cmht Stepney / Wapping,Social Care - Direct Payments,19/10/2016,3763376,625.76,DAVID HOWARD LTD CLIENT ACCOUNT
Adults Services,Adult Social Care,Support with Memory and Cognition - adults (18-64),CLDS Longer Term Support Teams,Social Care - Direct Payments,19/10/2016,3763377,713.27,DAVID HOWARD LTD CLIENT ACCOUNT
Adults Services,Adult Social Care,Support with Memory and Cognition - adults (18-64),Generic Care Packages SW Team - PS,Social Care - Direct Payments,19/10/2016,3763380,"1,200.09",D D PAYROLL SERVICES
Adults Services,Adult Social Care,Support with Memory and Cognition - adults (18-64),Generic Care Packages NE Team -PS,Social Care - Direct Payments,19/10/2016,3763387,"1,103.83",DAVID HOWARD LTD CLIENT ACCOUNT
Adults Services,Adult Social Care,Support with Memory and Cognition - adults (18-64),Generic Care Packages NE Team -PS,Social Care - Direct Payments,19/10/2016,3763388,969.99,DAVID HOWARD LTD CLIENT ACCOUNT
Adults Services,Adult Social Care,Support with Memory and Cognition - adults (18-64),Generic Care Packages NE Team -PS,Social Care - Direct Payments,19/10/2016,3763390,"1,151.14",DAVID HOWARD LTD CLIENT ACCOUNT
Adults Services,Adult Social Care,Support with Memory and Cognition - adults (18-64),Cmht For Older People,Social Care - Direct Payments,19/10/2016,3763391,"2,404.20",DAVID HOWARD LTD CLIENT ACCOUNT
Adults Services,Adult Social Care,Support with Memory and Cognition - adults (18-64),Generic Care Packages SW Team - PS,Social Care - Direct Payments,19/10/2016,3763392,944.83,DAVID HOWARD LTD CLIENT ACCOUNT
Adults Services,Adult Social Care,Support with Memory and Cognition - adults (18-64),Generic Care Packages SW Team - PS,Social Care - Direct Payments,19/10/2016,3763395,"1,278.17",D D PAYROLL SERVICES
Adults Services,Adult Social Care,Support with Memory and Cognition - adults (18-64),Generic Care Packages NW Team -PS,Social Care - Direct Payments,19/10/2016,3763396,"1,131.21",DAVID HOWARD LTD CLIENT ACCOUNT
Adults Services,Adult Social Care,Support with Memory and Cognition - adults (18-64),CLDS Longer Term Support Teams,Social Care - Direct Payments,19/10/2016,3763397,"3,106.37",D D PAYROLL SERVICES
Adults Services,Adult Social Care,Support with Memory and Cognition - adults (18-64),CLDS Longer Term Support Teams,Social Care - Direct Payments,19/10/2016,3763399,"1,762.54",D D PAYROLL SERVICES
Adults Services,Adult Social Care,Support with Memory and Cognition - adults (18-64),Generic Care Packages SW Team - PS,Social Care - Direct Payments,19/10/2016,3763402,916.50,DAVID HOWARD LTD CLIENT ACCOUNT
Adults Services,Adult Social Care,Support with Memory and Cognition - adults (18-64),Generic Care Packages SW Team - PS,Social Care - Direct Payments,19/10/2016,3763403,601.89,D D PAYROLL SERVICES
Adults Services,Adult Social Care,Support with Memory and Cognition - adults (18-64),Generic Care Packages NE Team -PS,Social Care - Direct Payments,19/10/2016,3763404,502.97,DAVID HOWARD LTD CLIENT ACCOUNT
Adults Services,Adult Social Care,Support with Memory and Cognition - adults (18-64),CLDS Longer Term Support Teams,Social Care - Direct Payments,19/10/2016,3763405,522.30,D D PAYROLL SERVICES
Adults Services,Adult Social Care,Support with Memory and Cognition - adults (18-64),Generic Care Packages SW Team - PS,Social Care - Direct Payments,19/10/2016,3763406,769.07,D D PAYROLL SERVICES
Adults Services,Adult Social Care,Support with Memory and Cognition - adults (18-64),Generic Care Packages SW Team - PS,Social Care - Direct Payments,19/10/2016,3763407,704.66,D D PAYROLL SERVICES
Adults Services,Adult Social Care,Support with Memory and Cognition - adults (18-64),CLDS Longer Term Support Teams,Social Care - Direct Payments,19/10/2016,3763408,589.07,DAVID HOWARD LTD CLIENT ACCOUNT
Adults Services,Adult Social Care,Support with Memory and Cognition - adults (18-64),CLDS Longer Term Support Teams,Social Care - Direct Payments,19/10/2016,3763409,622.03,DAVID HOWARD LTD CLIENT ACCOUNT
Adults Services,Adult Social Care,Support with Memory and Cognition - adults (18-64),"Generic Care Packages NW Team-MH						",Social Care - Direct Payments,19/10/2016,3763411,"1,360.24",D D PAYROLL SERVICES
Adults Services,Adult Social Care,Support with Memory and Cognition - adults (18-64),"Generic Care Packages NW Team-MH						",Social Care - Direct Payments,19/10/2016,3763412,900.30,DAVID HOWARD LTD CLIENT ACCOUNT
Adults Services,Adult Social Care,Support with Memory and Cognition - adults (18-64),Generic Care Packages NE Team -PS,Social Care - Direct Payments,19/10/2016,3763414,"1,380.04",D D PAYROLL SERVICES
Adults Services,Adult Social Care,Support with Memory and Cognition - adults (18-64),Cmht For Older People,Social Care - Direct Payments,19/10/2016,3763415,"2,852.19",DAVID HOWARD LTD CLIENT ACCOUNT
Adults Services,Adult Social Care,Support with Memory and Cognition - adults (18-64),Generic Care Packages NW Team -PS,Social Care - Direct Payments,19/10/2016,3763417,"1,049.14",DAVID HOWARD LTD CLIENT ACCOUNT
Adults Services,Adult Social Care,Support with Memory and Cognition - adults (18-64),Generic Care Packages SW Team - PS,Social Care - Direct Payments,19/10/2016,3763422,"1,339.59",DAVID HOWARD LTD CLIENT ACCOUNT
Adults Services,Adult Social Care,Support with Memory and Cognition - adults (18-64),Generic Care Packages SW Team - PS,Social Care - Direct Payments,19/10/2016,3763424,"6,768.77",DAVID HOWARD LTD CLIENT ACCOUNT
Adults Services,Adult Social Care,Support with Memory and Cognition - adults (18-64),Generic Care Packages SE Team -PS,Social Care - Direct Payments,19/10/2016,3763426,"1,772.14",DAVID HOWARD LTD CLIENT ACCOUNT
Adults Services,Adult Social Care,Support with Memory and Cognition - adults (18-64),Generic Care Packages SW Team - PS,Social Care - Direct Payments,19/10/2016,3763427,891.39,DAVID HOWARD LTD CLIENT ACCOUNT
Adults Services,Adult Social Care,Support with Memory and Cognition - adults (18-64),Generic Care Packages SW Team - PS,Social Care - Direct Payments,19/10/2016,3763428,681.73,DAVID HOWARD LTD CLIENT ACCOUNT
Adults Services,Adult Social Care,Support with Memory and Cognition - adults (18-64),CLDS Longer Term Support Teams,Social Care - Direct Payments,19/10/2016,3763429,"9,923.70",DAVID HOWARD LTD CLIENT ACCOUNT
Adults Services,Adult Social Care,Support with Memory and Cognition - adults (18-64),CLDS Longer Term Support Teams,Social Care - Direct Payments,19/10/2016,3763430,"1,071.51",D D PAYROLL SERVICES
Adults Services,Adult Social Care,Support with Memory and Cognition - adults (18-64),CLDS Longer Term Support Teams,Social Care - Direct Payments,19/10/2016,3763431,991.63,D D PAYROLL SERVICES
Adults Services,Adult Social Care,Support with Memory and Cognition - adults (18-64),Generic Care Packages SE Team -PS,Social Care - Direct Payments,19/10/2016,3763435,"6,772.97",DAVID HOWARD LTD CLIENT ACCOUNT
Adults Services,Adult Social Care,Support with Memory and Cognition - adults (18-64),Generic Care Packages NE Team -PS,Social Care - Direct Payments,19/10/2016,3763436,"1,504.33",D D PAYROLL SERVICES
Adults Services,Adult Social Care,Support with Memory and Cognition - adults (18-64),Generic Care Packages SE Team -PS,Social Care - Direct Payments,19/10/2016,3763437,830.83,DAVID HOWARD LTD CLIENT ACCOUNT
Adults Services,Adult Social Care,Support with Memory and Cognition - adults (18-64),Generic Care Packages SW Team - PS,Social Care - Direct Payments,19/10/2016,3763438,584.61,D D PAYROLL SERVICES
Adults Services,Adult Social Care,Support with Memory and Cognition - adults (18-64),Generic Care Packages SW Team - PS,Social Care - Direct Payments,19/10/2016,3763439,"8,686.93",DAVID HOWARD LTD CLIENT ACCOUNT
Adults Services,Adult Social Care,Support with Memory and Cognition - adults (18-64),Generic Care Packages NE Team -PS,Social Care - Direct Payments,19/10/2016,3763442,638.61,DAVID HOWARD LTD CLIENT ACCOUNT
Adults Services,Adult Social Care,Support with Memory and Cognition - adults (18-64),Generic Care Packages SW Team - PS,Social Care - Direct Payments,19/10/2016,3763444,"1,272.73",D D PAYROLL SERVICES
Adults Services,Adult Social Care,Support with Memory and Cognition - adults (18-64),Generic Care Packages NW Team -PS,Social Care - Direct Payments,19/10/2016,3763447,607.76,DAVID HOWARD LTD CLIENT ACCOUNT
Adults Services,Adult Social Care,Support with Memory and Cognition - adults (18-64),Generic Care Packages SE Team -PS,Social Care - Direct Payments,19/10/2016,3763448,973.50,DAVID HOWARD LTD CLIENT ACCOUNT
Adults Services,Adult Social Care,Support with Memory and Cognition - adults (18-64),Generic Care Packages SW Team - PS,Social Care - Direct Payments,19/10/2016,3763451,980.14,DAVID HOWARD LTD CLIENT ACCOUNT
Adults Services,Adult Social Care,Support with Memory and Cognition - adults (18-64),CLDS Longer Term Support Teams,Social Care - Direct Payments,19/10/2016,3763452,558.26,D D PAYROLL SERVICES
Adults Services,Adult Social Care,Support with Memory and Cognition - adults (18-64),Generic Care Packages SW Team - PS,Social Care - Direct Payments,19/10/2016,3763453,506.83,D D PAYROLL SERVICES
Adults Services,Adult Social Care,Support with Memory and Cognition - adults (18-64),Generic Care Packages SW Team - PS,Social Care - Direct Payments,19/10/2016,3763454,935.57,D D PAYROLL SERVICES
Adults Services,Adult Social Care,Support with Memory and Cognition - adults (18-64),Generic Care Packages NW Team -PS,Social Care - Direct Payments,19/10/2016,3763456,897.77,DAVID HOWARD LTD CLIENT ACCOUNT
Adults Services,Adult Social Care,Support with Memory and Cognition - adults (18-64),Generic Care Packages NW Team -PS,Social Care - Direct Payments,19/10/2016,3763458,821.87,DAVID HOWARD LTD CLIENT ACCOUNT
Adults Services,Adult Social Care,Support with Memory and Cognition - adults (18-64),Generic Care Packages SE Team -PS,Social Care - Direct Payments,19/10/2016,3763461,"2,787.34",D D PAYROLL SERVICES
Adults Services,Adult Social Care,Support with Memory and Cognition - adults (18-64),Generic Care Packages NE Team -PS,Social Care - Direct Payments,19/10/2016,3763462,788.61,D D PAYROLL SERVICES
Adults Services,Adult Social Care,Support with Memory and Cognition - adults (18-64),CLDS Longer Term Support Teams,Social Care - Direct Payments,19/10/2016,3763464,992.27,D D PAYROLL SERVICES
Adults Services,Adult Social Care,Support with Memory and Cognition - adults (18-64),Generic Care Packages NE Team -PS,Social Care - Direct Payments,19/10/2016,3763465,651.13,DAVID HOWARD LTD CLIENT ACCOUNT
Adults Services,Adult Social Care,Support with Memory and Cognition - adults (18-64),Generic Care Packages NW Team -PS,Social Care - Direct Payments,19/10/2016,3763468,990.00,DAVID HOWARD LTD CLIENT ACCOUNT
Adults Services,Adult Social Care,Support with Memory and Cognition - adults (18-64),Generic Care Packages SE Team -PS,Social Care - Direct Payments,19/10/2016,3763470,893.61,D D PAYROLL SERVICES
Adults Services,Adult Social Care,Support with Memory and Cognition - adults (18-64),Generic Care Packages NW Team -PS,Social Care - Direct Payments,19/10/2016,3763471,703.50,DAVID HOWARD LTD CLIENT ACCOUNT
Adults Services,Adult Social Care,Support with Memory and Cognition - adults (18-64),Generic Care Packages SW Team - PS,Social Care - Direct Payments,19/10/2016,3763472,"1,359.77",D D PAYROLL SERVICES
Adults Services,Adult Social Care,Support with Memory and Cognition - adults (18-64),CLDS Longer Term Support Teams,Social Care - Direct Payments,19/10/2016,3763473,"3,451.29",D D PAYROLL SERVICES
Adults Services,Adult Social Care,Support with Memory and Cognition - adults (18-64),Generic Care Packages NW Team -PS,Social Care - Direct Payments,19/10/2016,3763474,"1,146.56",D D PAYROLL SERVICES
Adults Services,Adult Social Care,Support with Memory and Cognition - adults (18-64),Generic Care Packages SE Team -PS,Social Care - Direct Payments,19/10/2016,3763475,615.09,DAVID HOWARD LTD CLIENT ACCOUNT
Adults Services,Adult Social Care,Support with Memory and Cognition - adults (18-64),Generic Care Packages NW Team -PS,Social Care - Direct Payments,19/10/2016,3763478,"1,011.47",D D PAYROLL SERVICES
Adults Services,Adult Social Care,Support with Memory and Cognition - adults (18-64),Generic Care Packages SE Team -PS,Social Care - Direct Payments,19/10/2016,3763479,534.21,DAVID HOWARD LTD CLIENT ACCOUNT
Adults Services,Adult Social Care,Support with Memory and Cognition - adults (18-64),Generic Care Packages SW Team - PS,Social Care - Direct Payments,19/10/2016,3763480,"2,266.29",D D PAYROLL SERVICES
Adults Services,Adult Social Care,Support with Memory and Cognition - adults (18-64),Cmht Iod / Poplar South,Social Care - Direct Payments,19/10/2016,3763482,"1,321.07",D D PAYROLL SERVICES
Adults Services,Adult Social Care,Support with Memory and Cognition - adults (18-64),CLDS Longer Term Support Teams,Social Care - Direct Payments,19/10/2016,3763484,"2,000.31",DAVID HOWARD LTD CLIENT ACCOUNT
Adults Services,Adult Social Care,Support with Memory and Cognition - adults (18-64),Generic Care Packages NW Team -PS,Social Care - Direct Payments,19/10/2016,3763485,838.93,DAVID HOWARD LTD CLIENT ACCOUNT
Adults Services,Adult Social Care,Support with Memory and Cognition - adults (18-64),Generic Care Packages SE Team -PS,Social Care - Direct Payments,19/10/2016,3763486,"12,733.16",DAVID HOWARD LTD CLIENT ACCOUNT
Adults Services,Adult Social Care,Support with Memory and Cognition - adults (18-64),Generic Care Packages NE Team -PS,Social Care - Direct Payments,19/10/2016,3763493,"1,227.39",D D PAYROLL SERVICES
Adults Services,Adult Social Care,Support with Memory and Cognition - adults (18-64),CLDS Longer Term Support Teams,Social Care - Direct Payments,19/10/2016,3763494,"9,233.40",DAVID HOWARD LTD CLIENT ACCOUNT
Adults Services,Adult Social Care,Support with Memory and Cognition - adults (18-64),Cmht Iod / Poplar South,Social Care - Direct Payments,19/10/2016,3763495,914.01,DAVID HOWARD LTD CLIENT ACCOUNT
Adults Services,Adult Social Care,Support with Memory and Cognition - adults (18-64),Generic Care Packages NE Team -PS,Social Care - Direct Payments,19/10/2016,3763496,"3,469.86",DAVID HOWARD LTD CLIENT ACCOUNT
Adults Services,Adult Social Care,Support with Memory and Cognition - adults (18-64),Generic Care Packages NW Team -PS,Social Care - Direct Payments,19/10/2016,3763522,671.61,Soma Healthcare Ltd
Adults Services,Adult Social Care,Support with Memory and Cognition - adults (18-64),Generic Care Packages NE Team -PS,Social Care - Direct Payments,19/10/2016,3763523,"1,245.73",DAVID HOWARD LTD CLIENT ACCOUNT
Adults Services,Adult Social Care,Support with Memory and Cognition - adults (18-64),Generic Care Packages SW Team - PS,Social Care - Direct Payments,19/10/2016,3763528,701.74,DAVID HOWARD LTD CLIENT ACCOUNT
Adults Services,Adult Social Care,Support with Memory and Cognition - adults (18-64),Generic Care Packages NW Team -PS,Social Care - Direct Payments,19/10/2016,3763540,"6,390.00",D D PAYROLL SERVICES
Adults Services,Adult Social Care,Support with Memory and Cognition - adults (18-64),Generic Care Packages SW Team - PS,Social Care - Direct Payments,19/10/2016,3763548,"1,091.57",DAVID HOWARD LTD CLIENT ACCOUNT
Adults Services,Adult Social Care,Support with Memory and Cognition - adults (18-64),Generic Care Packages NW Team -PS,Social Care - Direct Payments,19/10/2016,3763553,"1,680.00",DAVID HOWARD LTD CLIENT ACCOUNT
Adults Services,Adult Social Care,Support with Memory and Cognition - adults (18-64),Generic Care Packages SE Team -PS,Social Care - Direct Payments,19/10/2016,3763554,"1,377.30",DAVID HOWARD LTD CLIENT ACCOUNT
Adults Services,Adult Social Care,Support with Memory and Cognition - adults (18-64),Generic Care Packages SW Team -SI,Social Care - Direct Payments,19/10/2016,3763559,"2,080.16",DAVID HOWARD LTD CLIENT ACCOUNT
Adults Services,Adult Social Care,Support with Memory and Cognition - adults (18-64),Generic Care Packages NW Team -PS,Social Care - Direct Payments,19/10/2016,3763567,627.43,DAVID HOWARD LTD CLIENT ACCOUNT
Adults Services,Adult Social Care,Support with Memory and Cognition - adults (18-64),Generic Care Packages SW Team - PS,Social Care - Direct Payments,19/10/2016,3763569,510.30,DAVID HOWARD LTD CLIENT ACCOUNT
Adults Services,Adult Social Care,Support with Memory and Cognition - adults (18-64),Generic Care Packages SE Team -PS,Social Care - Direct Payments,19/10/2016,3763573,982.20,DAVID HOWARD LTD CLIENT ACCOUNT
Adults Services,Adult Social Care,Support with Memory and Cognition - adults (18-64),Generic Care Packages SE Team -SP,Social Care - Direct Payments,19/10/2016,3763575,686.74,DAVID HOWARD LTD CLIENT ACCOUNT
Adults Services,Adult Social Care,Support with Memory and Cognition - adults (18-64),Generic Care Packages NE Team -SP,Social Care - Direct Payments,19/10/2016,3763577,843.00,DAVID HOWARD LTD CLIENT ACCOUNT
Adults Services,Adult Social Care,Support with Memory and Cognition - adults (18-64),Generic Care Packages SE Team -PS,Social Care - Direct Payments,19/10/2016,3763578,518.49,D D PAYROLL SERVICES
Adults Services,Adult Social Care,Support with Memory and Cognition - adults (18-64),Generic Care Packages SE Team -PS,Social Care - Direct Payments,19/10/2016,3763580,565.33,DAVID HOWARD LTD CLIENT ACCOUNT
Adults Services,Adult Social Care,Support with Memory and Cognition - adults (18-64),Generic Care Packages NW Team -PS,Social Care - Direct Payments,19/10/2016,3763586,"2,716.29",D D PAYROLL SERVICES
Adults Services,Adult Social Care,Support with Memory and Cognition - adults (18-64),"Generic Care Packages SW Team-MH									",Social Care - Direct Payments,19/10/2016,3763591,726.39,DAVID HOWARD LTD CLIENT ACCOUNT
Adults Services,Adult Social Care,Support with Memory and Cognition - adults (18-64),Generic Care Packages SE Team-SMC,Social Care - Direct Payments,19/10/2016,3763599,"1,172.40",DAVID HOWARD LTD CLIENT ACCOUNT
Adults Services,Adult Social Care,Support with Memory and Cognition - adults (18-64),Generic Care Packages SE Team -PS,Social Care - Direct Payments,19/10/2016,3763600,782.31,DAVID HOWARD LTD CLIENT ACCOUNT
Adults Services,Adult Social Care,Support with Memory and Cognition - adults (18-64),Cmht Iod / Poplar South,Social Care - Direct Payments,19/10/2016,3763601,642.17,D D PAYROLL SERVICES
Adults Services,Adult Social Care,Support with Memory and Cognition - adults (18-64),Generic Care Packages SW Team - PS,Social Care - Direct Payments,19/10/2016,3763603,525.00,DAVID HOWARD LTD CLIENT ACCOUNT
Adults Services,Adult Social Care,Support with Memory and Cognition - adults (18-64),Generic Care Packages SE Team -PS,Social Care - Direct Payments,19/10/2016,3763604,823.68,DAVID HOWARD LTD CLIENT ACCOUNT
Adults Services,Adult Social Care,Support with Memory and Cognition - adults (18-64),Generic Care Packages SE Team -PS,Social Care - Direct Payments,19/10/2016,3763616,621.64,DAVID HOWARD LTD CLIENT ACCOUNT
Adults Services,Adult Social Care,Support with Memory and Cognition - adults (18-64),Generic Care Packages SE Team -PS,Social Care - Direct Payments,19/10/2016,3763617,"1,145.10",DAVID HOWARD LTD CLIENT ACCOUNT
Adults Services,Adult Social Care,Support with Memory and Cognition - adults (18-64),Generic Care Packages SE Team -PS,Social Care - Direct Payments,19/10/2016,3763619,730.80,D D PAYROLL SERVICES
Adults Services,Adult Social Care,Support with Memory and Cognition - adults (18-64),Generic Care Packages NW Team -PS,Social Care - Direct Payments,19/10/2016,3763621,562.11,DAVID HOWARD LTD CLIENT ACCOUNT
Adults Services,Adult Social Care,Support with Memory and Cognition - adults (18-64),Generic Care Packages NE Team -PS,Social Care - Direct Payments,19/10/2016,3763622,"1,234.50",D D PAYROLL SERVICES
Adults Services,Adult Social Care,Support with Memory and Cognition - adults (18-64),Generic Care Packages SE Team -PS,Social Care - Direct Payments,19/10/2016,3763625,500.40,D D PAYROLL SERVICES
Adults Services,Adult Social Care,Support with Memory and Cognition - adults (18-64),Cmht For Older People,Social Care - Direct Payments,19/10/2016,3763626,"1,771.50",DAVID HOWARD LTD CLIENT ACCOUNT
Adults Services,Adult Social Care,Support with Memory and Cognition - adults (18-64),Generic Care Packages SE Team -PS,Social Care - Direct Payments,19/10/2016,3763631,"1,713.60",DAVID HOWARD LTD CLIENT ACCOUNT
Adults Services,Adult Social Care,Support with Memory and Cognition - adults (18-64),Generic Care Packages SE Team-SMC,Social Care - Direct Payments,19/10/2016,3763635,679.59,DAVID HOWARD LTD CLIENT ACCOUNT
Adults Services,Adult Social Care,Support with Memory and Cognition - adults (18-64),Generic Care Packages NE Team -PS,Social Care - Direct Payments,19/10/2016,3763639,786.86,D D PAYROLL SERVICES
Adults Services,Adult Social Care,Support with Memory and Cognition - adults (18-64),Generic Care Packages SE Team -PS,Social Care - Direct Payments,19/10/2016,3763641,"1,026.56",DAVID HOWARD LTD CLIENT ACCOUNT
Adults Services,Adult Social Care,Support with Memory and Cognition - adults (18-64),CLDS Longer Term Support Teams,Social Care - Direct Payments,19/10/2016,3763644,684.39,DAVID HOWARD LTD CLIENT ACCOUNT
Adults Services,Adult Social Care,Support with Memory and Cognition - adults (18-64),Generic Care Packages NW Team -PS,Social Care - Direct Payments,19/10/2016,3763645,"6,475.50",D D PAYROLL SERVICES
Adults Services,Adult Social Care,Support with Memory and Cognition - adults (18-64),Generic Care Packages SE Team -PS,Social Care - Direct Payments,19/10/2016,3763646,867.73,DAVID HOWARD LTD CLIENT ACCOUNT
Adults Services,Adult Social Care,Support with Memory and Cognition - adults (18-64),Generic Care Packages SE Team -PS,Social Care - Direct Payments,19/10/2016,3763648,893.14,DAVID HOWARD LTD CLIENT ACCOUNT
Adults Services,Adult Social Care,Support with Memory and Cognition - adults (18-64),Generic Care Packages SW Team - PS,Social Care - Direct Payments,19/10/2016,3763649,580.29,DAVID HOWARD LTD CLIENT ACCOUNT
Adults Services,Adult Social Care,Support with Memory and Cognition - adults (18-64),Generic Care Packages SE Team -PS,Social Care - Direct Payments,19/10/2016,3763654,675.47,D D PAYROLL SERVICES
Adults Services,Adult Social Care,Support with Memory and Cognition - adults (18-64),Generic Care Packages SE Team -PS,Social Care - Direct Payments,19/10/2016,3763659,855.17,DAVID HOWARD LTD CLIENT ACCOUNT
Adults Services,Adult Social Care,Support with Memory and Cognition - adults (18-64),Generic Care Packages NW Team -PS,Social Care - Direct Payments,19/10/2016,3763661,637.80,DAVID HOWARD LTD CLIENT ACCOUNT
Adults Services,Adult Social Care,Support with Memory and Cognition - adults (18-64),Generic Care Packages NE Team -PS,Social Care - Direct Payments,19/10/2016,3763664,572.49,DAVID HOWARD LTD CLIENT ACCOUNT
Adults Services,Adult Social Care,Support with Memory and Cognition - adults (18-64),CLDS Longer Term Support Teams,Social Care - Direct Payments,19/10/2016,3763667,"1,091.10",DAVID HOWARD LTD CLIENT ACCOUNT
Adults Services,Adult Social Care,Support with Memory and Cognition - adults (18-64),Cmht Iod / Poplar South,Social Care - Direct Payments,19/10/2016,3763669,"5,843.74",D D PAYROLL SERVICES
Adults Services,Adult Social Care,Support with Memory and Cognition - adults (18-64),Generic Care Packages SE Team -PS,Social Care - Direct Payments,19/10/2016,3763670,"2,264.83",DAVID HOWARD LTD CLIENT ACCOUNT
Adults Services,Adult Social Care,Support with Memory and Cognition - adults (18-64),Generic Care Packages SE Team -PS,Social Care - Direct Payments,19/10/2016,3763674,765.13,DAVID HOWARD LTD CLIENT ACCOUNT
Adults Services,Adult Social Care,Support with Memory and Cognition - adults (18-64),Generic Care Packages NE Team -PS,Social Care - Direct Payments,19/10/2016,3763675,525.39,DAVID HOWARD LTD CLIENT ACCOUNT
Adults Services,Adult Social Care,Support with Memory and Cognition - adults (18-64),Generic Care Packages SW Team - PS,Social Care - Direct Payments,19/10/2016,3763677,"2,284.63",DAVID HOWARD LTD CLIENT ACCOUNT
Adults Services,Adult Social Care,Support with Memory and Cognition - adults (18-64),Generic Care Packages NW Team -PS,Social Care - Direct Payments,19/10/2016,3763679,642.00,DAVID HOWARD LTD CLIENT ACCOUNT
Adults Services,Adult Social Care,Support with Memory and Cognition - adults (18-64),Generic Care Packages SE Team -PS,Social Care - Direct Payments,19/10/2016,3763680,"1,117.07",DAVID HOWARD LTD CLIENT ACCOUNT
Adults Services,Adult Social Care,Support with Memory and Cognition - adults (18-64),Generic Care Packages SE Team -PS,Social Care - Direct Payments,19/10/2016,3763681,974.66,DAVID HOWARD LTD CLIENT ACCOUNT
Adults Services,Adult Social Care,Support with Memory and Cognition - adults (18-64),Generic Care Packages SW Team - PS,Social Care - Direct Payments,19/10/2016,3763688,589.54,DAVID HOWARD LTD CLIENT ACCOUNT
Adults Services,Adult Social Care,Support with Memory and Cognition - adults (18-64),Generic Care Packages SW Team - PS,Social Care - Direct Payments,19/10/2016,3763690,957.00,DAVID HOWARD LTD CLIENT ACCOUNT
Adults Services,Adult Social Care,Support with Memory and Cognition - adults (18-64),Generic Care Packages NW Team -PS,Social Care - Direct Payments,19/10/2016,3763692,635.40,D D PAYROLL SERVICES
Adults Services,Adult Social Care,Support with Memory and Cognition - adults (18-64),Generic Care Packages NE Team -PS,Social Care - Direct Payments,19/10/2016,3763693,"1,199.44",DAVID HOWARD LTD CLIENT ACCOUNT
